Workbook

Sheet Introduction
B3: =Benchmarking!C1&" Data" -> 2024-25 Data | D3: ="Kent LA Schools' Benchmarking Data "&Benchmarking!C1 -> Kent LA Schools' Benchmarking Data 2024-25
D5: THIS BENCHMARKING SHEET IS FOR SPECIAL SCHOOLS ONLY
D7: ="The Benchmarking spreadsheet shows the income and expenditure information for the "&Benchmarking!C1&" financial year at subjective account level i.e. CFR codes. It shows all revenue income and expenditure including standards funds. Capital income and expenditure is excluded." -> The Benchmarking spreadsheet shows the income and expenditure information for the 2024-25 financial year at subjective account level i.e. CFR codes. It shows all revenue income and expenditure including standards funds. Capital income and expenditure is excluded.
D12: Enter your DFE number in the green shaded box, you can enter the last four digits or use the drop down box.
D14: The pink drop down boxes allow you to select up to three Schools to benchmark against
D17: If you DO NOT want to include Fund 50 figures, select "Yes" from the drop down box in C9
D19: The sheet is formatted to print on one page.
D21: CFR = Consistent Financial Reporting

Sheet Benchmarking
B1: Subjective Analysis of | C1: 2024-25 | D1: Income and Expenditure Compared to Group and Phase Averages
I3: Select a school to Benchmark against | N3: Select a school to Benchmark against | S3: Select a school to Benchmark against
C4: Enter last 4 digits of your DfE No. | E4: Number of Places | G4: =IF(ISERROR(ROUND(VLOOKUP(D4,'2024-25 Data'!A3:G23,7,0),0)),"",ROUND(VLOOKUP(D4,'2024-25 Data'!A3:G23,7,0),0)) -> 
B5: =B1&C1&D1 -> Subjective Analysis of 2024-25 Income and Expenditure Compared to Group and Phase Averages
I6: =IF(ISERROR(SUMIF(Schools,I4,dfenums)),"",SUMIF(Schools,I4,dfenums)) -> 0 | J6: =IF(ISERROR(ROUND(VLOOKUP(I6,'2024-25 Data'!$A$3:$G$23,7,0),0)),"",ROUND(VLOOKUP(I6,'2024-25 Data'!$A$3:$G$23,7,0),0)) ->  | N6: =IF(ISERROR(SUMIF(Schools,N4,dfenums)),"",SUMIF(Schools,N4,dfenums)) -> 0 | O6: =IF(ISERROR(ROUND(VLOOKUP(N6,'2024-25 Data'!$A$3:$G$23,7,0),0)),"",ROUND(VLOOKUP(N6,'2024-25 Data'!$A$3:$G$23,7,0),0)) ->  | S6: =IF(ISERROR(SUMIF(Schools,S4,dfenums)),"",SUMIF(Schools,S4,dfenums)) -> 0 | T6: =IF(ISERROR(ROUND(VLOOKUP(S6,'2024-25 Data'!$A$3:$G$23,7,0),0)),"",ROUND(VLOOKUP(S6,'2024-25 Data'!$A$3:$G$23,7,0),0)) -> 
I7: =IF(I4="","",IF(D4=I6,"This is your school","")) ->  | N7: =IF(N4="","",IF(N6=D4,"This is your school",IF(I6=N6,"you have already selected this school",""))) ->  | S7: =IF(S4="","",IF(S6=I6,"This is your school",IF(N6=S6,"You have already selected this school",""))) -> 
D8: =IF(ISERROR(VLOOKUP(D4,'2024-25 Data'!A3:B23,2,0)),"",VLOOKUP(D4,'2024-25 Data'!A3:B23,2,0)) -> 
B9: Remove Fund 50 | C9: No | D9: total Exp. / Inc. | E9: amount per place | F9: amount per attending FTE | G9: % of Exp | I9: total Exp. / Inc. | J9: amount per place | K9: amount per attending FTE | L9: % of Exp | N9: total Exp. / Inc. | O9: amount per place | P9: amount per attending FTE | Q9: % of Exp | S9: total Exp. / Inc. | T9: amount per place | U9: amount per attending FTE | V9: % of Exp
B10: (Total Revenue) | D10: £ | E10: £ | F10: £ | G10: % | I10: £ | J10: £ | K10: £ | L10: % | N10: £ | O10: £ | P10: £ | Q10: % | S10: £ | T10: £ | U10: £ | V10: %
B12: EXPENDITURE
B13: Teaching staff | C13: E01 | D13: =IF(ISERROR(INDEX('2024-25 Data'!$B$3:$CA$23,MATCH($D$4,dfenums,0),MATCH(C13,'2024-25 Data'!$B$2:$CA$2,0))),"",INDEX('2024-25 Data'!$B$3:$CA$23,MATCH($D$4,dfenums,0),MATCH(C13,'2024-25 Data'!$B$2:$CA$2,0))) ->  | E13: =IF(ISERROR(D13/$G$4),"",D13/$G$4) ->  | F13: =IF(ISERROR(D13/VLOOKUP($D$4,'2024-25 Data'!$A$3:$H$23,8,0)),"",D13/VLOOKUP($D$4,'2024-25 Data'!$A$3:$H$23,8,0)) ->  | G13: =IF(ISERROR(D13/$D$51),"",D13/$D$51) ->  | I13: =IF(ISERROR(INDEX('2024-25 Data'!$B$3:$CA$23,MATCH($I$6,dfenums,0),MATCH(C13,'2024-25 Data'!$B$2:$CA$2,0))),"",INDEX('2024-25 Data'!$B$3:$CA$23,MATCH($I$6,dfenums,0),MATCH(C13,'2024-25 Data'!$B$2:$CA$2,0))) ->  | J13: =IF(ISERROR(I13/$J$6),"",I13/$J$6) ->  | K13: =IF(ISERROR(I13/VLOOKUP($I$6,'2024-25 Data'!$A$3:$H$23,8,0)),"",I13/VLOOKUP($I$6,'2024-25 Data'!$A$3:$H$23,8,0)) ->  | L13: =IF(ISERROR(I13/$I$51),"",I13/$I$51) ->  | N13: =IF(ISERROR(INDEX('2024-25 Data'!$B$3:$CA$23,MATCH($N$6,dfenums,0),MATCH(C13,'2024-25 Data'!$B$2:$CA$2,0))),"",INDEX('2024-25 Data'!$B$3:$CA$23,MATCH($N$6,dfenums,0),MATCH(C13,'2024-25 Data'!$B$2:$CA$2,0))) ->  | O13: =IF(ISERROR(N13/$O$6),"",N13/$O$6) ->  | P13: =IF(ISERROR(N13/VLOOKUP($N$6,'2024-25 Data'!$A$3:$H$23,8,0)),"",N13/VLOOKUP($N$6,'2024-25 Data'!$A$3:$H$23,8,0)) ->  | Q13: =IF(ISERROR(N13/$N$51),"",N13/$N$51) ->  | S13: =IF(ISERROR(INDEX('2024-25 Data'!$B$3:$CA$23,MATCH($S$6,dfenums,0),MATCH(C13,'2024-25 Data'!$B$2:$CA$2,0))),"",INDEX('2024-25 Data'!$B$3:$CA$23,MATCH($S$6,dfenums,0),MATCH(C13,'2024-25 Data'!$B$2:$CA$2,0))) ->  | T13: =IF(ISERROR(S13/$T$6),"",S13/$T$6) ->  | U13: =IF(ISERROR(S13/VLOOKUP($S$6,'2024-25 Data'!$A$3:$H$23,8,0)),"",S13/VLOOKUP($S$6,'2024-25 Data'!$A$3:$H$23,8,0)) ->  | V13: =IF(ISERROR(S13/$S$51),"",S13/$S$51) -> 
B14: Supply teaching staff | C14: E02 | D14: =IF(ISERROR(INDEX('2024-25 Data'!$B$3:$CA$23,MATCH($D$4,dfenums,0),MATCH(C14,'2024-25 Data'!$B$2:$CA$2,0))),"",INDEX('2024-25 Data'!$B$3:$CA$23,MATCH($D$4,dfenums,0),MATCH(C14,'2024-25 Data'!$B$2:$CA$2,0))) ->  | E14: =IF(ISERROR(D14/$G$4),"",D14/$G$4) ->  | F14: =IF(ISERROR(D14/VLOOKUP($D$4,'2024-25 Data'!$A$3:$H$23,8,0)),"",D14/VLOOKUP($D$4,'2024-25 Data'!$A$3:$H$23,8,0)) ->  | I14: =IF(ISERROR(INDEX('2024-25 Data'!$B$3:$CA$23,MATCH($I$6,dfenums,0),MATCH(C14,'2024-25 Data'!$B$2:$CA$2,0))),"",INDEX('2024-25 Data'!$B$3:$CA$23,MATCH($I$6,dfenums,0),MATCH(C14,'2024-25 Data'!$B$2:$CA$2,0))) ->  | J14: =IF(ISERROR(I14/$J$6),"",I14/$J$6) ->  | K14: =IF(ISERROR(I14/VLOOKUP($I$6,'2024-25 Data'!$A$3:$H$23,8,0)),"",I14/VLOOKUP($I$6,'2024-25 Data'!$A$3:$H$23,8,0)) ->  | N14: =IF(ISERROR(INDEX('2024-25 Data'!$B$3:$CA$23,MATCH($N$6,dfenums,0),MATCH(C14,'2024-25 Data'!$B$2:$CA$2,0))),"",INDEX('2024-25 Data'!$B$3:$CA$23,MATCH($N$6,dfenums,0),MATCH(C14,'2024-25 Data'!$B$2:$CA$2,0))) ->  | O14: =IF(ISERROR(N14/$O$6),"",N14/$O$6) ->  | P14: =IF(ISERROR(N14/VLOOKUP($N$6,'2024-25 Data'!$A$3:$H$23,8,0)),"",N14/VLOOKUP($N$6,'2024-25 Data'!$A$3:$H$23,8,0)) ->  | S14: =IF(ISERROR(INDEX('2024-25 Data'!$B$3:$CA$23,MATCH($S$6,dfenums,0),MATCH(C14,'2024-25 Data'!$B$2:$CA$2,0))),"",INDEX('2024-25 Data'!$B$3:$CA$23,MATCH($S$6,dfenums,0),MATCH(C14,'2024-25 Data'!$B$2:$CA$2,0))) ->  | T14: =IF(ISERROR(S14/$T$6),"",S14/$T$6) ->  | U14: =IF(ISERROR(S14/VLOOKUP($S$6,'2024-25 Data'!$A$3:$H$23,8,0)),"",S14/VLOOKUP($S$6,'2024-25 Data'!$A$3:$H$23,8,0)) -> 
B15: Education support staff | C15: E03 | D15: =IF(ISERROR(INDEX('2024-25 Data'!$B$3:$CA$23,MATCH($D$4,dfenums,0),MATCH(C15,'2024-25 Data'!$B$2:$CA$2,0))),"",INDEX('2024-25 Data'!$B$3:$CA$23,MATCH($D$4,dfenums,0),MATCH(C15,'2024-25 Data'!$B$2:$CA$2,0))) ->  | F15: =IF(ISERROR(D15/VLOOKUP($D$4,'2024-25 Data'!$A$3:$H$23,8,0)),"",D15/VLOOKUP($D$4,'2024-25 Data'!$A$3:$H$23,8,0)) ->  | I15: =IF(ISERROR(INDEX('2024-25 Data'!$B$3:$CA$23,MATCH($I$6,dfenums,0),MATCH(C15,'2024-25 Data'!$B$2:$CA$2,0))),"",INDEX('2024-25 Data'!$B$3:$CA$23,MATCH($I$6,dfenums,0),MATCH(C15,'2024-25 Data'!$B$2:$CA$2,0))) ->  | K15: =IF(ISERROR(I15/VLOOKUP($I$6,'2024-25 Data'!$A$3:$H$23,8,0)),"",I15/VLOOKUP($I$6,'2024-25 Data'!$A$3:$H$23,8,0)) ->  | N15: =IF(ISERROR(INDEX('2024-25 Data'!$B$3:$CA$23,MATCH($N$6,dfenums,0),MATCH(C15,'2024-25 Data'!$B$2:$CA$2,0))),"",INDEX('2024-25 Data'!$B$3:$CA$23,MATCH($N$6,dfenums,0),MATCH(C15,'2024-25 Data'!$B$2:$CA$2,0))) ->  | P15: =IF(ISERROR(N15/VLOOKUP($N$6,'2024-25 Data'!$A$3:$H$23,8,0)),"",N15/VLOOKUP($N$6,'2024-25 Data'!$A$3:$H$23,8,0)) ->  | S15: =IF(ISERROR(INDEX('2024-25 Data'!$B$3:$CA$23,MATCH($S$6,dfenums,0),MATCH(C15,'2024-25 Data'!$B$2:$CA$2,0))),"",INDEX('2024-25 Data'!$B$3:$CA$23,MATCH($S$6,dfenums,0),MATCH(C15,'2024-25 Data'!$B$2:$CA$2,0))) ->  | U15: =IF(ISERROR(S15/VLOOKUP($S$6,'2024-25 Data'!$A$3:$H$23,8,0)),"",S15/VLOOKUP($S$6,'2024-25 Data'!$A$3:$H$23,8,0)) -> 
B16: Premises staff | C16: E04 | D16: =IF(ISERROR(INDEX('2024-25 Data'!$B$3:$CA$23,MATCH($D$4,dfenums,0),MATCH(C16,'2024-25 Data'!$B$2:$CA$2,0))),"",INDEX('2024-25 Data'!$B$3:$CA$23,MATCH($D$4,dfenums,0),MATCH(C16,'2024-25 Data'!$B$2:$CA$2,0))) ->  | F16: =IF(ISERROR(D16/VLOOKUP($D$4,'2024-25 Data'!$A$3:$H$23,8,0)),"",D16/VLOOKUP($D$4,'2024-25 Data'!$A$3:$H$23,8,0)) ->  | I16: =IF(ISERROR(INDEX('2024-25 Data'!$B$3:$CA$23,MATCH($I$6,dfenums,0),MATCH(C16,'2024-25 Data'!$B$2:$CA$2,0))),"",INDEX('2024-25 Data'!$B$3:$CA$23,MATCH($I$6,dfenums,0),MATCH(C16,'2024-25 Data'!$B$2:$CA$2,0))) ->  | K16: =IF(ISERROR(I16/VLOOKUP($I$6,'2024-25 Data'!$A$3:$H$23,8,0)),"",I16/VLOOKUP($I$6,'2024-25 Data'!$A$3:$H$23,8,0)) ->  | N16: =IF(ISERROR(INDEX('2024-25 Data'!$B$3:$CA$23,MATCH($N$6,dfenums,0),MATCH(C16,'2024-25 Data'!$B$2:$CA$2,0))),"",INDEX('2024-25 Data'!$B$3:$CA$23,MATCH($N$6,dfenums,0),MATCH(C16,'2024-25 Data'!$B$2:$CA$2,0))) ->  | P16: =IF(ISERROR(N16/VLOOKUP($N$6,'2024-25 Data'!$A$3:$H$23,8,0)),"",N16/VLOOKUP($N$6,'2024-25 Data'!$A$3:$H$23,8,0)) ->  | S16: =IF(ISERROR(INDEX('2024-25 Data'!$B$3:$CA$23,MATCH($S$6,dfenums,0),MATCH(C16,'2024-25 Data'!$B$2:$CA$2,0))),"",INDEX('2024-25 Data'!$B$3:$CA$23,MATCH($S$6,dfenums,0),MATCH(C16,'2024-25 Data'!$B$2:$CA$2,0))) ->  | U16: =IF(ISERROR(S16/VLOOKUP($S$6,'2024-25 Data'!$A$3:$H$23,8,0)),"",S16/VLOOKUP($S$6,'2024-25 Data'!$A$3:$H$23,8,0)) -> 
B17: Administrative and clerical staff | C17: E05 | D17: =IF(ISERROR(INDEX('2024-25 Data'!$B$3:$CA$23,MATCH($D$4,dfenums,0),MATCH(C17,'2024-25 Data'!$B$2:$CA$2,0))),"",INDEX('2024-25 Data'!$B$3:$CA$23,MATCH($D$4,dfenums,0),MATCH(C17,'2024-25 Data'!$B$2:$CA$2,0))) ->  | F17: =IF(ISERROR(D17/VLOOKUP($D$4,'2024-25 Data'!$A$3:$H$23,8,0)),"",D17/VLOOKUP($D$4,'2024-25 Data'!$A$3:$H$23,8,0)) ->  | I17: =IF(ISERROR(INDEX('2024-25 Data'!$B$3:$CA$23,MATCH($I$6,dfenums,0),MATCH(C17,'2024-25 Data'!$B$2:$CA$2,0))),"",INDEX('2024-25 Data'!$B$3:$CA$23,MATCH($I$6,dfenums,0),MATCH(C17,'2024-25 Data'!$B$2:$CA$2,0))) ->  | K17: =IF(ISERROR(I17/VLOOKUP($I$6,'2024-25 Data'!$A$3:$H$23,8,0)),"",I17/VLOOKUP($I$6,'2024-25 Data'!$A$3:$H$23,8,0)) ->  | N17: =IF(ISERROR(INDEX('2024-25 Data'!$B$3:$CA$23,MATCH($N$6,dfenums,0),MATCH(C17,'2024-25 Data'!$B$2:$CA$2,0))),"",INDEX('2024-25 Data'!$B$3:$CA$23,MATCH($N$6,dfenums,0),MATCH(C17,'2024-25 Data'!$B$2:$CA$2,0))) ->  | P17: =IF(ISERROR(N17/VLOOKUP($N$6,'2024-25 Data'!$A$3:$H$23,8,0)),"",N17/VLOOKUP($N$6,'2024-25 Data'!$A$3:$H$23,8,0)) ->  | S17: =IF(ISERROR(INDEX('2024-25 Data'!$B$3:$CA$23,MATCH($S$6,dfenums,0),MATCH(C17,'2024-25 Data'!$B$2:$CA$2,0))),"",INDEX('2024-25 Data'!$B$3:$CA$23,MATCH($S$6,dfenums,0),MATCH(C17,'2024-25 Data'!$B$2:$CA$2,0))) ->  | U17: =IF(ISERROR(S17/VLOOKUP($S$6,'2024-25 Data'!$A$3:$H$23,8,0)),"",S17/VLOOKUP($S$6,'2024-25 Data'!$A$3:$H$23,8,0)) -> 
B18: Catering staff | C18: E06 | D18: =IF(ISERROR(INDEX('2024-25 Data'!$B$3:$CA$23,MATCH($D$4,dfenums,0),MATCH(C18,'2024-25 Data'!$B$2:$CA$2,0))),"",INDEX('2024-25 Data'!$B$3:$CA$23,MATCH($D$4,dfenums,0),MATCH(C18,'2024-25 Data'!$B$2:$CA$2,0))) ->  | F18: =IF(ISERROR(D18/VLOOKUP($D$4,'2024-25 Data'!$A$3:$H$23,8,0)),"",D18/VLOOKUP($D$4,'2024-25 Data'!$A$3:$H$23,8,0)) ->  | I18: =IF(ISERROR(INDEX('2024-25 Data'!$B$3:$CA$23,MATCH($I$6,dfenums,0),MATCH(C18,'2024-25 Data'!$B$2:$CA$2,0))),"",INDEX('2024-25 Data'!$B$3:$CA$23,MATCH($I$6,dfenums,0),MATCH(C18,'2024-25 Data'!$B$2:$CA$2,0))) ->  | K18: =IF(ISERROR(I18/VLOOKUP($I$6,'2024-25 Data'!$A$3:$H$23,8,0)),"",I18/VLOOKUP($I$6,'2024-25 Data'!$A$3:$H$23,8,0)) ->  | N18: =IF(ISERROR(INDEX('2024-25 Data'!$B$3:$CA$23,MATCH($N$6,dfenums,0),MATCH(C18,'2024-25 Data'!$B$2:$CA$2,0))),"",INDEX('2024-25 Data'!$B$3:$CA$23,MATCH($N$6,dfenums,0),MATCH(C18,'2024-25 Data'!$B$2:$CA$2,0))) ->  | P18: =IF(ISERROR(N18/VLOOKUP($N$6,'2024-25 Data'!$A$3:$H$23,8,0)),"",N18/VLOOKUP($N$6,'2024-25 Data'!$A$3:$H$23,8,0)) ->  | S18: =IF(ISERROR(INDEX('2024-25 Data'!$B$3:$CA$23,MATCH($S$6,dfenums,0),MATCH(C18,'2024-25 Data'!$B$2:$CA$2,0))),"",INDEX('2024-25 Data'!$B$3:$CA$23,MATCH($S$6,dfenums,0),MATCH(C18,'2024-25 Data'!$B$2:$CA$2,0))) ->  | U18: =IF(ISERROR(S18/VLOOKUP($S$6,'2024-25 Data'!$A$3:$H$23,8,0)),"",S18/VLOOKUP($S$6,'2024-25 Data'!$A$3:$H$23,8,0)) -> 
B19: Cost of other staff | C19: E07 | D19: =IF(ISERROR(INDEX('2024-25 Data'!$B$3:$CA$23,MATCH($D$4,dfenums,0),MATCH(C19,'2024-25 Data'!$B$2:$CA$2,0))),"",INDEX('2024-25 Data'!$B$3:$CA$23,MATCH($D$4,dfenums,0),MATCH(C19,'2024-25 Data'!$B$2:$CA$2,0))) ->  | F19: =IF(ISERROR(D19/VLOOKUP($D$4,'2024-25 Data'!$A$3:$H$23,8,0)),"",D19/VLOOKUP($D$4,'2024-25 Data'!$A$3:$H$23,8,0)) ->  | I19: =IF(ISERROR(INDEX('2024-25 Data'!$B$3:$CA$23,MATCH($I$6,dfenums,0),MATCH(C19,'2024-25 Data'!$B$2:$CA$2,0))),"",INDEX('2024-25 Data'!$B$3:$CA$23,MATCH($I$6,dfenums,0),MATCH(C19,'2024-25 Data'!$B$2:$CA$2,0))) ->  | K19: =IF(ISERROR(I19/VLOOKUP($I$6,'2024-25 Data'!$A$3:$H$23,8,0)),"",I19/VLOOKUP($I$6,'2024-25 Data'!$A$3:$H$23,8,0)) ->  | N19: =IF(ISERROR(INDEX('2024-25 Data'!$B$3:$CA$23,MATCH($N$6,dfenums,0),MATCH(C19,'2024-25 Data'!$B$2:$CA$2,0))),"",INDEX('2024-25 Data'!$B$3:$CA$23,MATCH($N$6,dfenums,0),MATCH(C19,'2024-25 Data'!$B$2:$CA$2,0))) ->  | P19: =IF(ISERROR(N19/VLOOKUP($N$6,'2024-25 Data'!$A$3:$H$23,8,0)),"",N19/VLOOKUP($N$6,'2024-25 Data'!$A$3:$H$23,8,0)) ->  | S19: =IF(ISERROR(INDEX('2024-25 Data'!$B$3:$CA$23,MATCH($S$6,dfenums,0),MATCH(C19,'2024-25 Data'!$B$2:$CA$2,0))),"",INDEX('2024-25 Data'!$B$3:$CA$23,MATCH($S$6,dfenums,0),MATCH(C19,'2024-25 Data'!$B$2:$CA$2,0))) ->  | U19: =IF(ISERROR(S19/VLOOKUP($S$6,'2024-25 Data'!$A$3:$H$23,8,0)),"",S19/VLOOKUP($S$6,'2024-25 Data'!$A$3:$H$23,8,0)) -> 
B20: Indirect employee expenses | C20: E08 | D20: =IF(ISERROR(INDEX('2024-25 Data'!$B$3:$CA$23,MATCH($D$4,dfenums,0),MATCH(C20,'2024-25 Data'!$B$2:$CA$2,0))),"",INDEX('2024-25 Data'!$B$3:$CA$23,MATCH($D$4,dfenums,0),MATCH(C20,'2024-25 Data'!$B$2:$CA$2,0))) ->  | F20: =IF(ISERROR(D20/VLOOKUP($D$4,'2024-25 Data'!$A$3:$H$23,8,0)),"",D20/VLOOKUP($D$4,'2024-25 Data'!$A$3:$H$23,8,0)) ->  | I20: =IF(ISERROR(INDEX('2024-25 Data'!$B$3:$CA$23,MATCH($I$6,dfenums,0),MATCH(C20,'2024-25 Data'!$B$2:$CA$2,0))),"",INDEX('2024-25 Data'!$B$3:$CA$23,MATCH($I$6,dfenums,0),MATCH(C20,'2024-25 Data'!$B$2:$CA$2,0))) ->  | K20: =IF(ISERROR(I20/VLOOKUP($I$6,'2024-25 Data'!$A$3:$H$23,8,0)),"",I20/VLOOKUP($I$6,'2024-25 Data'!$A$3:$H$23,8,0)) ->  | N20: =IF(ISERROR(INDEX('2024-25 Data'!$B$3:$CA$23,MATCH($N$6,dfenums,0),MATCH(C20,'2024-25 Data'!$B$2:$CA$2,0))),"",INDEX('2024-25 Data'!$B$3:$CA$23,MATCH($N$6,dfenums,0),MATCH(C20,'2024-25 Data'!$B$2:$CA$2,0))) ->  | P20: =IF(ISERROR(N20/VLOOKUP($N$6,'2024-25 Data'!$A$3:$H$23,8,0)),"",N20/VLOOKUP($N$6,'2024-25 Data'!$A$3:$H$23,8,0)) ->  | S20: =IF(ISERROR(INDEX('2024-25 Data'!$B$3:$CA$23,MATCH($S$6,dfenums,0),MATCH(C20,'2024-25 Data'!$B$2:$CA$2,0))),"",INDEX('2024-25 Data'!$B$3:$CA$23,MATCH($S$6,dfenums,0),MATCH(C20,'2024-25 Data'!$B$2:$CA$2,0))) ->  | U20: =IF(ISERROR(S20/VLOOKUP($S$6,'2024-25 Data'!$A$3:$H$23,8,0)),"",S20/VLOOKUP($S$6,'2024-25 Data'!$A$3:$H$23,8,0)) -> 
B21: Development and training | C21: E09 | D21: =IF(ISERROR(INDEX('2024-25 Data'!$B$3:$CA$23,MATCH($D$4,dfenums,0),MATCH(C21,'2024-25 Data'!$B$2:$CA$2,0))),"",INDEX('2024-25 Data'!$B$3:$CA$23,MATCH($D$4,dfenums,0),MATCH(C21,'2024-25 Data'!$B$2:$CA$2,0))) ->  | F21: =IF(ISERROR(D21/VLOOKUP($D$4,'2024-25 Data'!$A$3:$H$23,8,0)),"",D21/VLOOKUP($D$4,'2024-25 Data'!$A$3:$H$23,8,0)) ->  | I21: =IF(ISERROR(INDEX('2024-25 Data'!$B$3:$CA$23,MATCH($I$6,dfenums,0),MATCH(C21,'2024-25 Data'!$B$2:$CA$2,0))),"",INDEX('2024-25 Data'!$B$3:$CA$23,MATCH($I$6,dfenums,0),MATCH(C21,'2024-25 Data'!$B$2:$CA$2,0))) ->  | K21: =IF(ISERROR(I21/VLOOKUP($I$6,'2024-25 Data'!$A$3:$H$23,8,0)),"",I21/VLOOKUP($I$6,'2024-25 Data'!$A$3:$H$23,8,0)) ->  | N21: =IF(ISERROR(INDEX('2024-25 Data'!$B$3:$CA$23,MATCH($N$6,dfenums,0),MATCH(C21,'2024-25 Data'!$B$2:$CA$2,0))),"",INDEX('2024-25 Data'!$B$3:$CA$23,MATCH($N$6,dfenums,0),MATCH(C21,'2024-25 Data'!$B$2:$CA$2,0))) ->  | P21: =IF(ISERROR(N21/VLOOKUP($N$6,'2024-25 Data'!$A$3:$H$23,8,0)),"",N21/VLOOKUP($N$6,'2024-25 Data'!$A$3:$H$23,8,0)) ->  | S21: =IF(ISERROR(INDEX('2024-25 Data'!$B$3:$CA$23,MATCH($S$6,dfenums,0),MATCH(C21,'2024-25 Data'!$B$2:$CA$2,0))),"",INDEX('2024-25 Data'!$B$3:$CA$23,MATCH($S$6,dfenums,0),MATCH(C21,'2024-25 Data'!$B$2:$CA$2,0))) ->  | U21: =IF(ISERROR(S21/VLOOKUP($S$6,'2024-25 Data'!$A$3:$H$23,8,0)),"",S21/VLOOKUP($S$6,'2024-25 Data'!$A$3:$H$23,8,0)) -> 
B22: Supply teacher insurance | C22: E10 | D22: =IF(ISERROR(INDEX('2024-25 Data'!$B$3:$CA$23,MATCH($D$4,dfenums,0),MATCH(C22,'2024-25 Data'!$B$2:$CA$2,0))),"",INDEX('2024-25 Data'!$B$3:$CA$23,MATCH($D$4,dfenums,0),MATCH(C22,'2024-25 Data'!$B$2:$CA$2,0))) ->  | F22: =IF(ISERROR(D22/VLOOKUP($D$4,'2024-25 Data'!$A$3:$H$23,8,0)),"",D22/VLOOKUP($D$4,'2024-25 Data'!$A$3:$H$23,8,0)) ->  | I22: =IF(ISERROR(INDEX('2024-25 Data'!$B$3:$CA$23,MATCH($I$6,dfenums,0),MATCH(C22,'2024-25 Data'!$B$2:$CA$2,0))),"",INDEX('2024-25 Data'!$B$3:$CA$23,MATCH($I$6,dfenums,0),MATCH(C22,'2024-25 Data'!$B$2:$CA$2,0))) ->  | K22: =IF(ISERROR(I22/VLOOKUP($I$6,'2024-25 Data'!$A$3:$H$23,8,0)),"",I22/VLOOKUP($I$6,'2024-25 Data'!$A$3:$H$23,8,0)) ->  | N22: =IF(ISERROR(INDEX('2024-25 Data'!$B$3:$CA$23,MATCH($N$6,dfenums,0),MATCH(C22,'2024-25 Data'!$B$2:$CA$2,0))),"",INDEX('2024-25 Data'!$B$3:$CA$23,MATCH($N$6,dfenums,0),MATCH(C22,'2024-25 Data'!$B$2:$CA$2,0))) ->  | P22: =IF(ISERROR(N22/VLOOKUP($N$6,'2024-25 Data'!$A$3:$H$23,8,0)),"",N22/VLOOKUP($N$6,'2024-25 Data'!$A$3:$H$23,8,0)) ->  | S22: =IF(ISERROR(INDEX('2024-25 Data'!$B$3:$CA$23,MATCH($S$6,dfenums,0),MATCH(C22,'2024-25 Data'!$B$2:$CA$2,0))),"",INDEX('2024-25 Data'!$B$3:$CA$23,MATCH($S$6,dfenums,0),MATCH(C22,'2024-25 Data'!$B$2:$CA$2,0))) ->  | U22: =IF(ISERROR(S22/VLOOKUP($S$6,'2024-25 Data'!$A$3:$H$23,8,0)),"",S22/VLOOKUP($S$6,'2024-25 Data'!$A$3:$H$23,8,0)) -> 
B23: Staff related insurance | C23: E11 | D23: =IF(ISERROR(INDEX('2024-25 Data'!$B$3:$CA$23,MATCH($D$4,dfenums,0),MATCH(C23,'2024-25 Data'!$B$2:$CA$2,0))),"",INDEX('2024-25 Data'!$B$3:$CA$23,MATCH($D$4,dfenums,0),MATCH(C23,'2024-25 Data'!$B$2:$CA$2,0))) ->  | F23: =IF(ISERROR(D23/VLOOKUP($D$4,'2024-25 Data'!$A$3:$H$23,8,0)),"",D23/VLOOKUP($D$4,'2024-25 Data'!$A$3:$H$23,8,0)) ->  | I23: =IF(ISERROR(INDEX('2024-25 Data'!$B$3:$CA$23,MATCH($I$6,dfenums,0),MATCH(C23,'2024-25 Data'!$B$2:$CA$2,0))),"",INDEX('2024-25 Data'!$B$3:$CA$23,MATCH($I$6,dfenums,0),MATCH(C23,'2024-25 Data'!$B$2:$CA$2,0))) ->  | K23: =IF(ISERROR(I23/VLOOKUP($I$6,'2024-25 Data'!$A$3:$H$23,8,0)),"",I23/VLOOKUP($I$6,'2024-25 Data'!$A$3:$H$23,8,0)) ->  | N23: =IF(ISERROR(INDEX('2024-25 Data'!$B$3:$CA$23,MATCH($N$6,dfenums,0),MATCH(C23,'2024-25 Data'!$B$2:$CA$2,0))),"",INDEX('2024-25 Data'!$B$3:$CA$23,MATCH($N$6,dfenums,0),MATCH(C23,'2024-25 Data'!$B$2:$CA$2,0))) ->  | P23: =IF(ISERROR(N23/VLOOKUP($N$6,'2024-25 Data'!$A$3:$H$23,8,0)),"",N23/VLOOKUP($N$6,'2024-25 Data'!$A$3:$H$23,8,0)) ->  | S23: =IF(ISERROR(INDEX('2024-25 Data'!$B$3:$CA$23,MATCH($S$6,dfenums,0),MATCH(C23,'2024-25 Data'!$B$2:$CA$2,0))),"",INDEX('2024-25 Data'!$B$3:$CA$23,MATCH($S$6,dfenums,0),MATCH(C23,'2024-25 Data'!$B$2:$CA$2,0))) ->  | U23: =IF(ISERROR(S23/VLOOKUP($S$6,'2024-25 Data'!$A$3:$H$23,8,0)),"",S23/VLOOKUP($S$6,'2024-25 Data'!$A$3:$H$23,8,0)) -> 
B24: Building maintenance and improvement | C24: E12 | D24: =IF(ISERROR(INDEX('2024-25 Data'!$B$3:$CA$23,MATCH($D$4,dfenums,0),MATCH(C24,'2024-25 Data'!$B$2:$CA$2,0))),"",INDEX('2024-25 Data'!$B$3:$CA$23,MATCH($D$4,dfenums,0),MATCH(C24,'2024-25 Data'!$B$2:$CA$2,0))) ->  | F24: =IF(ISERROR(D24/VLOOKUP($D$4,'2024-25 Data'!$A$3:$H$23,8,0)),"",D24/VLOOKUP($D$4,'2024-25 Data'!$A$3:$H$23,8,0)) ->  | I24: =IF(ISERROR(INDEX('2024-25 Data'!$B$3:$CA$23,MATCH($I$6,dfenums,0),MATCH(C24,'2024-25 Data'!$B$2:$CA$2,0))),"",INDEX('2024-25 Data'!$B$3:$CA$23,MATCH($I$6,dfenums,0),MATCH(C24,'2024-25 Data'!$B$2:$CA$2,0))) ->  | K24: =IF(ISERROR(I24/VLOOKUP($I$6,'2024-25 Data'!$A$3:$H$23,8,0)),"",I24/VLOOKUP($I$6,'2024-25 Data'!$A$3:$H$23,8,0)) ->  | N24: =IF(ISERROR(INDEX('2024-25 Data'!$B$3:$CA$23,MATCH($N$6,dfenums,0),MATCH(C24,'2024-25 Data'!$B$2:$CA$2,0))),"",INDEX('2024-25 Data'!$B$3:$CA$23,MATCH($N$6,dfenums,0),MATCH(C24,'2024-25 Data'!$B$2:$CA$2,0))) ->  | P24: =IF(ISERROR(N24/VLOOKUP($N$6,'2024-25 Data'!$A$3:$H$23,8,0)),"",N24/VLOOKUP($N$6,'2024-25 Data'!$A$3:$H$23,8,0)) ->  | S24: =IF(ISERROR(INDEX('2024-25 Data'!$B$3:$CA$23,MATCH($S$6,dfenums,0),MATCH(C24,'2024-25 Data'!$B$2:$CA$2,0))),"",INDEX('2024-25 Data'!$B$3:$CA$23,MATCH($S$6,dfenums,0),MATCH(C24,'2024-25 Data'!$B$2:$CA$2,0))) ->  | U24: =IF(ISERROR(S24/VLOOKUP($S$6,'2024-25 Data'!$A$3:$H$23,8,0)),"",S24/VLOOKUP($S$6,'2024-25 Data'!$A$3:$H$23,8,0)) -> 
B25: Grounds maintenance and improvement | C25: E13 | D25: =IF(ISERROR(INDEX('2024-25 Data'!$B$3:$CA$23,MATCH($D$4,dfenums,0),MATCH(C25,'2024-25 Data'!$B$2:$CA$2,0))),"",INDEX('2024-25 Data'!$B$3:$CA$23,MATCH($D$4,dfenums,0),MATCH(C25,'2024-25 Data'!$B$2:$CA$2,0))) ->  | F25: =IF(ISERROR(D25/VLOOKUP($D$4,'2024-25 Data'!$A$3:$H$23,8,0)),"",D25/VLOOKUP($D$4,'2024-25 Data'!$A$3:$H$23,8,0)) ->  | I25: =IF(ISERROR(INDEX('2024-25 Data'!$B$3:$CA$23,MATCH($I$6,dfenums,0),MATCH(C25,'2024-25 Data'!$B$2:$CA$2,0))),"",INDEX('2024-25 Data'!$B$3:$CA$23,MATCH($I$6,dfenums,0),MATCH(C25,'2024-25 Data'!$B$2:$CA$2,0))) ->  | K25: =IF(ISERROR(I25/VLOOKUP($I$6,'2024-25 Data'!$A$3:$H$23,8,0)),"",I25/VLOOKUP($I$6,'2024-25 Data'!$A$3:$H$23,8,0)) ->  | N25: =IF(ISERROR(INDEX('2024-25 Data'!$B$3:$CA$23,MATCH($N$6,dfenums,0),MATCH(C25,'2024-25 Data'!$B$2:$CA$2,0))),"",INDEX('2024-25 Data'!$B$3:$CA$23,MATCH($N$6,dfenums,0),MATCH(C25,'2024-25 Data'!$B$2:$CA$2,0))) ->  | P25: =IF(ISERROR(N25/VLOOKUP($N$6,'2024-25 Data'!$A$3:$H$23,8,0)),"",N25/VLOOKUP($N$6,'2024-25 Data'!$A$3:$H$23,8,0)) ->  | S25: =IF(ISERROR(INDEX('2024-25 Data'!$B$3:$CA$23,MATCH($S$6,dfenums,0),MATCH(C25,'2024-25 Data'!$B$2:$CA$2,0))),"",INDEX('2024-25 Data'!$B$3:$CA$23,MATCH($S$6,dfenums,0),MATCH(C25,'2024-25 Data'!$B$2:$CA$2,0))) ->  | U25: =IF(ISERROR(S25/VLOOKUP($S$6,'2024-25 Data'!$A$3:$H$23,8,0)),"",S25/VLOOKUP($S$6,'2024-25 Data'!$A$3:$H$23,8,0)) -> 
B26: Cleaning and caretaking | C26: E14 | D26: =IF(ISERROR(INDEX('2024-25 Data'!$B$3:$CA$23,MATCH($D$4,dfenums,0),MATCH(C26,'2024-25 Data'!$B$2:$CA$2,0))),"",INDEX('2024-25 Data'!$B$3:$CA$23,MATCH($D$4,dfenums,0),MATCH(C26,'2024-25 Data'!$B$2:$CA$2,0))) ->  | F26: =IF(ISERROR(D26/VLOOKUP($D$4,'2024-25 Data'!$A$3:$H$23,8,0)),"",D26/VLOOKUP($D$4,'2024-25 Data'!$A$3:$H$23,8,0)) ->  | I26: =IF(ISERROR(INDEX('2024-25 Data'!$B$3:$CA$23,MATCH($I$6,dfenums,0),MATCH(C26,'2024-25 Data'!$B$2:$CA$2,0))),"",INDEX('2024-25 Data'!$B$3:$CA$23,MATCH($I$6,dfenums,0),MATCH(C26,'2024-25 Data'!$B$2:$CA$2,0))) ->  | K26: =IF(ISERROR(I26/VLOOKUP($I$6,'2024-25 Data'!$A$3:$H$23,8,0)),"",I26/VLOOKUP($I$6,'2024-25 Data'!$A$3:$H$23,8,0)) ->  | N26: =IF(ISERROR(INDEX('2024-25 Data'!$B$3:$CA$23,MATCH($N$6,dfenums,0),MATCH(C26,'2024-25 Data'!$B$2:$CA$2,0))),"",INDEX('2024-25 Data'!$B$3:$CA$23,MATCH($N$6,dfenums,0),MATCH(C26,'2024-25 Data'!$B$2:$CA$2,0))) ->  | P26: =IF(ISERROR(N26/VLOOKUP($N$6,'2024-25 Data'!$A$3:$H$23,8,0)),"",N26/VLOOKUP($N$6,'2024-25 Data'!$A$3:$H$23,8,0)) ->  | S26: =IF(ISERROR(INDEX('2024-25 Data'!$B$3:$CA$23,MATCH($S$6,dfenums,0),MATCH(C26,'2024-25 Data'!$B$2:$CA$2,0))),"",INDEX('2024-25 Data'!$B$3:$CA$23,MATCH($S$6,dfenums,0),MATCH(C26,'2024-25 Data'!$B$2:$CA$2,0))) ->  | U26: =IF(ISERROR(S26/VLOOKUP($S$6,'2024-25 Data'!$A$3:$H$23,8,0)),"",S26/VLOOKUP($S$6,'2024-25 Data'!$A$3:$H$23,8,0)) -> 
B27: Water and sewerage | C27: E15 | D27: =IF(ISERROR(INDEX('2024-25 Data'!$B$3:$CA$23,MATCH($D$4,dfenums,0),MATCH(C27,'2024-25 Data'!$B$2:$CA$2,0))),"",INDEX('2024-25 Data'!$B$3:$CA$23,MATCH($D$4,dfenums,0),MATCH(C27,'2024-25 Data'!$B$2:$CA$2,0))) ->  | F27: =IF(ISERROR(D27/VLOOKUP($D$4,'2024-25 Data'!$A$3:$H$23,8,0)),"",D27/VLOOKUP($D$4,'2024-25 Data'!$A$3:$H$23,8,0)) ->  | I27: =IF(ISERROR(INDEX('2024-25 Data'!$B$3:$CA$23,MATCH($I$6,dfenums,0),MATCH(C27,'2024-25 Data'!$B$2:$CA$2,0))),"",INDEX('2024-25 Data'!$B$3:$CA$23,MATCH($I$6,dfenums,0),MATCH(C27,'2024-25 Data'!$B$2:$CA$2,0))) ->  | K27: =IF(ISERROR(I27/VLOOKUP($I$6,'2024-25 Data'!$A$3:$H$23,8,0)),"",I27/VLOOKUP($I$6,'2024-25 Data'!$A$3:$H$23,8,0)) ->  | N27: =IF(ISERROR(INDEX('2024-25 Data'!$B$3:$CA$23,MATCH($N$6,dfenums,0),MATCH(C27,'2024-25 Data'!$B$2:$CA$2,0))),"",INDEX('2024-25 Data'!$B$3:$CA$23,MATCH($N$6,dfenums,0),MATCH(C27,'2024-25 Data'!$B$2:$CA$2,0))) ->  | P27: =IF(ISERROR(N27/VLOOKUP($N$6,'2024-25 Data'!$A$3:$H$23,8,0)),"",N27/VLOOKUP($N$6,'2024-25 Data'!$A$3:$H$23,8,0)) ->  | S27: =IF(ISERROR(INDEX('2024-25 Data'!$B$3:$CA$23,MATCH($S$6,dfenums,0),MATCH(C27,'2024-25 Data'!$B$2:$CA$2,0))),"",INDEX('2024-25 Data'!$B$3:$CA$23,MATCH($S$6,dfenums,0),MATCH(C27,'2024-25 Data'!$B$2:$CA$2,0))) ->  | U27: =IF(ISERROR(S27/VLOOKUP($S$6,'2024-25 Data'!$A$3:$H$23,8,0)),"",S27/VLOOKUP($S$6,'2024-25 Data'!$A$3:$H$23,8,0)) -> 
B28: Energy | C28: E16 | D28: =IF(ISERROR(INDEX('2024-25 Data'!$B$3:$CA$23,MATCH($D$4,dfenums,0),MATCH(C28,'2024-25 Data'!$B$2:$CA$2,0))),"",INDEX('2024-25 Data'!$B$3:$CA$23,MATCH($D$4,dfenums,0),MATCH(C28,'2024-25 Data'!$B$2:$CA$2,0))) ->  | F28: =IF(ISERROR(D28/VLOOKUP($D$4,'2024-25 Data'!$A$3:$H$23,8,0)),"",D28/VLOOKUP($D$4,'2024-25 Data'!$A$3:$H$23,8,0)) ->  | I28: =IF(ISERROR(INDEX('2024-25 Data'!$B$3:$CA$23,MATCH($I$6,dfenums,0),MATCH(C28,'2024-25 Data'!$B$2:$CA$2,0))),"",INDEX('2024-25 Data'!$B$3:$CA$23,MATCH($I$6,dfenums,0),MATCH(C28,'2024-25 Data'!$B$2:$CA$2,0))) ->  | K28: =IF(ISERROR(I28/VLOOKUP($I$6,'2024-25 Data'!$A$3:$H$23,8,0)),"",I28/VLOOKUP($I$6,'2024-25 Data'!$A$3:$H$23,8,0)) ->  | N28: =IF(ISERROR(INDEX('2024-25 Data'!$B$3:$CA$23,MATCH($N$6,dfenums,0),MATCH(C28,'2024-25 Data'!$B$2:$CA$2,0))),"",INDEX('2024-25 Data'!$B$3:$CA$23,MATCH($N$6,dfenums,0),MATCH(C28,'2024-25 Data'!$B$2:$CA$2,0))) ->  | P28: =IF(ISERROR(N28/VLOOKUP($N$6,'2024-25 Data'!$A$3:$H$23,8,0)),"",N28/VLOOKUP($N$6,'2024-25 Data'!$A$3:$H$23,8,0)) ->  | S28: =IF(ISERROR(INDEX('2024-25 Data'!$B$3:$CA$23,MATCH($S$6,dfenums,0),MATCH(C28,'2024-25 Data'!$B$2:$CA$2,0))),"",INDEX('2024-25 Data'!$B$3:$CA$23,MATCH($S$6,dfenums,0),MATCH(C28,'2024-25 Data'!$B$2:$CA$2,0))) ->  | U28: =IF(ISERROR(S28/VLOOKUP($S$6,'2024-25 Data'!$A$3:$H$23,8,0)),"",S28/VLOOKUP($S$6,'2024-25 Data'!$A$3:$H$23,8,0)) -> 
B29: Rates | C29: E17 | D29: =IF(ISERROR(INDEX('2024-25 Data'!$B$3:$CA$23,MATCH($D$4,dfenums,0),MATCH(C29,'2024-25 Data'!$B$2:$CA$2,0))),"",INDEX('2024-25 Data'!$B$3:$CA$23,MATCH($D$4,dfenums,0),MATCH(C29,'2024-25 Data'!$B$2:$CA$2,0))) ->  | F29: =IF(ISERROR(D29/VLOOKUP($D$4,'2024-25 Data'!$A$3:$H$23,8,0)),"",D29/VLOOKUP($D$4,'2024-25 Data'!$A$3:$H$23,8,0)) ->  | I29: =IF(ISERROR(INDEX('2024-25 Data'!$B$3:$CA$23,MATCH($I$6,dfenums,0),MATCH(C29,'2024-25 Data'!$B$2:$CA$2,0))),"",INDEX('2024-25 Data'!$B$3:$CA$23,MATCH($I$6,dfenums,0),MATCH(C29,'2024-25 Data'!$B$2:$CA$2,0))) ->  | K29: =IF(ISERROR(I29/VLOOKUP($I$6,'2024-25 Data'!$A$3:$H$23,8,0)),"",I29/VLOOKUP($I$6,'2024-25 Data'!$A$3:$H$23,8,0)) ->  | N29: =IF(ISERROR(INDEX('2024-25 Data'!$B$3:$CA$23,MATCH($N$6,dfenums,0),MATCH(C29,'2024-25 Data'!$B$2:$CA$2,0))),"",INDEX('2024-25 Data'!$B$3:$CA$23,MATCH($N$6,dfenums,0),MATCH(C29,'2024-25 Data'!$B$2:$CA$2,0))) ->  | P29: =IF(ISERROR(N29/VLOOKUP($N$6,'2024-25 Data'!$A$3:$H$23,8,0)),"",N29/VLOOKUP($N$6,'2024-25 Data'!$A$3:$H$23,8,0)) ->  | S29: =IF(ISERROR(INDEX('2024-25 Data'!$B$3:$CA$23,MATCH($S$6,dfenums,0),MATCH(C29,'2024-25 Data'!$B$2:$CA$2,0))),"",INDEX('2024-25 Data'!$B$3:$CA$23,MATCH($S$6,dfenums,0),MATCH(C29,'2024-25 Data'!$B$2:$CA$2,0))) ->  | U29: =IF(ISERROR(S29/VLOOKUP($S$6,'2024-25 Data'!$A$3:$H$23,8,0)),"",S29/VLOOKUP($S$6,'2024-25 Data'!$A$3:$H$23,8,0)) -> 
B30: Other occupation costs | C30: E18 | D30: =IF(ISERROR(INDEX('2024-25 Data'!$B$3:$CA$23,MATCH($D$4,dfenums,0),MATCH(C30,'2024-25 Data'!$B$2:$CA$2,0))),"",INDEX('2024-25 Data'!$B$3:$CA$23,MATCH($D$4,dfenums,0),MATCH(C30,'2024-25 Data'!$B$2:$CA$2,0))) ->  | F30: =IF(ISERROR(D30/VLOOKUP($D$4,'2024-25 Data'!$A$3:$H$23,8,0)),"",D30/VLOOKUP($D$4,'2024-25 Data'!$A$3:$H$23,8,0)) ->  | I30: =IF(ISERROR(INDEX('2024-25 Data'!$B$3:$CA$23,MATCH($I$6,dfenums,0),MATCH(C30,'2024-25 Data'!$B$2:$CA$2,0))),"",INDEX('2024-25 Data'!$B$3:$CA$23,MATCH($I$6,dfenums,0),MATCH(C30,'2024-25 Data'!$B$2:$CA$2,0))) ->  | K30: =IF(ISERROR(I30/VLOOKUP($I$6,'2024-25 Data'!$A$3:$H$23,8,0)),"",I30/VLOOKUP($I$6,'2024-25 Data'!$A$3:$H$23,8,0)) ->  | N30: =IF(ISERROR(INDEX('2024-25 Data'!$B$3:$CA$23,MATCH($N$6,dfenums,0),MATCH(C30,'2024-25 Data'!$B$2:$CA$2,0))),"",INDEX('2024-25 Data'!$B$3:$CA$23,MATCH($N$6,dfenums,0),MATCH(C30,'2024-25 Data'!$B$2:$CA$2,0))) ->  | P30: =IF(ISERROR(N30/VLOOKUP($N$6,'2024-25 Data'!$A$3:$H$23,8,0)),"",N30/VLOOKUP($N$6,'2024-25 Data'!$A$3:$H$23,8,0)) ->  | S30: =IF(ISERROR(INDEX('2024-25 Data'!$B$3:$CA$23,MATCH($S$6,dfenums,0),MATCH(C30,'2024-25 Data'!$B$2:$CA$2,0))),"",INDEX('2024-25 Data'!$B$3:$CA$23,MATCH($S$6,dfenums,0),MATCH(C30,'2024-25 Data'!$B$2:$CA$2,0))) ->  | U30: =IF(ISERROR(S30/VLOOKUP($S$6,'2024-25 Data'!$A$3:$H$23,8,0)),"",S30/VLOOKUP($S$6,'2024-25 Data'!$A$3:$H$23,8,0)) -> 
B31: Learning resources (not ICT equipment) | C31: E19 | D31: =IF(ISERROR(INDEX('2024-25 Data'!$B$3:$CA$23,MATCH($D$4,dfenums,0),MATCH(C31,'2024-25 Data'!$B$2:$CA$2,0))),"",INDEX('2024-25 Data'!$B$3:$CA$23,MATCH($D$4,dfenums,0),MATCH(C31,'2024-25 Data'!$B$2:$CA$2,0))) ->  | F31: =IF(ISERROR(D31/VLOOKUP($D$4,'2024-25 Data'!$A$3:$H$23,8,0)),"",D31/VLOOKUP($D$4,'2024-25 Data'!$A$3:$H$23,8,0)) ->  | I31: =IF(ISERROR(INDEX('2024-25 Data'!$B$3:$CA$23,MATCH($I$6,dfenums,0),MATCH(C31,'2024-25 Data'!$B$2:$CA$2,0))),"",INDEX('2024-25 Data'!$B$3:$CA$23,MATCH($I$6,dfenums,0),MATCH(C31,'2024-25 Data'!$B$2:$CA$2,0))) ->  | K31: =IF(ISERROR(I31/VLOOKUP($I$6,'2024-25 Data'!$A$3:$H$23,8,0)),"",I31/VLOOKUP($I$6,'2024-25 Data'!$A$3:$H$23,8,0)) ->  | N31: =IF(ISERROR(INDEX('2024-25 Data'!$B$3:$CA$23,MATCH($N$6,dfenums,0),MATCH(C31,'2024-25 Data'!$B$2:$CA$2,0))),"",INDEX('2024-25 Data'!$B$3:$CA$23,MATCH($N$6,dfenums,0),MATCH(C31,'2024-25 Data'!$B$2:$CA$2,0))) ->  | P31: =IF(ISERROR(N31/VLOOKUP($N$6,'2024-25 Data'!$A$3:$H$23,8,0)),"",N31/VLOOKUP($N$6,'2024-25 Data'!$A$3:$H$23,8,0)) ->  | S31: =IF(ISERROR(INDEX('2024-25 Data'!$B$3:$CA$23,MATCH($S$6,dfenums,0),MATCH(C31,'2024-25 Data'!$B$2:$CA$2,0))),"",INDEX('2024-25 Data'!$B$3:$CA$23,MATCH($S$6,dfenums,0),MATCH(C31,'2024-25 Data'!$B$2:$CA$2,0))) ->  | U31: =IF(ISERROR(S31/VLOOKUP($S$6,'2024-25 Data'!$A$3:$H$23,8,0)),"",S31/VLOOKUP($S$6,'2024-25 Data'!$A$3:$H$23,8,0)) -> 
B32: Connectivity | C32: E20A | D32: =IF(ISERROR(INDEX('2024-25 Data'!$B$3:$CA$23,MATCH($D$4,dfenums,0),MATCH(C32,'2024-25 Data'!$B$2:$CA$2,0))),"",INDEX('2024-25 Data'!$B$3:$CA$23,MATCH($D$4,dfenums,0),MATCH(C32,'2024-25 Data'!$B$2:$CA$2,0))) ->  | F32: =IF(ISERROR(D32/VLOOKUP($D$4,'2024-25 Data'!$A$3:$H$23,8,0)),"",D32/VLOOKUP($D$4,'2024-25 Data'!$A$3:$H$23,8,0)) ->  | I32: =IF(ISERROR(INDEX('2024-25 Data'!$B$3:$CA$23,MATCH($I$6,dfenums,0),MATCH(C32,'2024-25 Data'!$B$2:$CA$2,0))),"",INDEX('2024-25 Data'!$B$3:$CA$23,MATCH($I$6,dfenums,0),MATCH(C32,'2024-25 Data'!$B$2:$CA$2,0))) ->  | K32: =IF(ISERROR(I32/VLOOKUP($I$6,'2024-25 Data'!$A$3:$H$23,8,0)),"",I32/VLOOKUP($I$6,'2024-25 Data'!$A$3:$H$23,8,0)) ->  | N32: =IF(ISERROR(INDEX('2024-25 Data'!$B$3:$CA$23,MATCH($N$6,dfenums,0),MATCH(C32,'2024-25 Data'!$B$2:$CA$2,0))),"",INDEX('2024-25 Data'!$B$3:$CA$23,MATCH($N$6,dfenums,0),MATCH(C32,'2024-25 Data'!$B$2:$CA$2,0))) ->  | P32: =IF(ISERROR(N32/VLOOKUP($N$6,'2024-25 Data'!$A$3:$H$23,8,0)),"",N32/VLOOKUP($N$6,'2024-25 Data'!$A$3:$H$23,8,0)) ->  | S32: =IF(ISERROR(INDEX('2024-25 Data'!$B$3:$CA$23,MATCH($S$6,dfenums,0),MATCH(C32,'2024-25 Data'!$B$2:$CA$2,0))),"",INDEX('2024-25 Data'!$B$3:$CA$23,MATCH($S$6,dfenums,0),MATCH(C32,'2024-25 Data'!$B$2:$CA$2,0))) ->  | T32: =IF(ISERROR(S32/$T$6),"",S32/$T$6) ->  | U32: =IF(ISERROR(S32/VLOOKUP($S$6,'2024-25 Data'!$A$3:$H$23,8,0)),"",S32/VLOOKUP($S$6,'2024-25 Data'!$A$3:$H$23,8,0)) ->  | V32: =IF(ISERROR(S32/$S$51),"",S32/$S$51) -> 
B33: Onsite servers | C33: E20B | D33: =IF(ISERROR(INDEX('2024-25 Data'!$B$3:$CA$23,MATCH($D$4,dfenums,0),MATCH(C33,'2024-25 Data'!$B$2:$CA$2,0))),"",INDEX('2024-25 Data'!$B$3:$CA$23,MATCH($D$4,dfenums,0),MATCH(C33,'2024-25 Data'!$B$2:$CA$2,0))) ->  | F33: =IF(ISERROR(D33/VLOOKUP($D$4,'2024-25 Data'!$A$3:$H$23,8,0)),"",D33/VLOOKUP($D$4,'2024-25 Data'!$A$3:$H$23,8,0)) ->  | I33: =IF(ISERROR(INDEX('2024-25 Data'!$B$3:$CA$23,MATCH($I$6,dfenums,0),MATCH(C33,'2024-25 Data'!$B$2:$CA$2,0))),"",INDEX('2024-25 Data'!$B$3:$CA$23,MATCH($I$6,dfenums,0),MATCH(C33,'2024-25 Data'!$B$2:$CA$2,0))) ->  | K33: =IF(ISERROR(I33/VLOOKUP($I$6,'2024-25 Data'!$A$3:$H$23,8,0)),"",I33/VLOOKUP($I$6,'2024-25 Data'!$A$3:$H$23,8,0)) ->  | N33: =IF(ISERROR(INDEX('2024-25 Data'!$B$3:$CA$23,MATCH($N$6,dfenums,0),MATCH(C33,'2024-25 Data'!$B$2:$CA$2,0))),"",INDEX('2024-25 Data'!$B$3:$CA$23,MATCH($N$6,dfenums,0),MATCH(C33,'2024-25 Data'!$B$2:$CA$2,0))) ->  | P33: =IF(ISERROR(N33/VLOOKUP($N$6,'2024-25 Data'!$A$3:$H$23,8,0)),"",N33/VLOOKUP($N$6,'2024-25 Data'!$A$3:$H$23,8,0)) ->  | S33: =IF(ISERROR(INDEX('2024-25 Data'!$B$3:$CA$23,MATCH($S$6,dfenums,0),MATCH(C33,'2024-25 Data'!$B$2:$CA$2,0))),"",INDEX('2024-25 Data'!$B$3:$CA$23,MATCH($S$6,dfenums,0),MATCH(C33,'2024-25 Data'!$B$2:$CA$2,0))) ->  | U33: =IF(ISERROR(S33/VLOOKUP($S$6,'2024-25 Data'!$A$3:$H$23,8,0)),"",S33/VLOOKUP($S$6,'2024-25 Data'!$A$3:$H$23,8,0)) -> 
B34: IT learning resources | C34: E20C | D34: =IF(ISERROR(INDEX('2024-25 Data'!$B$3:$CA$23,MATCH($D$4,dfenums,0),MATCH(C34,'2024-25 Data'!$B$2:$CA$2,0))),"",INDEX('2024-25 Data'!$B$3:$CA$23,MATCH($D$4,dfenums,0),MATCH(C34,'2024-25 Data'!$B$2:$CA$2,0))) ->  | F34: =IF(ISERROR(D34/VLOOKUP($D$4,'2024-25 Data'!$A$3:$H$23,8,0)),"",D34/VLOOKUP($D$4,'2024-25 Data'!$A$3:$H$23,8,0)) ->  | I34: =IF(ISERROR(INDEX('2024-25 Data'!$B$3:$CA$23,MATCH($I$6,dfenums,0),MATCH(C34,'2024-25 Data'!$B$2:$CA$2,0))),"",INDEX('2024-25 Data'!$B$3:$CA$23,MATCH($I$6,dfenums,0),MATCH(C34,'2024-25 Data'!$B$2:$CA$2,0))) ->  | K34: =IF(ISERROR(I34/VLOOKUP($I$6,'2024-25 Data'!$A$3:$H$23,8,0)),"",I34/VLOOKUP($I$6,'2024-25 Data'!$A$3:$H$23,8,0)) ->  | N34: =IF(ISERROR(INDEX('2024-25 Data'!$B$3:$CA$23,MATCH($N$6,dfenums,0),MATCH(C34,'2024-25 Data'!$B$2:$CA$2,0))),"",INDEX('2024-25 Data'!$B$3:$CA$23,MATCH($N$6,dfenums,0),MATCH(C34,'2024-25 Data'!$B$2:$CA$2,0))) ->  | P34: =IF(ISERROR(N34/VLOOKUP($N$6,'2024-25 Data'!$A$3:$H$23,8,0)),"",N34/VLOOKUP($N$6,'2024-25 Data'!$A$3:$H$23,8,0)) ->  | S34: =IF(ISERROR(INDEX('2024-25 Data'!$B$3:$CA$23,MATCH($S$6,dfenums,0),MATCH(C34,'2024-25 Data'!$B$2:$CA$2,0))),"",INDEX('2024-25 Data'!$B$3:$CA$23,MATCH($S$6,dfenums,0),MATCH(C34,'2024-25 Data'!$B$2:$CA$2,0))) ->  | U34: =IF(ISERROR(S34/VLOOKUP($S$6,'2024-25 Data'!$A$3:$H$23,8,0)),"",S34/VLOOKUP($S$6,'2024-25 Data'!$A$3:$H$23,8,0)) -> 
B35: Administration software and systems | C35: E20D | D35: =IF(ISERROR(INDEX('2024-25 Data'!$B$3:$CA$23,MATCH($D$4,dfenums,0),MATCH(C35,'2024-25 Data'!$B$2:$CA$2,0))),"",INDEX('2024-25 Data'!$B$3:$CA$23,MATCH($D$4,dfenums,0),MATCH(C35,'2024-25 Data'!$B$2:$CA$2,0))) ->  | F35: =IF(ISERROR(D35/VLOOKUP($D$4,'2024-25 Data'!$A$3:$H$23,8,0)),"",D35/VLOOKUP($D$4,'2024-25 Data'!$A$3:$H$23,8,0)) ->  | I35: =IF(ISERROR(INDEX('2024-25 Data'!$B$3:$CA$23,MATCH($I$6,dfenums,0),MATCH(C35,'2024-25 Data'!$B$2:$CA$2,0))),"",INDEX('2024-25 Data'!$B$3:$CA$23,MATCH($I$6,dfenums,0),MATCH(C35,'2024-25 Data'!$B$2:$CA$2,0))) ->  | K35: =IF(ISERROR(I35/VLOOKUP($I$6,'2024-25 Data'!$A$3:$H$23,8,0)),"",I35/VLOOKUP($I$6,'2024-25 Data'!$A$3:$H$23,8,0)) ->  | N35: =IF(ISERROR(INDEX('2024-25 Data'!$B$3:$CA$23,MATCH($N$6,dfenums,0),MATCH(C35,'2024-25 Data'!$B$2:$CA$2,0))),"",INDEX('2024-25 Data'!$B$3:$CA$23,MATCH($N$6,dfenums,0),MATCH(C35,'2024-25 Data'!$B$2:$CA$2,0))) ->  | P35: =IF(ISERROR(N35/VLOOKUP($N$6,'2024-25 Data'!$A$3:$H$23,8,0)),"",N35/VLOOKUP($N$6,'2024-25 Data'!$A$3:$H$23,8,0)) ->  | S35: =IF(ISERROR(INDEX('2024-25 Data'!$B$3:$CA$23,MATCH($S$6,dfenums,0),MATCH(C35,'2024-25 Data'!$B$2:$CA$2,0))),"",INDEX('2024-25 Data'!$B$3:$CA$23,MATCH($S$6,dfenums,0),MATCH(C35,'2024-25 Data'!$B$2:$CA$2,0))) ->  | U35: =IF(ISERROR(S35/VLOOKUP($S$6,'2024-25 Data'!$A$3:$H$23,8,0)),"",S35/VLOOKUP($S$6,'2024-25 Data'!$A$3:$H$23,8,0)) -> 
B36: Laptops, desktops and tablets | C36: E20E | D36: =IF(ISERROR(INDEX('2024-25 Data'!$B$3:$CA$23,MATCH($D$4,dfenums,0),MATCH(C36,'2024-25 Data'!$B$2:$CA$2,0))),"",INDEX('2024-25 Data'!$B$3:$CA$23,MATCH($D$4,dfenums,0),MATCH(C36,'2024-25 Data'!$B$2:$CA$2,0))) ->  | F36: =IF(ISERROR(D36/VLOOKUP($D$4,'2024-25 Data'!$A$3:$H$23,8,0)),"",D36/VLOOKUP($D$4,'2024-25 Data'!$A$3:$H$23,8,0)) ->  | I36: =IF(ISERROR(INDEX('2024-25 Data'!$B$3:$CA$23,MATCH($I$6,dfenums,0),MATCH(C36,'2024-25 Data'!$B$2:$CA$2,0))),"",INDEX('2024-25 Data'!$B$3:$CA$23,MATCH($I$6,dfenums,0),MATCH(C36,'2024-25 Data'!$B$2:$CA$2,0))) ->  | K36: =IF(ISERROR(I36/VLOOKUP($I$6,'2024-25 Data'!$A$3:$H$23,8,0)),"",I36/VLOOKUP($I$6,'2024-25 Data'!$A$3:$H$23,8,0)) ->  | N36: =IF(ISERROR(INDEX('2024-25 Data'!$B$3:$CA$23,MATCH($N$6,dfenums,0),MATCH(C36,'2024-25 Data'!$B$2:$CA$2,0))),"",INDEX('2024-25 Data'!$B$3:$CA$23,MATCH($N$6,dfenums,0),MATCH(C36,'2024-25 Data'!$B$2:$CA$2,0))) ->  | P36: =IF(ISERROR(N36/VLOOKUP($N$6,'2024-25 Data'!$A$3:$H$23,8,0)),"",N36/VLOOKUP($N$6,'2024-25 Data'!$A$3:$H$23,8,0)) ->  | S36: =IF(ISERROR(INDEX('2024-25 Data'!$B$3:$CA$23,MATCH($S$6,dfenums,0),MATCH(C36,'2024-25 Data'!$B$2:$CA$2,0))),"",INDEX('2024-25 Data'!$B$3:$CA$23,MATCH($S$6,dfenums,0),MATCH(C36,'2024-25 Data'!$B$2:$CA$2,0))) ->  | U36: =IF(ISERROR(S36/VLOOKUP($S$6,'2024-25 Data'!$A$3:$H$23,8,0)),"",S36/VLOOKUP($S$6,'2024-25 Data'!$A$3:$H$23,8,0)) -> 
B37: Other hardware | C37: E20F | D37: =IF(ISERROR(INDEX('2024-25 Data'!$B$3:$CA$23,MATCH($D$4,dfenums,0),MATCH(C37,'2024-25 Data'!$B$2:$CA$2,0))),"",INDEX('2024-25 Data'!$B$3:$CA$23,MATCH($D$4,dfenums,0),MATCH(C37,'2024-25 Data'!$B$2:$CA$2,0))) ->  | F37: =IF(ISERROR(D37/VLOOKUP($D$4,'2024-25 Data'!$A$3:$H$23,8,0)),"",D37/VLOOKUP($D$4,'2024-25 Data'!$A$3:$H$23,8,0)) ->  | I37: =IF(ISERROR(INDEX('2024-25 Data'!$B$3:$CA$23,MATCH($I$6,dfenums,0),MATCH(C37,'2024-25 Data'!$B$2:$CA$2,0))),"",INDEX('2024-25 Data'!$B$3:$CA$23,MATCH($I$6,dfenums,0),MATCH(C37,'2024-25 Data'!$B$2:$CA$2,0))) ->  | K37: =IF(ISERROR(I37/VLOOKUP($I$6,'2024-25 Data'!$A$3:$H$23,8,0)),"",I37/VLOOKUP($I$6,'2024-25 Data'!$A$3:$H$23,8,0)) ->  | N37: =IF(ISERROR(INDEX('2024-25 Data'!$B$3:$CA$23,MATCH($N$6,dfenums,0),MATCH(C37,'2024-25 Data'!$B$2:$CA$2,0))),"",INDEX('2024-25 Data'!$B$3:$CA$23,MATCH($N$6,dfenums,0),MATCH(C37,'2024-25 Data'!$B$2:$CA$2,0))) ->  | P37: =IF(ISERROR(N37/VLOOKUP($N$6,'2024-25 Data'!$A$3:$H$23,8,0)),"",N37/VLOOKUP($N$6,'2024-25 Data'!$A$3:$H$23,8,0)) ->  | S37: =IF(ISERROR(INDEX('2024-25 Data'!$B$3:$CA$23,MATCH($S$6,dfenums,0),MATCH(C37,'2024-25 Data'!$B$2:$CA$2,0))),"",INDEX('2024-25 Data'!$B$3:$CA$23,MATCH($S$6,dfenums,0),MATCH(C37,'2024-25 Data'!$B$2:$CA$2,0))) ->  | U37: =IF(ISERROR(S37/VLOOKUP($S$6,'2024-25 Data'!$A$3:$H$23,8,0)),"",S37/VLOOKUP($S$6,'2024-25 Data'!$A$3:$H$23,8,0)) -> 
B38: IT support | C38: E20G | D38: =IF(ISERROR(INDEX('2024-25 Data'!$B$3:$CA$23,MATCH($D$4,dfenums,0),MATCH(C38,'2024-25 Data'!$B$2:$CA$2,0))),"",INDEX('2024-25 Data'!$B$3:$CA$23,MATCH($D$4,dfenums,0),MATCH(C38,'2024-25 Data'!$B$2:$CA$2,0))) ->  | F38: =IF(ISERROR(D38/VLOOKUP($D$4,'2024-25 Data'!$A$3:$H$23,8,0)),"",D38/VLOOKUP($D$4,'2024-25 Data'!$A$3:$H$23,8,0)) ->  | I38: =IF(ISERROR(INDEX('2024-25 Data'!$B$3:$CA$23,MATCH($I$6,dfenums,0),MATCH(C38,'2024-25 Data'!$B$2:$CA$2,0))),"",INDEX('2024-25 Data'!$B$3:$CA$23,MATCH($I$6,dfenums,0),MATCH(C38,'2024-25 Data'!$B$2:$CA$2,0))) ->  | K38: =IF(ISERROR(I38/VLOOKUP($I$6,'2024-25 Data'!$A$3:$H$23,8,0)),"",I38/VLOOKUP($I$6,'2024-25 Data'!$A$3:$H$23,8,0)) ->  | N38: =IF(ISERROR(INDEX('2024-25 Data'!$B$3:$CA$23,MATCH($N$6,dfenums,0),MATCH(C38,'2024-25 Data'!$B$2:$CA$2,0))),"",INDEX('2024-25 Data'!$B$3:$CA$23,MATCH($N$6,dfenums,0),MATCH(C38,'2024-25 Data'!$B$2:$CA$2,0))) ->  | P38: =IF(ISERROR(N38/VLOOKUP($N$6,'2024-25 Data'!$A$3:$H$23,8,0)),"",N38/VLOOKUP($N$6,'2024-25 Data'!$A$3:$H$23,8,0)) ->  | S38: =IF(ISERROR(INDEX('2024-25 Data'!$B$3:$CA$23,MATCH($S$6,dfenums,0),MATCH(C38,'2024-25 Data'!$B$2:$CA$2,0))),"",INDEX('2024-25 Data'!$B$3:$CA$23,MATCH($S$6,dfenums,0),MATCH(C38,'2024-25 Data'!$B$2:$CA$2,0))) ->  | U38: =IF(ISERROR(S38/VLOOKUP($S$6,'2024-25 Data'!$A$3:$H$23,8,0)),"",S38/VLOOKUP($S$6,'2024-25 Data'!$A$3:$H$23,8,0)) -> 
B39: Exam fees | C39: E21 | D39: =IF(ISERROR(INDEX('2024-25 Data'!$B$3:$CA$23,MATCH($D$4,dfenums,0),MATCH(C39,'2024-25 Data'!$B$2:$CA$2,0))),"",INDEX('2024-25 Data'!$B$3:$CA$23,MATCH($D$4,dfenums,0),MATCH(C39,'2024-25 Data'!$B$2:$CA$2,0))) ->  | F39: =IF(ISERROR(D39/VLOOKUP($D$4,'2024-25 Data'!$A$3:$H$23,8,0)),"",D39/VLOOKUP($D$4,'2024-25 Data'!$A$3:$H$23,8,0)) ->  | I39: =IF(ISERROR(INDEX('2024-25 Data'!$B$3:$CA$23,MATCH($I$6,dfenums,0),MATCH(C39,'2024-25 Data'!$B$2:$CA$2,0))),"",INDEX('2024-25 Data'!$B$3:$CA$23,MATCH($I$6,dfenums,0),MATCH(C39,'2024-25 Data'!$B$2:$CA$2,0))) ->  | K39: =IF(ISERROR(I39/VLOOKUP($I$6,'2024-25 Data'!$A$3:$H$23,8,0)),"",I39/VLOOKUP($I$6,'2024-25 Data'!$A$3:$H$23,8,0)) ->  | N39: =IF(ISERROR(INDEX('2024-25 Data'!$B$3:$CA$23,MATCH($N$6,dfenums,0),MATCH(C39,'2024-25 Data'!$B$2:$CA$2,0))),"",INDEX('2024-25 Data'!$B$3:$CA$23,MATCH($N$6,dfenums,0),MATCH(C39,'2024-25 Data'!$B$2:$CA$2,0))) ->  | P39: =IF(ISERROR(N39/VLOOKUP($N$6,'2024-25 Data'!$A$3:$H$23,8,0)),"",N39/VLOOKUP($N$6,'2024-25 Data'!$A$3:$H$23,8,0)) ->  | S39: =IF(ISERROR(INDEX('2024-25 Data'!$B$3:$CA$23,MATCH($S$6,dfenums,0),MATCH(C39,'2024-25 Data'!$B$2:$CA$2,0))),"",INDEX('2024-25 Data'!$B$3:$CA$23,MATCH($S$6,dfenums,0),MATCH(C39,'2024-25 Data'!$B$2:$CA$2,0))) ->  | U39: =IF(ISERROR(S39/VLOOKUP($S$6,'2024-25 Data'!$A$3:$H$23,8,0)),"",S39/VLOOKUP($S$6,'2024-25 Data'!$A$3:$H$23,8,0)) -> 
B40: Administrative supplies | C40: E22 | D40: =IF(ISERROR(INDEX('2024-25 Data'!$B$3:$CA$23,MATCH($D$4,dfenums,0),MATCH(C40,'2024-25 Data'!$B$2:$CA$2,0))),"",INDEX('2024-25 Data'!$B$3:$CA$23,MATCH($D$4,dfenums,0),MATCH(C40,'2024-25 Data'!$B$2:$CA$2,0))) ->  | F40: =IF(ISERROR(D40/VLOOKUP($D$4,'2024-25 Data'!$A$3:$H$23,8,0)),"",D40/VLOOKUP($D$4,'2024-25 Data'!$A$3:$H$23,8,0)) ->  | I40: =IF(ISERROR(INDEX('2024-25 Data'!$B$3:$CA$23,MATCH($I$6,dfenums,0),MATCH(C40,'2024-25 Data'!$B$2:$CA$2,0))),"",INDEX('2024-25 Data'!$B$3:$CA$23,MATCH($I$6,dfenums,0),MATCH(C40,'2024-25 Data'!$B$2:$CA$2,0))) ->  | K40: =IF(ISERROR(I40/VLOOKUP($I$6,'2024-25 Data'!$A$3:$H$23,8,0)),"",I40/VLOOKUP($I$6,'2024-25 Data'!$A$3:$H$23,8,0)) ->  | N40: =IF(ISERROR(INDEX('2024-25 Data'!$B$3:$CA$23,MATCH($N$6,dfenums,0),MATCH(C40,'2024-25 Data'!$B$2:$CA$2,0))),"",INDEX('2024-25 Data'!$B$3:$CA$23,MATCH($N$6,dfenums,0),MATCH(C40,'2024-25 Data'!$B$2:$CA$2,0))) ->  | P40: =IF(ISERROR(N40/VLOOKUP($N$6,'2024-25 Data'!$A$3:$H$23,8,0)),"",N40/VLOOKUP($N$6,'2024-25 Data'!$A$3:$H$23,8,0)) ->  | S40: =IF(ISERROR(INDEX('2024-25 Data'!$B$3:$CA$23,MATCH($S$6,dfenums,0),MATCH(C40,'2024-25 Data'!$B$2:$CA$2,0))),"",INDEX('2024-25 Data'!$B$3:$CA$23,MATCH($S$6,dfenums,0),MATCH(C40,'2024-25 Data'!$B$2:$CA$2,0))) ->  | U40: =IF(ISERROR(S40/VLOOKUP($S$6,'2024-25 Data'!$A$3:$H$23,8,0)),"",S40/VLOOKUP($S$6,'2024-25 Data'!$A$3:$H$23,8,0)) -> 
B41: Other insurance premiums | C41: E23 | D41: =IF(ISERROR(INDEX('2024-25 Data'!$B$3:$CA$23,MATCH($D$4,dfenums,0),MATCH(C41,'2024-25 Data'!$B$2:$CA$2,0))),"",INDEX('2024-25 Data'!$B$3:$CA$23,MATCH($D$4,dfenums,0),MATCH(C41,'2024-25 Data'!$B$2:$CA$2,0))) ->  | F41: =IF(ISERROR(D41/VLOOKUP($D$4,'2024-25 Data'!$A$3:$H$23,8,0)),"",D41/VLOOKUP($D$4,'2024-25 Data'!$A$3:$H$23,8,0)) ->  | I41: =IF(ISERROR(INDEX('2024-25 Data'!$B$3:$CA$23,MATCH($I$6,dfenums,0),MATCH(C41,'2024-25 Data'!$B$2:$CA$2,0))),"",INDEX('2024-25 Data'!$B$3:$CA$23,MATCH($I$6,dfenums,0),MATCH(C41,'2024-25 Data'!$B$2:$CA$2,0))) ->  | K41: =IF(ISERROR(I41/VLOOKUP($I$6,'2024-25 Data'!$A$3:$H$23,8,0)),"",I41/VLOOKUP($I$6,'2024-25 Data'!$A$3:$H$23,8,0)) ->  | N41: =IF(ISERROR(INDEX('2024-25 Data'!$B$3:$CA$23,MATCH($N$6,dfenums,0),MATCH(C41,'2024-25 Data'!$B$2:$CA$2,0))),"",INDEX('2024-25 Data'!$B$3:$CA$23,MATCH($N$6,dfenums,0),MATCH(C41,'2024-25 Data'!$B$2:$CA$2,0))) ->  | P41: =IF(ISERROR(N41/VLOOKUP($N$6,'2024-25 Data'!$A$3:$H$23,8,0)),"",N41/VLOOKUP($N$6,'2024-25 Data'!$A$3:$H$23,8,0)) ->  | S41: =IF(ISERROR(INDEX('2024-25 Data'!$B$3:$CA$23,MATCH($S$6,dfenums,0),MATCH(C41,'2024-25 Data'!$B$2:$CA$2,0))),"",INDEX('2024-25 Data'!$B$3:$CA$23,MATCH($S$6,dfenums,0),MATCH(C41,'2024-25 Data'!$B$2:$CA$2,0))) ->  | U41: =IF(ISERROR(S41/VLOOKUP($S$6,'2024-25 Data'!$A$3:$H$23,8,0)),"",S41/VLOOKUP($S$6,'2024-25 Data'!$A$3:$H$23,8,0)) -> 
B42: Special facilities | C42: E24 | D42: =IF(ISERROR(INDEX('2024-25 Data'!$B$3:$CA$23,MATCH($D$4,dfenums,0),MATCH(C42,'2024-25 Data'!$B$2:$CA$2,0))),"",INDEX('2024-25 Data'!$B$3:$CA$23,MATCH($D$4,dfenums,0),MATCH(C42,'2024-25 Data'!$B$2:$CA$2,0))) ->  | F42: =IF(ISERROR(D42/VLOOKUP($D$4,'2024-25 Data'!$A$3:$H$23,8,0)),"",D42/VLOOKUP($D$4,'2024-25 Data'!$A$3:$H$23,8,0)) ->  | I42: =IF(ISERROR(INDEX('2024-25 Data'!$B$3:$CA$23,MATCH($I$6,dfenums,0),MATCH(C42,'2024-25 Data'!$B$2:$CA$2,0))),"",INDEX('2024-25 Data'!$B$3:$CA$23,MATCH($I$6,dfenums,0),MATCH(C42,'2024-25 Data'!$B$2:$CA$2,0))) ->  | K42: =IF(ISERROR(I42/VLOOKUP($I$6,'2024-25 Data'!$A$3:$H$23,8,0)),"",I42/VLOOKUP($I$6,'2024-25 Data'!$A$3:$H$23,8,0)) ->  | N42: =IF(ISERROR(INDEX('2024-25 Data'!$B$3:$CA$23,MATCH($N$6,dfenums,0),MATCH(C42,'2024-25 Data'!$B$2:$CA$2,0))),"",INDEX('2024-25 Data'!$B$3:$CA$23,MATCH($N$6,dfenums,0),MATCH(C42,'2024-25 Data'!$B$2:$CA$2,0))) ->  | P42: =IF(ISERROR(N42/VLOOKUP($N$6,'2024-25 Data'!$A$3:$H$23,8,0)),"",N42/VLOOKUP($N$6,'2024-25 Data'!$A$3:$H$23,8,0)) ->  | S42: =IF(ISERROR(INDEX('2024-25 Data'!$B$3:$CA$23,MATCH($S$6,dfenums,0),MATCH(C42,'2024-25 Data'!$B$2:$CA$2,0))),"",INDEX('2024-25 Data'!$B$3:$CA$23,MATCH($S$6,dfenums,0),MATCH(C42,'2024-25 Data'!$B$2:$CA$2,0))) ->  | U42: =IF(ISERROR(S42/VLOOKUP($S$6,'2024-25 Data'!$A$3:$H$23,8,0)),"",S42/VLOOKUP($S$6,'2024-25 Data'!$A$3:$H$23,8,0)) -> 
B43: Catering supplies | C43: E25 | D43: =IF(ISERROR(INDEX('2024-25 Data'!$B$3:$CA$23,MATCH($D$4,dfenums,0),MATCH(C43,'2024-25 Data'!$B$2:$CA$2,0))),"",INDEX('2024-25 Data'!$B$3:$CA$23,MATCH($D$4,dfenums,0),MATCH(C43,'2024-25 Data'!$B$2:$CA$2,0))) ->  | F43: =IF(ISERROR(D43/VLOOKUP($D$4,'2024-25 Data'!$A$3:$H$23,8,0)),"",D43/VLOOKUP($D$4,'2024-25 Data'!$A$3:$H$23,8,0)) ->  | I43: =IF(ISERROR(INDEX('2024-25 Data'!$B$3:$CA$23,MATCH($I$6,dfenums,0),MATCH(C43,'2024-25 Data'!$B$2:$CA$2,0))),"",INDEX('2024-25 Data'!$B$3:$CA$23,MATCH($I$6,dfenums,0),MATCH(C43,'2024-25 Data'!$B$2:$CA$2,0))) ->  | K43: =IF(ISERROR(I43/VLOOKUP($I$6,'2024-25 Data'!$A$3:$H$23,8,0)),"",I43/VLOOKUP($I$6,'2024-25 Data'!$A$3:$H$23,8,0)) ->  | N43: =IF(ISERROR(INDEX('2024-25 Data'!$B$3:$CA$23,MATCH($N$6,dfenums,0),MATCH(C43,'2024-25 Data'!$B$2:$CA$2,0))),"",INDEX('2024-25 Data'!$B$3:$CA$23,MATCH($N$6,dfenums,0),MATCH(C43,'2024-25 Data'!$B$2:$CA$2,0))) ->  | P43: =IF(ISERROR(N43/VLOOKUP($N$6,'2024-25 Data'!$A$3:$H$23,8,0)),"",N43/VLOOKUP($N$6,'2024-25 Data'!$A$3:$H$23,8,0)) ->  | S43: =IF(ISERROR(INDEX('2024-25 Data'!$B$3:$CA$23,MATCH($S$6,dfenums,0),MATCH(C43,'2024-25 Data'!$B$2:$CA$2,0))),"",INDEX('2024-25 Data'!$B$3:$CA$23,MATCH($S$6,dfenums,0),MATCH(C43,'2024-25 Data'!$B$2:$CA$2,0))) ->  | U43: =IF(ISERROR(S43/VLOOKUP($S$6,'2024-25 Data'!$A$3:$H$23,8,0)),"",S43/VLOOKUP($S$6,'2024-25 Data'!$A$3:$H$23,8,0)) -> 
B44: Agency supply teaching staff | C44: E26 | D44: =IF(ISERROR(INDEX('2024-25 Data'!$B$3:$CA$23,MATCH($D$4,dfenums,0),MATCH(C44,'2024-25 Data'!$B$2:$CA$2,0))),"",INDEX('2024-25 Data'!$B$3:$CA$23,MATCH($D$4,dfenums,0),MATCH(C44,'2024-25 Data'!$B$2:$CA$2,0))) ->  | F44: =IF(ISERROR(D44/VLOOKUP($D$4,'2024-25 Data'!$A$3:$H$23,8,0)),"",D44/VLOOKUP($D$4,'2024-25 Data'!$A$3:$H$23,8,0)) ->  | I44: =IF(ISERROR(INDEX('2024-25 Data'!$B$3:$CA$23,MATCH($I$6,dfenums,0),MATCH(C44,'2024-25 Data'!$B$2:$CA$2,0))),"",INDEX('2024-25 Data'!$B$3:$CA$23,MATCH($I$6,dfenums,0),MATCH(C44,'2024-25 Data'!$B$2:$CA$2,0))) ->  | K44: =IF(ISERROR(I44/VLOOKUP($I$6,'2024-25 Data'!$A$3:$H$23,8,0)),"",I44/VLOOKUP($I$6,'2024-25 Data'!$A$3:$H$23,8,0)) ->  | N44: =IF(ISERROR(INDEX('2024-25 Data'!$B$3:$CA$23,MATCH($N$6,dfenums,0),MATCH(C44,'2024-25 Data'!$B$2:$CA$2,0))),"",INDEX('2024-25 Data'!$B$3:$CA$23,MATCH($N$6,dfenums,0),MATCH(C44,'2024-25 Data'!$B$2:$CA$2,0))) ->  | P44: =IF(ISERROR(N44/VLOOKUP($N$6,'2024-25 Data'!$A$3:$H$23,8,0)),"",N44/VLOOKUP($N$6,'2024-25 Data'!$A$3:$H$23,8,0)) ->  | S44: =IF(ISERROR(INDEX('2024-25 Data'!$B$3:$CA$23,MATCH($S$6,dfenums,0),MATCH(C44,'2024-25 Data'!$B$2:$CA$2,0))),"",INDEX('2024-25 Data'!$B$3:$CA$23,MATCH($S$6,dfenums,0),MATCH(C44,'2024-25 Data'!$B$2:$CA$2,0))) ->  | U44: =IF(ISERROR(S44/VLOOKUP($S$6,'2024-25 Data'!$A$3:$H$23,8,0)),"",S44/VLOOKUP($S$6,'2024-25 Data'!$A$3:$H$23,8,0)) -> 
B45: Bought in professional services - curriculum | C45: E27 | D45: =IF(ISERROR(INDEX('2024-25 Data'!$B$3:$CA$23,MATCH($D$4,dfenums,0),MATCH(C45,'2024-25 Data'!$B$2:$CA$2,0))),"",INDEX('2024-25 Data'!$B$3:$CA$23,MATCH($D$4,dfenums,0),MATCH(C45,'2024-25 Data'!$B$2:$CA$2,0))) ->  | F45: =IF(ISERROR(D45/VLOOKUP($D$4,'2024-25 Data'!$A$3:$H$23,8,0)),"",D45/VLOOKUP($D$4,'2024-25 Data'!$A$3:$H$23,8,0)) ->  | I45: =IF(ISERROR(INDEX('2024-25 Data'!$B$3:$CA$23,MATCH($I$6,dfenums,0),MATCH(C45,'2024-25 Data'!$B$2:$CA$2,0))),"",INDEX('2024-25 Data'!$B$3:$CA$23,MATCH($I$6,dfenums,0),MATCH(C45,'2024-25 Data'!$B$2:$CA$2,0))) ->  | K45: =IF(ISERROR(I45/VLOOKUP($I$6,'2024-25 Data'!$A$3:$H$23,8,0)),"",I45/VLOOKUP($I$6,'2024-25 Data'!$A$3:$H$23,8,0)) ->  | N45: =IF(ISERROR(INDEX('2024-25 Data'!$B$3:$CA$23,MATCH($N$6,dfenums,0),MATCH(C45,'2024-25 Data'!$B$2:$CA$2,0))),"",INDEX('2024-25 Data'!$B$3:$CA$23,MATCH($N$6,dfenums,0),MATCH(C45,'2024-25 Data'!$B$2:$CA$2,0))) ->  | P45: =IF(ISERROR(N45/VLOOKUP($N$6,'2024-25 Data'!$A$3:$H$23,8,0)),"",N45/VLOOKUP($N$6,'2024-25 Data'!$A$3:$H$23,8,0)) ->  | S45: =IF(ISERROR(INDEX('2024-25 Data'!$B$3:$CA$23,MATCH($S$6,dfenums,0),MATCH(C45,'2024-25 Data'!$B$2:$CA$2,0))),"",INDEX('2024-25 Data'!$B$3:$CA$23,MATCH($S$6,dfenums,0),MATCH(C45,'2024-25 Data'!$B$2:$CA$2,0))) ->  | U45: =IF(ISERROR(S45/VLOOKUP($S$6,'2024-25 Data'!$A$3:$H$23,8,0)),"",S45/VLOOKUP($S$6,'2024-25 Data'!$A$3:$H$23,8,0)) -> 
B46: Bought in professional services other | C46: E28 | D46: =IF(ISERROR(INDEX('2024-25 Data'!$B$3:$CA$23,MATCH($D$4,dfenums,0),MATCH(C46,'2024-25 Data'!$B$2:$CA$2,0))),"",INDEX('2024-25 Data'!$B$3:$CA$23,MATCH($D$4,dfenums,0),MATCH(C46,'2024-25 Data'!$B$2:$CA$2,0))) ->  | F46: =IF(ISERROR(D46/VLOOKUP($D$4,'2024-25 Data'!$A$3:$H$23,8,0)),"",D46/VLOOKUP($D$4,'2024-25 Data'!$A$3:$H$23,8,0)) ->  | I46: =IF(ISERROR(INDEX('2024-25 Data'!$B$3:$CA$23,MATCH($I$6,dfenums,0),MATCH(C46,'2024-25 Data'!$B$2:$CA$2,0))),"",INDEX('2024-25 Data'!$B$3:$CA$23,MATCH($I$6,dfenums,0),MATCH(C46,'2024-25 Data'!$B$2:$CA$2,0))) ->  | K46: =IF(ISERROR(I46/VLOOKUP($I$6,'2024-25 Data'!$A$3:$H$23,8,0)),"",I46/VLOOKUP($I$6,'2024-25 Data'!$A$3:$H$23,8,0)) ->  | N46: =IF(ISERROR(INDEX('2024-25 Data'!$B$3:$CA$23,MATCH($N$6,dfenums,0),MATCH(C46,'2024-25 Data'!$B$2:$CA$2,0))),"",INDEX('2024-25 Data'!$B$3:$CA$23,MATCH($N$6,dfenums,0),MATCH(C46,'2024-25 Data'!$B$2:$CA$2,0))) ->  | P46: =IF(ISERROR(N46/VLOOKUP($N$6,'2024-25 Data'!$A$3:$H$23,8,0)),"",N46/VLOOKUP($N$6,'2024-25 Data'!$A$3:$H$23,8,0)) ->  | S46: =IF(ISERROR(INDEX('2024-25 Data'!$B$3:$CA$23,MATCH($S$6,dfenums,0),MATCH(C46,'2024-25 Data'!$B$2:$CA$2,0))),"",INDEX('2024-25 Data'!$B$3:$CA$23,MATCH($S$6,dfenums,0),MATCH(C46,'2024-25 Data'!$B$2:$CA$2,0))) ->  | U46: =IF(ISERROR(S46/VLOOKUP($S$6,'2024-25 Data'!$A$3:$H$23,8,0)),"",S46/VLOOKUP($S$6,'2024-25 Data'!$A$3:$H$23,8,0)) -> 
B47: Loan interest | C47: E29 | D47: =IF(ISERROR(INDEX('2024-25 Data'!$B$3:$CA$23,MATCH($D$4,dfenums,0),MATCH(C47,'2024-25 Data'!$B$2:$CA$2,0))),"",INDEX('2024-25 Data'!$B$3:$CA$23,MATCH($D$4,dfenums,0),MATCH(C47,'2024-25 Data'!$B$2:$CA$2,0))) ->  | F47: =IF(ISERROR(D47/VLOOKUP($D$4,'2024-25 Data'!$A$3:$H$23,8,0)),"",D47/VLOOKUP($D$4,'2024-25 Data'!$A$3:$H$23,8,0)) ->  | I47: =IF(ISERROR(INDEX('2024-25 Data'!$B$3:$CA$23,MATCH($I$6,dfenums,0),MATCH(C47,'2024-25 Data'!$B$2:$CA$2,0))),"",INDEX('2024-25 Data'!$B$3:$CA$23,MATCH($I$6,dfenums,0),MATCH(C47,'2024-25 Data'!$B$2:$CA$2,0))) ->  | K47: =IF(ISERROR(I47/VLOOKUP($I$6,'2024-25 Data'!$A$3:$H$23,8,0)),"",I47/VLOOKUP($I$6,'2024-25 Data'!$A$3:$H$23,8,0)) ->  | N47: =IF(ISERROR(INDEX('2024-25 Data'!$B$3:$CA$23,MATCH($N$6,dfenums,0),MATCH(C47,'2024-25 Data'!$B$2:$CA$2,0))),"",INDEX('2024-25 Data'!$B$3:$CA$23,MATCH($N$6,dfenums,0),MATCH(C47,'2024-25 Data'!$B$2:$CA$2,0))) ->  | P47: =IF(ISERROR(N47/VLOOKUP($N$6,'2024-25 Data'!$A$3:$H$23,8,0)),"",N47/VLOOKUP($N$6,'2024-25 Data'!$A$3:$H$23,8,0)) ->  | S47: =IF(ISERROR(INDEX('2024-25 Data'!$B$3:$CA$23,MATCH($S$6,dfenums,0),MATCH(C47,'2024-25 Data'!$B$2:$CA$2,0))),"",INDEX('2024-25 Data'!$B$3:$CA$23,MATCH($S$6,dfenums,0),MATCH(C47,'2024-25 Data'!$B$2:$CA$2,0))) ->  | U47: =IF(ISERROR(S47/VLOOKUP($S$6,'2024-25 Data'!$A$3:$H$23,8,0)),"",S47/VLOOKUP($S$6,'2024-25 Data'!$A$3:$H$23,8,0)) -> 
B48: Direct revenue financing (revenue contrib. to capital) | C48: E30 | D48: =IF(ISERROR(INDEX('2024-25 Data'!$B$3:$CA$23,MATCH($D$4,dfenums,0),MATCH(C48,'2024-25 Data'!$B$2:$CA$2,0))),"",INDEX('2024-25 Data'!$B$3:$CA$23,MATCH($D$4,dfenums,0),MATCH(C48,'2024-25 Data'!$B$2:$CA$2,0))) ->  | F48: =IF(ISERROR(D48/VLOOKUP($D$4,'2024-25 Data'!$A$3:$H$23,8,0)),"",D48/VLOOKUP($D$4,'2024-25 Data'!$A$3:$H$23,8,0)) ->  | I48: =IF(ISERROR(INDEX('2024-25 Data'!$B$3:$CA$23,MATCH($I$6,dfenums,0),MATCH(C48,'2024-25 Data'!$B$2:$CA$2,0))),"",INDEX('2024-25 Data'!$B$3:$CA$23,MATCH($I$6,dfenums,0),MATCH(C48,'2024-25 Data'!$B$2:$CA$2,0))) ->  | K48: =IF(ISERROR(I48/VLOOKUP($I$6,'2024-25 Data'!$A$3:$H$23,8,0)),"",I48/VLOOKUP($I$6,'2024-25 Data'!$A$3:$H$23,8,0)) ->  | N48: =IF(ISERROR(INDEX('2024-25 Data'!$B$3:$CA$23,MATCH($N$6,dfenums,0),MATCH(C48,'2024-25 Data'!$B$2:$CA$2,0))),"",INDEX('2024-25 Data'!$B$3:$CA$23,MATCH($N$6,dfenums,0),MATCH(C48,'2024-25 Data'!$B$2:$CA$2,0))) ->  | P48: =IF(ISERROR(N48/VLOOKUP($N$6,'2024-25 Data'!$A$3:$H$23,8,0)),"",N48/VLOOKUP($N$6,'2024-25 Data'!$A$3:$H$23,8,0)) ->  | S48: =IF(ISERROR(INDEX('2024-25 Data'!$B$3:$CA$23,MATCH($S$6,dfenums,0),MATCH(C48,'2024-25 Data'!$B$2:$CA$2,0))),"",INDEX('2024-25 Data'!$B$3:$CA$23,MATCH($S$6,dfenums,0),MATCH(C48,'2024-25 Data'!$B$2:$CA$2,0))) ->  | U48: =IF(ISERROR(S48/VLOOKUP($S$6,'2024-25 Data'!$A$3:$H$23,8,0)),"",S48/VLOOKUP($S$6,'2024-25 Data'!$A$3:$H$23,8,0)) -> 
B49: Community focussed extended school staff | C49: E31 | D49: =IF(ISERROR(INDEX('2024-25 Data'!$B$3:$CA$23,MATCH($D$4,dfenums,0),MATCH(C49,'2024-25 Data'!$B$2:$CA$2,0))),"",INDEX('2024-25 Data'!$B$3:$CA$23,MATCH($D$4,dfenums,0),MATCH(C49,'2024-25 Data'!$B$2:$CA$2,0))) ->  | F49: =IF(ISERROR(D49/VLOOKUP($D$4,'2024-25 Data'!$A$3:$H$23,8,0)),"",D49/VLOOKUP($D$4,'2024-25 Data'!$A$3:$H$23,8,0)) ->  | I49: =IF(ISERROR(INDEX('2024-25 Data'!$B$3:$CA$23,MATCH($I$6,dfenums,0),MATCH(C49,'2024-25 Data'!$B$2:$CA$2,0))),"",INDEX('2024-25 Data'!$B$3:$CA$23,MATCH($I$6,dfenums,0),MATCH(C49,'2024-25 Data'!$B$2:$CA$2,0))) ->  | K49: =IF(ISERROR(I49/VLOOKUP($I$6,'2024-25 Data'!$A$3:$H$23,8,0)),"",I49/VLOOKUP($I$6,'2024-25 Data'!$A$3:$H$23,8,0)) ->  | N49: =IF(ISERROR(INDEX('2024-25 Data'!$B$3:$CA$23,MATCH($N$6,dfenums,0),MATCH(C49,'2024-25 Data'!$B$2:$CA$2,0))),"",INDEX('2024-25 Data'!$B$3:$CA$23,MATCH($N$6,dfenums,0),MATCH(C49,'2024-25 Data'!$B$2:$CA$2,0))) ->  | P49: =IF(ISERROR(N49/VLOOKUP($N$6,'2024-25 Data'!$A$3:$H$23,8,0)),"",N49/VLOOKUP($N$6,'2024-25 Data'!$A$3:$H$23,8,0)) ->  | S49: =IF(ISERROR(INDEX('2024-25 Data'!$B$3:$CA$23,MATCH($S$6,dfenums,0),MATCH(C49,'2024-25 Data'!$B$2:$CA$2,0))),"",INDEX('2024-25 Data'!$B$3:$CA$23,MATCH($S$6,dfenums,0),MATCH(C49,'2024-25 Data'!$B$2:$CA$2,0))) ->  | U49: =IF(ISERROR(S49/VLOOKUP($S$6,'2024-25 Data'!$A$3:$H$23,8,0)),"",S49/VLOOKUP($S$6,'2024-25 Data'!$A$3:$H$23,8,0)) -> 
B50: Community focussed extended school costs | C50: E32 | D50: =IF(ISERROR(INDEX('2024-25 Data'!$B$3:$CA$23,MATCH($D$4,dfenums,0),MATCH(C50,'2024-25 Data'!$B$2:$CA$2,0))),"",INDEX('2024-25 Data'!$B$3:$CA$23,MATCH($D$4,dfenums,0),MATCH(C50,'2024-25 Data'!$B$2:$CA$2,0))) ->  | F50: =IF(ISERROR(D50/VLOOKUP($D$4,'2024-25 Data'!$A$3:$H$23,8,0)),"",D50/VLOOKUP($D$4,'2024-25 Data'!$A$3:$H$23,8,0)) ->  | I50: =IF(ISERROR(INDEX('2024-25 Data'!$B$3:$CA$23,MATCH($I$6,dfenums,0),MATCH(C50,'2024-25 Data'!$B$2:$CA$2,0))),"",INDEX('2024-25 Data'!$B$3:$CA$23,MATCH($I$6,dfenums,0),MATCH(C50,'2024-25 Data'!$B$2:$CA$2,0))) ->  | K50: =IF(ISERROR(I50/VLOOKUP($I$6,'2024-25 Data'!$A$3:$H$23,8,0)),"",I50/VLOOKUP($I$6,'2024-25 Data'!$A$3:$H$23,8,0)) ->  | N50: =IF(ISERROR(INDEX('2024-25 Data'!$B$3:$CA$23,MATCH($N$6,dfenums,0),MATCH(C50,'2024-25 Data'!$B$2:$CA$2,0))),"",INDEX('2024-25 Data'!$B$3:$CA$23,MATCH($N$6,dfenums,0),MATCH(C50,'2024-25 Data'!$B$2:$CA$2,0))) ->  | P50: =IF(ISERROR(N50/VLOOKUP($N$6,'2024-25 Data'!$A$3:$H$23,8,0)),"",N50/VLOOKUP($N$6,'2024-25 Data'!$A$3:$H$23,8,0)) ->  | S50: =IF(ISERROR(INDEX('2024-25 Data'!$B$3:$CA$23,MATCH($S$6,dfenums,0),MATCH(C50,'2024-25 Data'!$B$2:$CA$2,0))),"",INDEX('2024-25 Data'!$B$3:$CA$23,MATCH($S$6,dfenums,0),MATCH(C50,'2024-25 Data'!$B$2:$CA$2,0))) ->  | U50: =IF(ISERROR(S50/VLOOKUP($S$6,'2024-25 Data'!$A$3:$H$23,8,0)),"",S50/VLOOKUP($S$6,'2024-25 Data'!$A$3:$H$23,8,0)) -> 
B51: Total Expenditure | D51: =SUM(D13:D50) -> 0 | E51: =SUM(E13:E50) -> 0 | F51: =SUM(F13:F50) -> 0 | G51: =SUM(G13:G50) -> 0 | I51: =SUM(I13:I50) -> 0 | J51: =SUM(J13:J50) -> 0 | K51: =SUM(K13:K50) -> 0 | L51: =SUM(L13:L50) -> 0 | N51: =SUM(N13:N50) -> 0 | O51: =SUM(O13:O50) -> 0 | P51: =SUM(P13:P50) -> 0 | Q51: =SUM(Q13:Q50) -> 0 | S51: =SUM(S13:S50) -> 0 | T51: =SUM(T13:T50) -> 0 | U51: =SUM(U13:U50) -> 0 | V51: =SUM(V13:V50) -> 0
B53: INCOME
B54: Funds delegated by the LEA | C54: I01 | D54: =IF(ISERROR(INDEX('2024-25 Data'!$B$3:$CA$23,MATCH($D$4,dfenums,0),MATCH(C54,'2024-25 Data'!$B$2:$CA$2,0))),"",INDEX('2024-25 Data'!$B$3:$CA$23,MATCH($D$4,dfenums,0),MATCH(C54,'2024-25 Data'!$B$2:$CA$2,0))) ->  | E54: =IF(ISERROR(D54/$G$4),"",D54/$G$4) ->  | F54: =IF(ISERROR(D54/VLOOKUP($D$4,'2024-25 Data'!$A$3:$H$23,8,0)),"",D54/VLOOKUP($D$4,'2024-25 Data'!$A$3:$H$23,8,0)) ->  | G54: =IF(ISERROR(D54/$D$51),"",D54/$D$51) ->  | I54: =IF(ISERROR(INDEX('2024-25 Data'!$B$3:$CA$23,MATCH($I$6,dfenums,0),MATCH(C54,'2024-25 Data'!$B$2:$CA$2,0))),"",INDEX('2024-25 Data'!$B$3:$CA$23,MATCH($I$6,dfenums,0),MATCH(C54,'2024-25 Data'!$B$2:$CA$2,0))) ->  | J54: =IF(ISERROR(I54/$J$6),"",I54/$J$6) ->  | K54: =IF(ISERROR(I54/VLOOKUP($I$6,'2024-25 Data'!$A$3:$H$23,8,0)),"",I54/VLOOKUP($I$6,'2024-25 Data'!$A$3:$H$23,8,0)) ->  | L54: =IF(ISERROR(I54/$I$51),"",I54/$I$51) ->  | N54: =IF(ISERROR(INDEX('2024-25 Data'!$B$3:$CA$23,MATCH($N$6,dfenums,0),MATCH(C54,'2024-25 Data'!$B$2:$CA$2,0))),"",INDEX('2024-25 Data'!$B$3:$CA$23,MATCH($N$6,dfenums,0),MATCH(C54,'2024-25 Data'!$B$2:$CA$2,0))) ->  | O54: =IF(ISERROR(N54/$O$6),"",N54/$O$6) ->  | P54: =IF(ISERROR(N54/VLOOKUP($N$6,'2024-25 Data'!$A$3:$H$23,8,0)),"",N54/VLOOKUP($N$6,'2024-25 Data'!$A$3:$H$23,8,0)) ->  | Q54: =IF(ISERROR(N54/$N$51),"",N54/$N$51) ->  | S54: =IF(ISERROR(INDEX('2024-25 Data'!$B$3:$CA$23,MATCH($S$6,dfenums,0),MATCH(C54,'2024-25 Data'!$B$2:$CA$2,0))),"",INDEX('2024-25 Data'!$B$3:$CA$23,MATCH($S$6,dfenums,0),MATCH(C54,'2024-25 Data'!$B$2:$CA$2,0))) ->  | T54: =IF(ISERROR(S54/$T$6),"",S54/$T$6) ->  | U54: =IF(ISERROR(S54/VLOOKUP($S$6,'2024-25 Data'!$A$3:$H$23,8,0)),"",S54/VLOOKUP($S$6,'2024-25 Data'!$A$3:$H$23,8,0)) ->  | V54: =IF(ISERROR(S54/$S$51),"",S54/$S$51) -> 
B55: Funding for sixth form students | C55: I02 | D55: =IF(ISERROR(INDEX('2024-25 Data'!$B$3:$CA$23,MATCH($D$4,dfenums,0),MATCH(C55,'2024-25 Data'!$B$2:$CA$2,0))),"",INDEX('2024-25 Data'!$B$3:$CA$23,MATCH($D$4,dfenums,0),MATCH(C55,'2024-25 Data'!$B$2:$CA$2,0))) ->  | F55: =IF(ISERROR(D55/VLOOKUP($D$4,'2024-25 Data'!$A$3:$H$23,8,0)),"",D55/VLOOKUP($D$4,'2024-25 Data'!$A$3:$H$23,8,0)) ->  | G55: =IF(ISERROR(D55/$D$51),"",D55/$D$51) ->  | I55: =IF(ISERROR(INDEX('2024-25 Data'!$B$3:$CA$23,MATCH($I$6,dfenums,0),MATCH(C55,'2024-25 Data'!$B$2:$CA$2,0))),"",INDEX('2024-25 Data'!$B$3:$CA$23,MATCH($I$6,dfenums,0),MATCH(C55,'2024-25 Data'!$B$2:$CA$2,0))) ->  | K55: =IF(ISERROR(I55/VLOOKUP($I$6,'2024-25 Data'!$A$3:$H$23,8,0)),"",I55/VLOOKUP($I$6,'2024-25 Data'!$A$3:$H$23,8,0)) ->  | L55: =IF(ISERROR(I55/$I$51),"",I55/$I$51) ->  | N55: =IF(ISERROR(INDEX('2024-25 Data'!$B$3:$CA$23,MATCH($N$6,dfenums,0),MATCH(C55,'2024-25 Data'!$B$2:$CA$2,0))),"",INDEX('2024-25 Data'!$B$3:$CA$23,MATCH($N$6,dfenums,0),MATCH(C55,'2024-25 Data'!$B$2:$CA$2,0))) ->  | P55: =IF(ISERROR(N55/VLOOKUP($N$6,'2024-25 Data'!$A$3:$H$23,8,0)),"",N55/VLOOKUP($N$6,'2024-25 Data'!$A$3:$H$23,8,0)) ->  | Q55: =IF(ISERROR(N55/$N$51),"",N55/$N$51) ->  | S55: =IF(ISERROR(INDEX('2024-25 Data'!$B$3:$CA$23,MATCH($S$6,dfenums,0),MATCH(C55,'2024-25 Data'!$B$2:$CA$2,0))),"",INDEX('2024-25 Data'!$B$3:$CA$23,MATCH($S$6,dfenums,0),MATCH(C55,'2024-25 Data'!$B$2:$CA$2,0))) ->  | U55: =IF(ISERROR(S55/VLOOKUP($S$6,'2024-25 Data'!$A$3:$H$23,8,0)),"",S55/VLOOKUP($S$6,'2024-25 Data'!$A$3:$H$23,8,0)) ->  | V55: =IF(ISERROR(S55/$S$51),"",S55/$S$51) -> 
B56: Element 3 | C56: I03 | D56: =IF(ISERROR(INDEX('2024-25 Data'!$B$3:$CA$23,MATCH($D$4,dfenums,0),MATCH(C56,'2024-25 Data'!$B$2:$CA$2,0))),"",INDEX('2024-25 Data'!$B$3:$CA$23,MATCH($D$4,dfenums,0),MATCH(C56,'2024-25 Data'!$B$2:$CA$2,0))) ->  | F56: =IF(ISERROR(D56/VLOOKUP($D$4,'2024-25 Data'!$A$3:$H$23,8,0)),"",D56/VLOOKUP($D$4,'2024-25 Data'!$A$3:$H$23,8,0)) ->  | I56: =IF(ISERROR(INDEX('2024-25 Data'!$B$3:$CA$23,MATCH($I$6,dfenums,0),MATCH(C56,'2024-25 Data'!$B$2:$CA$2,0))),"",INDEX('2024-25 Data'!$B$3:$CA$23,MATCH($I$6,dfenums,0),MATCH(C56,'2024-25 Data'!$B$2:$CA$2,0))) ->  | K56: =IF(ISERROR(I56/VLOOKUP($I$6,'2024-25 Data'!$A$3:$H$23,8,0)),"",I56/VLOOKUP($I$6,'2024-25 Data'!$A$3:$H$23,8,0)) ->  | N56: =IF(ISERROR(INDEX('2024-25 Data'!$B$3:$CA$23,MATCH($N$6,dfenums,0),MATCH(C56,'2024-25 Data'!$B$2:$CA$2,0))),"",INDEX('2024-25 Data'!$B$3:$CA$23,MATCH($N$6,dfenums,0),MATCH(C56,'2024-25 Data'!$B$2:$CA$2,0))) ->  | P56: =IF(ISERROR(N56/VLOOKUP($N$6,'2024-25 Data'!$A$3:$H$23,8,0)),"",N56/VLOOKUP($N$6,'2024-25 Data'!$A$3:$H$23,8,0)) ->  | S56: =IF(ISERROR(INDEX('2024-25 Data'!$B$3:$CA$23,MATCH($S$6,dfenums,0),MATCH(C56,'2024-25 Data'!$B$2:$CA$2,0))),"",INDEX('2024-25 Data'!$B$3:$CA$23,MATCH($S$6,dfenums,0),MATCH(C56,'2024-25 Data'!$B$2:$CA$2,0))) ->  | U56: =IF(ISERROR(S56/VLOOKUP($S$6,'2024-25 Data'!$A$3:$H$23,8,0)),"",S56/VLOOKUP($S$6,'2024-25 Data'!$A$3:$H$23,8,0)) -> 
B57: Funding for minority ethnic pupils | C57: I04 | D57: =IF(ISERROR(INDEX('2024-25 Data'!$B$3:$CA$23,MATCH($D$4,dfenums,0),MATCH(C57,'2024-25 Data'!$B$2:$CA$2,0))),"",INDEX('2024-25 Data'!$B$3:$CA$23,MATCH($D$4,dfenums,0),MATCH(C57,'2024-25 Data'!$B$2:$CA$2,0))) ->  | F57: =IF(ISERROR(D57/VLOOKUP($D$4,'2024-25 Data'!$A$3:$H$23,8,0)),"",D57/VLOOKUP($D$4,'2024-25 Data'!$A$3:$H$23,8,0)) ->  | I57: =IF(ISERROR(INDEX('2024-25 Data'!$B$3:$CA$23,MATCH($I$6,dfenums,0),MATCH(C57,'2024-25 Data'!$B$2:$CA$2,0))),"",INDEX('2024-25 Data'!$B$3:$CA$23,MATCH($I$6,dfenums,0),MATCH(C57,'2024-25 Data'!$B$2:$CA$2,0))) ->  | K57: =IF(ISERROR(I57/VLOOKUP($I$6,'2024-25 Data'!$A$3:$H$23,8,0)),"",I57/VLOOKUP($I$6,'2024-25 Data'!$A$3:$H$23,8,0)) ->  | N57: =IF(ISERROR(INDEX('2024-25 Data'!$B$3:$CA$23,MATCH($N$6,dfenums,0),MATCH(C57,'2024-25 Data'!$B$2:$CA$2,0))),"",INDEX('2024-25 Data'!$B$3:$CA$23,MATCH($N$6,dfenums,0),MATCH(C57,'2024-25 Data'!$B$2:$CA$2,0))) ->  | P57: =IF(ISERROR(N57/VLOOKUP($N$6,'2024-25 Data'!$A$3:$H$23,8,0)),"",N57/VLOOKUP($N$6,'2024-25 Data'!$A$3:$H$23,8,0)) ->  | S57: =IF(ISERROR(INDEX('2024-25 Data'!$B$3:$CA$23,MATCH($S$6,dfenums,0),MATCH(C57,'2024-25 Data'!$B$2:$CA$2,0))),"",INDEX('2024-25 Data'!$B$3:$CA$23,MATCH($S$6,dfenums,0),MATCH(C57,'2024-25 Data'!$B$2:$CA$2,0))) ->  | U57: =IF(ISERROR(S57/VLOOKUP($S$6,'2024-25 Data'!$A$3:$H$23,8,0)),"",S57/VLOOKUP($S$6,'2024-25 Data'!$A$3:$H$23,8,0)) -> 
B58: Pupil Premium | C58: I05 | D58: =IF(ISERROR(INDEX('2024-25 Data'!$B$3:$CA$23,MATCH($D$4,dfenums,0),MATCH(C58,'2024-25 Data'!$B$2:$CA$2,0))),"",INDEX('2024-25 Data'!$B$3:$CA$23,MATCH($D$4,dfenums,0),MATCH(C58,'2024-25 Data'!$B$2:$CA$2,0))) ->  | F58: =IF(ISERROR(D58/VLOOKUP($D$4,'2024-25 Data'!$A$3:$H$23,8,0)),"",D58/VLOOKUP($D$4,'2024-25 Data'!$A$3:$H$23,8,0)) ->  | I58: =IF(ISERROR(INDEX('2024-25 Data'!$B$3:$CA$23,MATCH($I$6,dfenums,0),MATCH(C58,'2024-25 Data'!$B$2:$CA$2,0))),"",INDEX('2024-25 Data'!$B$3:$CA$23,MATCH($I$6,dfenums,0),MATCH(C58,'2024-25 Data'!$B$2:$CA$2,0))) ->  | K58: =IF(ISERROR(I58/VLOOKUP($I$6,'2024-25 Data'!$A$3:$H$23,8,0)),"",I58/VLOOKUP($I$6,'2024-25 Data'!$A$3:$H$23,8,0)) ->  | N58: =IF(ISERROR(INDEX('2024-25 Data'!$B$3:$CA$23,MATCH($N$6,dfenums,0),MATCH(C58,'2024-25 Data'!$B$2:$CA$2,0))),"",INDEX('2024-25 Data'!$B$3:$CA$23,MATCH($N$6,dfenums,0),MATCH(C58,'2024-25 Data'!$B$2:$CA$2,0))) ->  | P58: =IF(ISERROR(N58/VLOOKUP($N$6,'2024-25 Data'!$A$3:$H$23,8,0)),"",N58/VLOOKUP($N$6,'2024-25 Data'!$A$3:$H$23,8,0)) ->  | S58: =IF(ISERROR(INDEX('2024-25 Data'!$B$3:$CA$23,MATCH($S$6,dfenums,0),MATCH(C58,'2024-25 Data'!$B$2:$CA$2,0))),"",INDEX('2024-25 Data'!$B$3:$CA$23,MATCH($S$6,dfenums,0),MATCH(C58,'2024-25 Data'!$B$2:$CA$2,0))) ->  | U58: =IF(ISERROR(S58/VLOOKUP($S$6,'2024-25 Data'!$A$3:$H$23,8,0)),"",S58/VLOOKUP($S$6,'2024-25 Data'!$A$3:$H$23,8,0)) -> 
B59: Other government grants | C59: I06 | D59: =IF(ISERROR(INDEX('2024-25 Data'!$B$3:$CA$23,MATCH($D$4,dfenums,0),MATCH(C59,'2024-25 Data'!$B$2:$CA$2,0))),"",INDEX('2024-25 Data'!$B$3:$CA$23,MATCH($D$4,dfenums,0),MATCH(C59,'2024-25 Data'!$B$2:$CA$2,0))) ->  | F59: =IF(ISERROR(D59/VLOOKUP($D$4,'2024-25 Data'!$A$3:$H$23,8,0)),"",D59/VLOOKUP($D$4,'2024-25 Data'!$A$3:$H$23,8,0)) ->  | I59: =IF(ISERROR(INDEX('2024-25 Data'!$B$3:$CA$23,MATCH($I$6,dfenums,0),MATCH(C59,'2024-25 Data'!$B$2:$CA$2,0))),"",INDEX('2024-25 Data'!$B$3:$CA$23,MATCH($I$6,dfenums,0),MATCH(C59,'2024-25 Data'!$B$2:$CA$2,0))) ->  | K59: =IF(ISERROR(I59/VLOOKUP($I$6,'2024-25 Data'!$A$3:$H$23,8,0)),"",I59/VLOOKUP($I$6,'2024-25 Data'!$A$3:$H$23,8,0)) ->  | N59: =IF(ISERROR(INDEX('2024-25 Data'!$B$3:$CA$23,MATCH($N$6,dfenums,0),MATCH(C59,'2024-25 Data'!$B$2:$CA$2,0))),"",INDEX('2024-25 Data'!$B$3:$CA$23,MATCH($N$6,dfenums,0),MATCH(C59,'2024-25 Data'!$B$2:$CA$2,0))) ->  | P59: =IF(ISERROR(N59/VLOOKUP($N$6,'2024-25 Data'!$A$3:$H$23,8,0)),"",N59/VLOOKUP($N$6,'2024-25 Data'!$A$3:$H$23,8,0)) ->  | S59: =IF(ISERROR(INDEX('2024-25 Data'!$B$3:$CA$23,MATCH($S$6,dfenums,0),MATCH(C59,'2024-25 Data'!$B$2:$CA$2,0))),"",INDEX('2024-25 Data'!$B$3:$CA$23,MATCH($S$6,dfenums,0),MATCH(C59,'2024-25 Data'!$B$2:$CA$2,0))) ->  | U59: =IF(ISERROR(S59/VLOOKUP($S$6,'2024-25 Data'!$A$3:$H$23,8,0)),"",S59/VLOOKUP($S$6,'2024-25 Data'!$A$3:$H$23,8,0)) -> 
B60: Other grants and payments | C60: I07 | D60: =IF(ISERROR(INDEX('2024-25 Data'!$B$3:$CA$23,MATCH($D$4,dfenums,0),MATCH(C60,'2024-25 Data'!$B$2:$CA$2,0))),"",INDEX('2024-25 Data'!$B$3:$CA$23,MATCH($D$4,dfenums,0),MATCH(C60,'2024-25 Data'!$B$2:$CA$2,0))) ->  | F60: =IF(ISERROR(D60/VLOOKUP($D$4,'2024-25 Data'!$A$3:$H$23,8,0)),"",D60/VLOOKUP($D$4,'2024-25 Data'!$A$3:$H$23,8,0)) ->  | I60: =IF(ISERROR(INDEX('2024-25 Data'!$B$3:$CA$23,MATCH($I$6,dfenums,0),MATCH(C60,'2024-25 Data'!$B$2:$CA$2,0))),"",INDEX('2024-25 Data'!$B$3:$CA$23,MATCH($I$6,dfenums,0),MATCH(C60,'2024-25 Data'!$B$2:$CA$2,0))) ->  | K60: =IF(ISERROR(I60/VLOOKUP($I$6,'2024-25 Data'!$A$3:$H$23,8,0)),"",I60/VLOOKUP($I$6,'2024-25 Data'!$A$3:$H$23,8,0)) ->  | N60: =IF(ISERROR(INDEX('2024-25 Data'!$B$3:$CA$23,MATCH($N$6,dfenums,0),MATCH(C60,'2024-25 Data'!$B$2:$CA$2,0))),"",INDEX('2024-25 Data'!$B$3:$CA$23,MATCH($N$6,dfenums,0),MATCH(C60,'2024-25 Data'!$B$2:$CA$2,0))) ->  | P60: =IF(ISERROR(N60/VLOOKUP($N$6,'2024-25 Data'!$A$3:$H$23,8,0)),"",N60/VLOOKUP($N$6,'2024-25 Data'!$A$3:$H$23,8,0)) ->  | S60: =IF(ISERROR(INDEX('2024-25 Data'!$B$3:$CA$23,MATCH($S$6,dfenums,0),MATCH(C60,'2024-25 Data'!$B$2:$CA$2,0))),"",INDEX('2024-25 Data'!$B$3:$CA$23,MATCH($S$6,dfenums,0),MATCH(C60,'2024-25 Data'!$B$2:$CA$2,0))) ->  | U60: =IF(ISERROR(S60/VLOOKUP($S$6,'2024-25 Data'!$A$3:$H$23,8,0)),"",S60/VLOOKUP($S$6,'2024-25 Data'!$A$3:$H$23,8,0)) -> 
B61: Income from facilities and services | C61: I08 | D61: =IF(ISERROR(INDEX('2024-25 Data'!$B$3:$CA$23,MATCH($D$4,dfenums,0),MATCH(C61,'2024-25 Data'!$B$2:$CA$2,0))),"",INDEX('2024-25 Data'!$B$3:$CA$23,MATCH($D$4,dfenums,0),MATCH(C61,'2024-25 Data'!$B$2:$CA$2,0))) ->  | E61: =IF(ISERROR(D61/$G$4),"",D61/$G$4) ->  | F61: =IF(ISERROR(D61/VLOOKUP($D$4,'2024-25 Data'!$A$3:$H$23,8,0)),"",D61/VLOOKUP($D$4,'2024-25 Data'!$A$3:$H$23,8,0)) ->  | I61: =IF(ISERROR(INDEX('2024-25 Data'!$B$3:$CA$23,MATCH($I$6,dfenums,0),MATCH(C61,'2024-25 Data'!$B$2:$CA$2,0))),"",INDEX('2024-25 Data'!$B$3:$CA$23,MATCH($I$6,dfenums,0),MATCH(C61,'2024-25 Data'!$B$2:$CA$2,0))) ->  | J61: =IF(ISERROR(I61/$J$6),"",I61/$J$6) ->  | K61: =IF(ISERROR(I61/VLOOKUP($I$6,'2024-25 Data'!$A$3:$H$23,8,0)),"",I61/VLOOKUP($I$6,'2024-25 Data'!$A$3:$H$23,8,0)) ->  | L61: =IF(ISERROR(I61/$I$51),"",I61/$I$51) ->  | N61: =IF(ISERROR(INDEX('2024-25 Data'!$B$3:$CA$23,MATCH($N$6,dfenums,0),MATCH(C61,'2024-25 Data'!$B$2:$CA$2,0))),"",INDEX('2024-25 Data'!$B$3:$CA$23,MATCH($N$6,dfenums,0),MATCH(C61,'2024-25 Data'!$B$2:$CA$2,0))) ->  | O61: =IF(ISERROR(N61/$O$6),"",N61/$O$6) ->  | P61: =IF(ISERROR(N61/VLOOKUP($N$6,'2024-25 Data'!$A$3:$H$23,8,0)),"",N61/VLOOKUP($N$6,'2024-25 Data'!$A$3:$H$23,8,0)) ->  | Q61: =IF(ISERROR(N61/$N$51),"",N61/$N$51) ->  | S61: =IF(ISERROR(INDEX('2024-25 Data'!$B$3:$CA$23,MATCH($S$6,dfenums,0),MATCH(C61,'2024-25 Data'!$B$2:$CA$2,0))),"",INDEX('2024-25 Data'!$B$3:$CA$23,MATCH($S$6,dfenums,0),MATCH(C61,'2024-25 Data'!$B$2:$CA$2,0))) ->  | T61: =IF(ISERROR(S61/$T$6),"",S61/$T$6) ->  | U61: =IF(ISERROR(S61/VLOOKUP($S$6,'2024-25 Data'!$A$3:$H$23,8,0)),"",S61/VLOOKUP($S$6,'2024-25 Data'!$A$3:$H$23,8,0)) ->  | V61: =IF(ISERROR(S61/$S$51),"",S61/$S$51) -> 
B62: Income from facilities and services | C62: I08b | D62: =IF(ISERROR(INDEX('2024-25 Data'!$B$3:$CA$23,MATCH($D$4,dfenums,0),MATCH(C62,'2024-25 Data'!$B$2:$CA$2,0))),"",INDEX('2024-25 Data'!$B$3:$CA$23,MATCH($D$4,dfenums,0),MATCH(C62,'2024-25 Data'!$B$2:$CA$2,0))) ->  | F62: =IF(ISERROR(D62/VLOOKUP($D$4,'2024-25 Data'!$A$3:$H$23,8,0)),"",D62/VLOOKUP($D$4,'2024-25 Data'!$A$3:$H$23,8,0)) ->  | I62: =IF(ISERROR(INDEX('2024-25 Data'!$B$3:$CA$23,MATCH($I$6,dfenums,0),MATCH(C62,'2024-25 Data'!$B$2:$CA$2,0))),"",INDEX('2024-25 Data'!$B$3:$CA$23,MATCH($I$6,dfenums,0),MATCH(C62,'2024-25 Data'!$B$2:$CA$2,0))) ->  | K62: =IF(ISERROR(I62/VLOOKUP($I$6,'2024-25 Data'!$A$3:$H$23,8,0)),"",I62/VLOOKUP($I$6,'2024-25 Data'!$A$3:$H$23,8,0)) ->  | N62: =IF(ISERROR(INDEX('2024-25 Data'!$B$3:$CA$23,MATCH($N$6,dfenums,0),MATCH(C62,'2024-25 Data'!$B$2:$CA$2,0))),"",INDEX('2024-25 Data'!$B$3:$CA$23,MATCH($N$6,dfenums,0),MATCH(C62,'2024-25 Data'!$B$2:$CA$2,0))) ->  | P62: =IF(ISERROR(N62/VLOOKUP($N$6,'2024-25 Data'!$A$3:$H$23,8,0)),"",N62/VLOOKUP($N$6,'2024-25 Data'!$A$3:$H$23,8,0)) ->  | S62: =IF(ISERROR(INDEX('2024-25 Data'!$B$3:$CA$23,MATCH($S$6,dfenums,0),MATCH(C62,'2024-25 Data'!$B$2:$CA$2,0))),"",INDEX('2024-25 Data'!$B$3:$CA$23,MATCH($S$6,dfenums,0),MATCH(C62,'2024-25 Data'!$B$2:$CA$2,0))) ->  | U62: =IF(ISERROR(S62/VLOOKUP($S$6,'2024-25 Data'!$A$3:$H$23,8,0)),"",S62/VLOOKUP($S$6,'2024-25 Data'!$A$3:$H$23,8,0)) -> 
B63: Income from catering | C63: I09 | D63: =IF(ISERROR(INDEX('2024-25 Data'!$B$3:$CA$23,MATCH($D$4,dfenums,0),MATCH(C63,'2024-25 Data'!$B$2:$CA$2,0))),"",INDEX('2024-25 Data'!$B$3:$CA$23,MATCH($D$4,dfenums,0),MATCH(C63,'2024-25 Data'!$B$2:$CA$2,0))) ->  | F63: =IF(ISERROR(D63/VLOOKUP($D$4,'2024-25 Data'!$A$3:$H$23,8,0)),"",D63/VLOOKUP($D$4,'2024-25 Data'!$A$3:$H$23,8,0)) ->  | I63: =IF(ISERROR(INDEX('2024-25 Data'!$B$3:$CA$23,MATCH($I$6,dfenums,0),MATCH(C63,'2024-25 Data'!$B$2:$CA$2,0))),"",INDEX('2024-25 Data'!$B$3:$CA$23,MATCH($I$6,dfenums,0),MATCH(C63,'2024-25 Data'!$B$2:$CA$2,0))) ->  | K63: =IF(ISERROR(I63/VLOOKUP($I$6,'2024-25 Data'!$A$3:$H$23,8,0)),"",I63/VLOOKUP($I$6,'2024-25 Data'!$A$3:$H$23,8,0)) ->  | N63: =IF(ISERROR(INDEX('2024-25 Data'!$B$3:$CA$23,MATCH($N$6,dfenums,0),MATCH(C63,'2024-25 Data'!$B$2:$CA$2,0))),"",INDEX('2024-25 Data'!$B$3:$CA$23,MATCH($N$6,dfenums,0),MATCH(C63,'2024-25 Data'!$B$2:$CA$2,0))) ->  | P63: =IF(ISERROR(N63/VLOOKUP($N$6,'2024-25 Data'!$A$3:$H$23,8,0)),"",N63/VLOOKUP($N$6,'2024-25 Data'!$A$3:$H$23,8,0)) ->  | S63: =IF(ISERROR(INDEX('2024-25 Data'!$B$3:$CA$23,MATCH($S$6,dfenums,0),MATCH(C63,'2024-25 Data'!$B$2:$CA$2,0))),"",INDEX('2024-25 Data'!$B$3:$CA$23,MATCH($S$6,dfenums,0),MATCH(C63,'2024-25 Data'!$B$2:$CA$2,0))) ->  | U63: =IF(ISERROR(S63/VLOOKUP($S$6,'2024-25 Data'!$A$3:$H$23,8,0)),"",S63/VLOOKUP($S$6,'2024-25 Data'!$A$3:$H$23,8,0)) -> 
B64: Receipts from supply teachers insurance claims | C64: I10 | D64: =IF(ISERROR(INDEX('2024-25 Data'!$B$3:$CA$23,MATCH($D$4,dfenums,0),MATCH(C64,'2024-25 Data'!$B$2:$CA$2,0))),"",INDEX('2024-25 Data'!$B$3:$CA$23,MATCH($D$4,dfenums,0),MATCH(C64,'2024-25 Data'!$B$2:$CA$2,0))) ->  | F64: =IF(ISERROR(D64/VLOOKUP($D$4,'2024-25 Data'!$A$3:$H$23,8,0)),"",D64/VLOOKUP($D$4,'2024-25 Data'!$A$3:$H$23,8,0)) ->  | I64: =IF(ISERROR(INDEX('2024-25 Data'!$B$3:$CA$23,MATCH($I$6,dfenums,0),MATCH(C64,'2024-25 Data'!$B$2:$CA$2,0))),"",INDEX('2024-25 Data'!$B$3:$CA$23,MATCH($I$6,dfenums,0),MATCH(C64,'2024-25 Data'!$B$2:$CA$2,0))) ->  | K64: =IF(ISERROR(I64/VLOOKUP($I$6,'2024-25 Data'!$A$3:$H$23,8,0)),"",I64/VLOOKUP($I$6,'2024-25 Data'!$A$3:$H$23,8,0)) ->  | N64: =IF(ISERROR(INDEX('2024-25 Data'!$B$3:$CA$23,MATCH($N$6,dfenums,0),MATCH(C64,'2024-25 Data'!$B$2:$CA$2,0))),"",INDEX('2024-25 Data'!$B$3:$CA$23,MATCH($N$6,dfenums,0),MATCH(C64,'2024-25 Data'!$B$2:$CA$2,0))) ->  | P64: =IF(ISERROR(N64/VLOOKUP($N$6,'2024-25 Data'!$A$3:$H$23,8,0)),"",N64/VLOOKUP($N$6,'2024-25 Data'!$A$3:$H$23,8,0)) ->  | S64: =IF(ISERROR(INDEX('2024-25 Data'!$B$3:$CA$23,MATCH($S$6,dfenums,0),MATCH(C64,'2024-25 Data'!$B$2:$CA$2,0))),"",INDEX('2024-25 Data'!$B$3:$CA$23,MATCH($S$6,dfenums,0),MATCH(C64,'2024-25 Data'!$B$2:$CA$2,0))) ->  | U64: =IF(ISERROR(S64/VLOOKUP($S$6,'2024-25 Data'!$A$3:$H$23,8,0)),"",S64/VLOOKUP($S$6,'2024-25 Data'!$A$3:$H$23,8,0)) -> 
B65: Receipts from other insurance claims | C65: I11 | D65: =IF(ISERROR(INDEX('2024-25 Data'!$B$3:$CA$23,MATCH($D$4,dfenums,0),MATCH(C65,'2024-25 Data'!$B$2:$CA$2,0))),"",INDEX('2024-25 Data'!$B$3:$CA$23,MATCH($D$4,dfenums,0),MATCH(C65,'2024-25 Data'!$B$2:$CA$2,0))) ->  | F65: =IF(ISERROR(D65/VLOOKUP($D$4,'2024-25 Data'!$A$3:$H$23,8,0)),"",D65/VLOOKUP($D$4,'2024-25 Data'!$A$3:$H$23,8,0)) ->  | I65: =IF(ISERROR(INDEX('2024-25 Data'!$B$3:$CA$23,MATCH($I$6,dfenums,0),MATCH(C65,'2024-25 Data'!$B$2:$CA$2,0))),"",INDEX('2024-25 Data'!$B$3:$CA$23,MATCH($I$6,dfenums,0),MATCH(C65,'2024-25 Data'!$B$2:$CA$2,0))) ->  | K65: =IF(ISERROR(I65/VLOOKUP($I$6,'2024-25 Data'!$A$3:$H$23,8,0)),"",I65/VLOOKUP($I$6,'2024-25 Data'!$A$3:$H$23,8,0)) ->  | N65: =IF(ISERROR(INDEX('2024-25 Data'!$B$3:$CA$23,MATCH($N$6,dfenums,0),MATCH(C65,'2024-25 Data'!$B$2:$CA$2,0))),"",INDEX('2024-25 Data'!$B$3:$CA$23,MATCH($N$6,dfenums,0),MATCH(C65,'2024-25 Data'!$B$2:$CA$2,0))) ->  | P65: =IF(ISERROR(N65/VLOOKUP($N$6,'2024-25 Data'!$A$3:$H$23,8,0)),"",N65/VLOOKUP($N$6,'2024-25 Data'!$A$3:$H$23,8,0)) ->  | S65: =IF(ISERROR(INDEX('2024-25 Data'!$B$3:$CA$23,MATCH($S$6,dfenums,0),MATCH(C65,'2024-25 Data'!$B$2:$CA$2,0))),"",INDEX('2024-25 Data'!$B$3:$CA$23,MATCH($S$6,dfenums,0),MATCH(C65,'2024-25 Data'!$B$2:$CA$2,0))) ->  | U65: =IF(ISERROR(S65/VLOOKUP($S$6,'2024-25 Data'!$A$3:$H$23,8,0)),"",S65/VLOOKUP($S$6,'2024-25 Data'!$A$3:$H$23,8,0)) -> 
B66: Income from contributions to visits etc. | C66: I12 | D66: =IF(ISERROR(INDEX('2024-25 Data'!$B$3:$CA$23,MATCH($D$4,dfenums,0),MATCH(C66,'2024-25 Data'!$B$2:$CA$2,0))),"",INDEX('2024-25 Data'!$B$3:$CA$23,MATCH($D$4,dfenums,0),MATCH(C66,'2024-25 Data'!$B$2:$CA$2,0))) ->  | F66: =IF(ISERROR(D66/VLOOKUP($D$4,'2024-25 Data'!$A$3:$H$23,8,0)),"",D66/VLOOKUP($D$4,'2024-25 Data'!$A$3:$H$23,8,0)) ->  | I66: =IF(ISERROR(INDEX('2024-25 Data'!$B$3:$CA$23,MATCH($I$6,dfenums,0),MATCH(C66,'2024-25 Data'!$B$2:$CA$2,0))),"",INDEX('2024-25 Data'!$B$3:$CA$23,MATCH($I$6,dfenums,0),MATCH(C66,'2024-25 Data'!$B$2:$CA$2,0))) ->  | K66: =IF(ISERROR(I66/VLOOKUP($I$6,'2024-25 Data'!$A$3:$H$23,8,0)),"",I66/VLOOKUP($I$6,'2024-25 Data'!$A$3:$H$23,8,0)) ->  | N66: =IF(ISERROR(INDEX('2024-25 Data'!$B$3:$CA$23,MATCH($N$6,dfenums,0),MATCH(C66,'2024-25 Data'!$B$2:$CA$2,0))),"",INDEX('2024-25 Data'!$B$3:$CA$23,MATCH($N$6,dfenums,0),MATCH(C66,'2024-25 Data'!$B$2:$CA$2,0))) ->  | P66: =IF(ISERROR(N66/VLOOKUP($N$6,'2024-25 Data'!$A$3:$H$23,8,0)),"",N66/VLOOKUP($N$6,'2024-25 Data'!$A$3:$H$23,8,0)) ->  | S66: =IF(ISERROR(INDEX('2024-25 Data'!$B$3:$CA$23,MATCH($S$6,dfenums,0),MATCH(C66,'2024-25 Data'!$B$2:$CA$2,0))),"",INDEX('2024-25 Data'!$B$3:$CA$23,MATCH($S$6,dfenums,0),MATCH(C66,'2024-25 Data'!$B$2:$CA$2,0))) ->  | U66: =IF(ISERROR(S66/VLOOKUP($S$6,'2024-25 Data'!$A$3:$H$23,8,0)),"",S66/VLOOKUP($S$6,'2024-25 Data'!$A$3:$H$23,8,0)) -> 
B67: Donations and/or voluntary funds | C67: I13 | D67: =IF(ISERROR(INDEX('2024-25 Data'!$B$3:$CA$23,MATCH($D$4,dfenums,0),MATCH(C67,'2024-25 Data'!$B$2:$CA$2,0))),"",INDEX('2024-25 Data'!$B$3:$CA$23,MATCH($D$4,dfenums,0),MATCH(C67,'2024-25 Data'!$B$2:$CA$2,0))) ->  | F67: =IF(ISERROR(D67/VLOOKUP($D$4,'2024-25 Data'!$A$3:$H$23,8,0)),"",D67/VLOOKUP($D$4,'2024-25 Data'!$A$3:$H$23,8,0)) ->  | I67: =IF(ISERROR(INDEX('2024-25 Data'!$B$3:$CA$23,MATCH($I$6,dfenums,0),MATCH(C67,'2024-25 Data'!$B$2:$CA$2,0))),"",INDEX('2024-25 Data'!$B$3:$CA$23,MATCH($I$6,dfenums,0),MATCH(C67,'2024-25 Data'!$B$2:$CA$2,0))) ->  | K67: =IF(ISERROR(I67/VLOOKUP($I$6,'2024-25 Data'!$A$3:$H$23,8,0)),"",I67/VLOOKUP($I$6,'2024-25 Data'!$A$3:$H$23,8,0)) ->  | N67: =IF(ISERROR(INDEX('2024-25 Data'!$B$3:$CA$23,MATCH($N$6,dfenums,0),MATCH(C67,'2024-25 Data'!$B$2:$CA$2,0))),"",INDEX('2024-25 Data'!$B$3:$CA$23,MATCH($N$6,dfenums,0),MATCH(C67,'2024-25 Data'!$B$2:$CA$2,0))) ->  | P67: =IF(ISERROR(N67/VLOOKUP($N$6,'2024-25 Data'!$A$3:$H$23,8,0)),"",N67/VLOOKUP($N$6,'2024-25 Data'!$A$3:$H$23,8,0)) ->  | S67: =IF(ISERROR(INDEX('2024-25 Data'!$B$3:$CA$23,MATCH($S$6,dfenums,0),MATCH(C67,'2024-25 Data'!$B$2:$CA$2,0))),"",INDEX('2024-25 Data'!$B$3:$CA$23,MATCH($S$6,dfenums,0),MATCH(C67,'2024-25 Data'!$B$2:$CA$2,0))) ->  | U67: =IF(ISERROR(S67/VLOOKUP($S$6,'2024-25 Data'!$A$3:$H$23,8,0)),"",S67/VLOOKUP($S$6,'2024-25 Data'!$A$3:$H$23,8,0)) -> 
B68: Pupil focussed extended school funding &/or grants | C68: I15 | D68: =IF(ISERROR(INDEX('2024-25 Data'!$B$3:$CA$23,MATCH($D$4,dfenums,0),MATCH(C68,'2024-25 Data'!$B$2:$CA$2,0))),"",INDEX('2024-25 Data'!$B$3:$CA$23,MATCH($D$4,dfenums,0),MATCH(C68,'2024-25 Data'!$B$2:$CA$2,0))) ->  | F68: =IF(ISERROR(D68/VLOOKUP($D$4,'2024-25 Data'!$A$3:$H$23,8,0)),"",D68/VLOOKUP($D$4,'2024-25 Data'!$A$3:$H$23,8,0)) ->  | I68: =IF(ISERROR(INDEX('2024-25 Data'!$B$3:$CA$23,MATCH($I$6,dfenums,0),MATCH(C68,'2024-25 Data'!$B$2:$CA$2,0))),"",INDEX('2024-25 Data'!$B$3:$CA$23,MATCH($I$6,dfenums,0),MATCH(C68,'2024-25 Data'!$B$2:$CA$2,0))) ->  | K68: =IF(ISERROR(I68/VLOOKUP($I$6,'2024-25 Data'!$A$3:$H$23,8,0)),"",I68/VLOOKUP($I$6,'2024-25 Data'!$A$3:$H$23,8,0)) ->  | N68: =IF(ISERROR(INDEX('2024-25 Data'!$B$3:$CA$23,MATCH($N$6,dfenums,0),MATCH(C68,'2024-25 Data'!$B$2:$CA$2,0))),"",INDEX('2024-25 Data'!$B$3:$CA$23,MATCH($N$6,dfenums,0),MATCH(C68,'2024-25 Data'!$B$2:$CA$2,0))) ->  | P68: =IF(ISERROR(N68/VLOOKUP($N$6,'2024-25 Data'!$A$3:$H$23,8,0)),"",N68/VLOOKUP($N$6,'2024-25 Data'!$A$3:$H$23,8,0)) ->  | S68: =IF(ISERROR(INDEX('2024-25 Data'!$B$3:$CA$23,MATCH($S$6,dfenums,0),MATCH(C68,'2024-25 Data'!$B$2:$CA$2,0))),"",INDEX('2024-25 Data'!$B$3:$CA$23,MATCH($S$6,dfenums,0),MATCH(C68,'2024-25 Data'!$B$2:$CA$2,0))) ->  | U68: =IF(ISERROR(S68/VLOOKUP($S$6,'2024-25 Data'!$A$3:$H$23,8,0)),"",S68/VLOOKUP($S$6,'2024-25 Data'!$A$3:$H$23,8,0)) -> 
B69: Community focussed extended school funding &/or grants | C69: I16 | D69: =IF(ISERROR(INDEX('2024-25 Data'!$B$3:$CA$23,MATCH($D$4,dfenums,0),MATCH(C69,'2024-25 Data'!$B$2:$CA$2,0))),"",INDEX('2024-25 Data'!$B$3:$CA$23,MATCH($D$4,dfenums,0),MATCH(C69,'2024-25 Data'!$B$2:$CA$2,0))) ->  | F69: =IF(ISERROR(D69/VLOOKUP($D$4,'2024-25 Data'!$A$3:$H$23,8,0)),"",D69/VLOOKUP($D$4,'2024-25 Data'!$A$3:$H$23,8,0)) ->  | I69: =IF(ISERROR(INDEX('2024-25 Data'!$B$3:$CA$23,MATCH($I$6,dfenums,0),MATCH(C69,'2024-25 Data'!$B$2:$CA$2,0))),"",INDEX('2024-25 Data'!$B$3:$CA$23,MATCH($I$6,dfenums,0),MATCH(C69,'2024-25 Data'!$B$2:$CA$2,0))) ->  | K69: =IF(ISERROR(I69/VLOOKUP($I$6,'2024-25 Data'!$A$3:$H$23,8,0)),"",I69/VLOOKUP($I$6,'2024-25 Data'!$A$3:$H$23,8,0)) ->  | N69: =IF(ISERROR(INDEX('2024-25 Data'!$B$3:$CA$23,MATCH($N$6,dfenums,0),MATCH(C69,'2024-25 Data'!$B$2:$CA$2,0))),"",INDEX('2024-25 Data'!$B$3:$CA$23,MATCH($N$6,dfenums,0),MATCH(C69,'2024-25 Data'!$B$2:$CA$2,0))) ->  | P69: =IF(ISERROR(N69/VLOOKUP($N$6,'2024-25 Data'!$A$3:$H$23,8,0)),"",N69/VLOOKUP($N$6,'2024-25 Data'!$A$3:$H$23,8,0)) ->  | S69: =IF(ISERROR(INDEX('2024-25 Data'!$B$3:$CA$23,MATCH($S$6,dfenums,0),MATCH(C69,'2024-25 Data'!$B$2:$CA$2,0))),"",INDEX('2024-25 Data'!$B$3:$CA$23,MATCH($S$6,dfenums,0),MATCH(C69,'2024-25 Data'!$B$2:$CA$2,0))) ->  | U69: =IF(ISERROR(S69/VLOOKUP($S$6,'2024-25 Data'!$A$3:$H$23,8,0)),"",S69/VLOOKUP($S$6,'2024-25 Data'!$A$3:$H$23,8,0)) -> 
B70: Community focussed extended school facilities income | C70: I17 | D70: =IF(ISERROR(INDEX('2024-25 Data'!$B$3:$CA$23,MATCH($D$4,dfenums,0),MATCH(C70,'2024-25 Data'!$B$2:$CA$2,0))),"",INDEX('2024-25 Data'!$B$3:$CA$23,MATCH($D$4,dfenums,0),MATCH(C70,'2024-25 Data'!$B$2:$CA$2,0))) ->  | F70: =IF(ISERROR(D70/VLOOKUP($D$4,'2024-25 Data'!$A$3:$H$23,8,0)),"",D70/VLOOKUP($D$4,'2024-25 Data'!$A$3:$H$23,8,0)) ->  | I70: =IF(ISERROR(INDEX('2024-25 Data'!$B$3:$CA$23,MATCH($I$6,dfenums,0),MATCH(C70,'2024-25 Data'!$B$2:$CA$2,0))),"",INDEX('2024-25 Data'!$B$3:$CA$23,MATCH($I$6,dfenums,0),MATCH(C70,'2024-25 Data'!$B$2:$CA$2,0))) ->  | K70: =IF(ISERROR(I70/VLOOKUP($I$6,'2024-25 Data'!$A$3:$H$23,8,0)),"",I70/VLOOKUP($I$6,'2024-25 Data'!$A$3:$H$23,8,0)) ->  | N70: =IF(ISERROR(INDEX('2024-25 Data'!$B$3:$CA$23,MATCH($N$6,dfenums,0),MATCH(C70,'2024-25 Data'!$B$2:$CA$2,0))),"",INDEX('2024-25 Data'!$B$3:$CA$23,MATCH($N$6,dfenums,0),MATCH(C70,'2024-25 Data'!$B$2:$CA$2,0))) ->  | P70: =IF(ISERROR(N70/VLOOKUP($N$6,'2024-25 Data'!$A$3:$H$23,8,0)),"",N70/VLOOKUP($N$6,'2024-25 Data'!$A$3:$H$23,8,0)) ->  | S70: =IF(ISERROR(INDEX('2024-25 Data'!$B$3:$CA$23,MATCH($S$6,dfenums,0),MATCH(C70,'2024-25 Data'!$B$2:$CA$2,0))),"",INDEX('2024-25 Data'!$B$3:$CA$23,MATCH($S$6,dfenums,0),MATCH(C70,'2024-25 Data'!$B$2:$CA$2,0))) ->  | U70: =IF(ISERROR(S70/VLOOKUP($S$6,'2024-25 Data'!$A$3:$H$23,8,0)),"",S70/VLOOKUP($S$6,'2024-25 Data'!$A$3:$H$23,8,0)) -> 
B71: Additional Grant for Schools | C71: I18 | D71: =IF(ISERROR(INDEX('2024-25 Data'!$B$3:$CA$23,MATCH($D$4,dfenums,0),MATCH(C71,'2024-25 Data'!$B$2:$CA$2,0))),"",INDEX('2024-25 Data'!$B$3:$CA$23,MATCH($D$4,dfenums,0),MATCH(C71,'2024-25 Data'!$B$2:$CA$2,0))) ->  | F71: =IF(ISERROR(D71/VLOOKUP($D$4,'2024-25 Data'!$A$3:$H$23,8,0)),"",D71/VLOOKUP($D$4,'2024-25 Data'!$A$3:$H$23,8,0)) ->  | I71: =IF(ISERROR(INDEX('2024-25 Data'!$B$3:$CA$23,MATCH($I$6,dfenums,0),MATCH(C71,'2024-25 Data'!$B$2:$CA$2,0))),"",INDEX('2024-25 Data'!$B$3:$CA$23,MATCH($I$6,dfenums,0),MATCH(C71,'2024-25 Data'!$B$2:$CA$2,0))) ->  | K71: =IF(ISERROR(I71/VLOOKUP($I$6,'2024-25 Data'!$A$3:$H$23,8,0)),"",I71/VLOOKUP($I$6,'2024-25 Data'!$A$3:$H$23,8,0)) ->  | N71: =IF(ISERROR(INDEX('2024-25 Data'!$B$3:$CA$23,MATCH($N$6,dfenums,0),MATCH(C71,'2024-25 Data'!$B$2:$CA$2,0))),"",INDEX('2024-25 Data'!$B$3:$CA$23,MATCH($N$6,dfenums,0),MATCH(C71,'2024-25 Data'!$B$2:$CA$2,0))) ->  | P71: =IF(ISERROR(N71/VLOOKUP($N$6,'2024-25 Data'!$A$3:$H$23,8,0)),"",N71/VLOOKUP($N$6,'2024-25 Data'!$A$3:$H$23,8,0)) ->  | S71: =IF(ISERROR(INDEX('2024-25 Data'!$B$3:$CA$23,MATCH($S$6,dfenums,0),MATCH(C71,'2024-25 Data'!$B$2:$CA$2,0))),"",INDEX('2024-25 Data'!$B$3:$CA$23,MATCH($S$6,dfenums,0),MATCH(C71,'2024-25 Data'!$B$2:$CA$2,0))) ->  | U71: =IF(ISERROR(S71/VLOOKUP($S$6,'2024-25 Data'!$A$3:$H$23,8,0)),"",S71/VLOOKUP($S$6,'2024-25 Data'!$A$3:$H$23,8,0)) -> 
B72: Covid-19 furloughed Staff | C72: I18A | D72: =IF(ISERROR(INDEX('2024-25 Data'!$B$3:$BP$23,MATCH($D$4,dfenums,0),MATCH(C72,'2024-25 Data'!$B$2:$BP$2,0))),"",INDEX('2024-25 Data'!$B$3:$BP$23,MATCH($D$4,dfenums,0),MATCH(C72,'2024-25 Data'!$B$2:$BP$2,0))) ->  | E72: =IF(ISERROR(D72/$G$4),"",D72/$G$4) ->  | F72: =IF(ISERROR(D72/VLOOKUP($D$4,'2024-25 Data'!$A$3:$H$23,8,0)),"",D72/VLOOKUP($D$4,'2024-25 Data'!$A$3:$H$23,8,0)) ->  | G72: =IF(ISERROR(D72/$D$51),"",D72/$D$51) ->  | I72: =IF(ISERROR(INDEX('2024-25 Data'!$B$3:$BP$23,MATCH($I$6,dfenums,0),MATCH(C72,'2024-25 Data'!$B$2:$BP$2,0))),"",INDEX('2024-25 Data'!$B$3:$BP$23,MATCH($I$6,dfenums,0),MATCH(C72,'2024-25 Data'!$B$2:$BP$2,0))) ->  | J72: =IF(ISERROR(I72/$J$6),"",I72/$J$6) ->  | K72: =IF(ISERROR(I72/VLOOKUP($I$6,'2024-25 Data'!$A$3:$H$23,8,0)),"",I72/VLOOKUP($I$6,'2024-25 Data'!$A$3:$H$23,8,0)) ->  | L72: =IF(ISERROR(I72/$I$51),"",I72/$I$51) ->  | N72: =IF(ISERROR(INDEX('2024-25 Data'!$B$3:$BP$23,MATCH($N$6,dfenums,0),MATCH(C72,'2024-25 Data'!$B$2:$BP$2,0))),"",INDEX('2024-25 Data'!$B$3:$BP$23,MATCH($N$6,dfenums,0),MATCH(C72,'2024-25 Data'!$B$2:$BP$2,0))) ->  | O72: =IF(ISERROR(N72/$O$6),"",N72/$O$6) ->  | P72: =IF(ISERROR(N72/VLOOKUP($N$6,'2024-25 Data'!$A$3:$H$23,8,0)),"",N72/VLOOKUP($N$6,'2024-25 Data'!$A$3:$H$23,8,0)) ->  | Q72: =IF(ISERROR(N72/$N$51),"",N72/$N$51) ->  | S72: =IF(ISERROR(INDEX('2024-25 Data'!$B$3:$BP$23,MATCH($S$6,dfenums,0),MATCH(C72,'2024-25 Data'!$B$2:$BP$2,0))),"",INDEX('2024-25 Data'!$B$3:$BP$23,MATCH($S$6,dfenums,0),MATCH(C72,'2024-25 Data'!$B$2:$BP$2,0))) ->  | T72: =IF(ISERROR(S72/$T$6),"",S72/$T$6) ->  | U72: =IF(ISERROR(S72/VLOOKUP($S$6,'2024-25 Data'!$A$3:$H$23,8,0)),"",S72/VLOOKUP($S$6,'2024-25 Data'!$A$3:$H$23,8,0)) ->  | V72: =IF(ISERROR(S72/$S$51),"",S72/$S$51) -> 
B73: Covid-19 any other Covid-19 related grant | C73: I18B | D73: =IF(ISERROR(INDEX('2024-25 Data'!$B$3:$BP$23,MATCH($D$4,dfenums,0),MATCH(C73,'2024-25 Data'!$B$2:$BP$2,0))),"",INDEX('2024-25 Data'!$B$3:$BP$23,MATCH($D$4,dfenums,0),MATCH(C73,'2024-25 Data'!$B$2:$BP$2,0))) ->  | E73: =IF(ISERROR(D73/$G$4),"",D73/$G$4) ->  | F73: =IF(ISERROR(D73/VLOOKUP($D$4,'2024-25 Data'!$A$3:$H$23,8,0)),"",D73/VLOOKUP($D$4,'2024-25 Data'!$A$3:$H$23,8,0)) ->  | G73: =IF(ISERROR(D73/$D$51),"",D73/$D$51) ->  | I73: =IF(ISERROR(INDEX('2024-25 Data'!$B$3:$BP$23,MATCH($I$6,dfenums,0),MATCH(C73,'2024-25 Data'!$B$2:$BP$2,0))),"",INDEX('2024-25 Data'!$B$3:$BP$23,MATCH($I$6,dfenums,0),MATCH(C73,'2024-25 Data'!$B$2:$BP$2,0))) ->  | J73: =IF(ISERROR(I73/$J$6),"",I73/$J$6) ->  | K73: =IF(ISERROR(I73/VLOOKUP($I$6,'2024-25 Data'!$A$3:$H$23,8,0)),"",I73/VLOOKUP($I$6,'2024-25 Data'!$A$3:$H$23,8,0)) ->  | L73: =IF(ISERROR(I73/$I$51),"",I73/$I$51) ->  | N73: =IF(ISERROR(INDEX('2024-25 Data'!$B$3:$BP$23,MATCH($N$6,dfenums,0),MATCH(C73,'2024-25 Data'!$B$2:$BP$2,0))),"",INDEX('2024-25 Data'!$B$3:$BP$23,MATCH($N$6,dfenums,0),MATCH(C73,'2024-25 Data'!$B$2:$BP$2,0))) ->  | O73: =IF(ISERROR(N73/$O$6),"",N73/$O$6) ->  | P73: =IF(ISERROR(N73/VLOOKUP($N$6,'2024-25 Data'!$A$3:$H$23,8,0)),"",N73/VLOOKUP($N$6,'2024-25 Data'!$A$3:$H$23,8,0)) ->  | Q73: =IF(ISERROR(N73/$N$51),"",N73/$N$51) ->  | S73: =IF(ISERROR(INDEX('2024-25 Data'!$B$3:$BP$23,MATCH($S$6,dfenums,0),MATCH(C73,'2024-25 Data'!$B$2:$BP$2,0))),"",INDEX('2024-25 Data'!$B$3:$BP$23,MATCH($S$6,dfenums,0),MATCH(C73,'2024-25 Data'!$B$2:$BP$2,0))) ->  | T73: =IF(ISERROR(S73/$T$6),"",S73/$T$6) ->  | U73: =IF(ISERROR(S73/VLOOKUP($S$6,'2024-25 Data'!$A$3:$H$23,8,0)),"",S73/VLOOKUP($S$6,'2024-25 Data'!$A$3:$H$23,8,0)) ->  | V73: =IF(ISERROR(S73/$S$51),"",S73/$S$51) -> 
B74: Covid-19 £1bn package | C74: I18C | D74: =IF(ISERROR(INDEX('2024-25 Data'!$B$3:$BP$23,MATCH($D$4,dfenums,0),MATCH(C74,'2024-25 Data'!$B$2:$BP$2,0))),"",INDEX('2024-25 Data'!$B$3:$BP$23,MATCH($D$4,dfenums,0),MATCH(C74,'2024-25 Data'!$B$2:$BP$2,0))) ->  | F74: =IF(ISERROR(D74/VLOOKUP($D$4,'2024-25 Data'!$A$3:$H$23,8,0)),"",D74/VLOOKUP($D$4,'2024-25 Data'!$A$3:$H$23,8,0)) ->  | I74: =IF(ISERROR(INDEX('2024-25 Data'!$B$3:$BP$23,MATCH($I$6,dfenums,0),MATCH(C74,'2024-25 Data'!$B$2:$BP$2,0))),"",INDEX('2024-25 Data'!$B$3:$BP$23,MATCH($I$6,dfenums,0),MATCH(C74,'2024-25 Data'!$B$2:$BP$2,0))) ->  | K74: =IF(ISERROR(I74/VLOOKUP($I$6,'2024-25 Data'!$A$3:$H$23,8,0)),"",I74/VLOOKUP($I$6,'2024-25 Data'!$A$3:$H$23,8,0)) ->  | N74: =IF(ISERROR(INDEX('2024-25 Data'!$B$3:$BP$23,MATCH($N$6,dfenums,0),MATCH(C74,'2024-25 Data'!$B$2:$BP$2,0))),"",INDEX('2024-25 Data'!$B$3:$BP$23,MATCH($N$6,dfenums,0),MATCH(C74,'2024-25 Data'!$B$2:$BP$2,0))) ->  | P74: =IF(ISERROR(N74/VLOOKUP($N$6,'2024-25 Data'!$A$3:$H$23,8,0)),"",N74/VLOOKUP($N$6,'2024-25 Data'!$A$3:$H$23,8,0)) ->  | S74: =IF(ISERROR(INDEX('2024-25 Data'!$B$3:$BP$23,MATCH($S$6,dfenums,0),MATCH(C74,'2024-25 Data'!$B$2:$BP$2,0))),"",INDEX('2024-25 Data'!$B$3:$BP$23,MATCH($S$6,dfenums,0),MATCH(C74,'2024-25 Data'!$B$2:$BP$2,0))) ->  | U74: =IF(ISERROR(S74/VLOOKUP($S$6,'2024-25 Data'!$A$3:$H$23,8,0)),"",S74/VLOOKUP($S$6,'2024-25 Data'!$A$3:$H$23,8,0)) -> 
B75: Total Income (excluding reserves) | D75: =SUM(D54:D74) -> 0 | E75: =SUM(E54:E74) -> 0 | F75: =SUM(F54:F74) -> 0 | G75: =SUM(G54:G74) -> 0 | I75: =SUM(I54:I74) -> 0 | J75: =SUM(J54:J74) -> 0 | K75: =SUM(K54:K74) -> 0 | L75: =SUM(L54:L74) -> 0 | N75: =SUM(N54:N74) -> 0 | O75: =SUM(O54:O74) -> 0 | P75: =SUM(P54:P74) -> 0 | Q75: =SUM(Q54:Q74) -> 0 | S75: =SUM(S54:S74) -> 0 | T75: =SUM(T54:T74) -> 0 | U75: =SUM(U54:U74) -> 0 | V75: =SUM(V54:V74) -> 0

Sheet 2024-25 Data (hidden)
C1: KCC Finance & Procurement | D1: KCC Finance & Procurement | E1: KCC Finance & Procurement | F1: KCC Finance & Procurement | G1: Self generating | I1: Self generating from below
A2: DfE | B2: School | C2: Nursery Places | D2: Nursery Attendance | E2: School Places | F2: School Attendance | G2: Total Places | H2: Total Attendance | I2: E01 | J2: E02 | K2: E03 | L2: E04 | M2: E05 | N2: E06 | O2: E07 | P2: E08 | Q2: E09 | R2: E10 | S2: E11 | T2: E12 | U2: E13 | V2: E14 | W2: E15 | X2: E16 | Y2: E17 | Z2: E18 | AA2: E19 | AB2: E20A | AC2: E20B | AD2: E20C | AE2: E20D | AF2: E20E | AG2: E20F | AH2: E20G | AI2: E21 | AJ2: E22 | AK2: E23 | AL2: E24 | AM2: E25 | AN2: E26 | AO2: E27 | AP2: E28 | AQ2: E28B | AR2: E29 | AS2: E30 | AT2: E31 | AU2: E32 | AV2: I01 | AW2: I02 | AX2: I03 | AY2: I04 | AZ2: I05 | BA2: I06 | BB2: I07 | BC2: I08 | BD2: I08b | BE2: I09 | BF2: I10 | BG2: I11 | BH2: I12 | BI2: I13 | BJ2: I15 | BK2: I16 | BL2: I17 | BM2: I18 | BN2: I18A | BO2: I18B | BP2: I18C
A3: 7002 | B3: Broomhill Bank School | C3: 0 | D3: 0 | E3: 393 | F3: 392 | G3: =C3+E3 -> 393 | H3: =D3+F3 -> 392 | I3: =IF(Benchmarking!$C$9="Yes",I29-I52,I29) -> 4198904.1 | J3: =IF(Benchmarking!$C$9="Yes",J29-J52,J29) -> 0 | K3: =IF(Benchmarking!$C$9="Yes",K29-K52,K29) -> 2671039.06 | L3: =IF(Benchmarking!$C$9="Yes",L29-L52,L29) -> 301530.14 | M3: =IF(Benchmarking!$C$9="Yes",M29-M52,M29) -> 729905.02 | N3: =IF(Benchmarking!$C$9="Yes",N29-N52,N29) -> 88413.45 | O3: =IF(Benchmarking!$C$9="Yes",O29-O52,O29) -> 342508.76 | P3: =IF(Benchmarking!$C$9="Yes",P29-P52,P29) -> 40811.98 | Q3: =IF(Benchmarking!$C$9="Yes",Q29-Q52,Q29) -> 15133.62 | R3: =IF(Benchmarking!$C$9="Yes",R29-R52,R29) -> 776.7 | S3: =IF(Benchmarking!$C$9="Yes",S29-S52,S29) -> 27068.04 | T3: =IF(Benchmarking!$C$9="Yes",T29-T52,T29) -> 101624.2 | U3: =IF(Benchmarking!$C$9="Yes",U29-U52,U29) -> 33753.85 | V3: =IF(Benchmarking!$C$9="Yes",V29-V52,V29) -> 155147.41 | W3: =IF(Benchmarking!$C$9="Yes",W29-W52,W29) -> 14651.22 | X3: =IF(Benchmarking!$C$9="Yes",X29-X52,X29) -> 185545.86 | Y3: =IF(Benchmarking!$C$9="Yes",Y29-Y52,Y29) -> 2194.83 | Z3: =IF(Benchmarking!$C$9="Yes",Z29-Z52,Z29) -> 41474.83 | AA3: =IF(Benchmarking!$C$9="Yes",AA29-AA52,AA29) -> 375648.03 | AB3: =IF(Benchmarking!$C$9="Yes",AB29-AB52,AB29) -> 14154.64 | AC3: =IF(Benchmarking!$C$9="Yes",AC29-AC52,AC29) -> 0 | AD3: =IF(Benchmarking!$C$9="Yes",AD29-AD52,AD29) -> 17154.4 | AE3: =IF(Benchmarking!$C$9="Yes",AE29-AE52,AE29) -> 65098.01 | AF3: =IF(Benchmarking!$C$9="Yes",AF29-AF52,AF29) -> 47547.96 | AG3: =IF(Benchmarking!$C$9="Yes",AG29-AG52,AG29) -> 7329.09 | AH3: =IF(Benchmarking!$C$9="Yes",AH29-AH52,AH29) -> 50049.56 | AI3: =IF(Benchmarking!$C$9="Yes",AI29-AI52,AI29) -> 23426.28 | AJ3: =IF(Benchmarking!$C$9="Yes",AJ29-AJ52,AJ29) -> 36734.7 | AK3: =IF(Benchmarking!$C$9="Yes",AK29-AK52,AK29) -> 16220.1 | AL3: =IF(Benchmarking!$C$9="Yes",AL29-AL52,AL29) -> 6990.08 | AM3: =IF(Benchmarking!$C$9="Yes",AM29-AM52,AM29) -> 223470.15 | AN3: =IF(Benchmarking!$C$9="Yes",AN29-AN52,AN29) -> 45087.3 | AO3: =IF(Benchmarking!$C$9="Yes",AO29-AO52,AO29) -> 335812.54 | AP3: =IF(Benchmarking!$C$9="Yes",AP29-AP52,AP29) -> 63295 | AQ3: =IF(Benchmarking!$C$9="Yes",AQ29-AQ52,AQ29) -> 0 | AR3: =IF(Benchmarking!$C$9="Yes",AR29-AR52,AR29) -> 50662.17 | AS3: =IF(Benchmarking!$C$9="Yes",AS29-AS52,AS29) -> 195251.11 | AT3: =IF(Benchmarking!$C$9="Yes",AT29-AT52,AT29) -> 0 | AU3: =IF(Benchmarking!$C$9="Yes",AU29-AU52,AU29) -> 0 | AV3: =IF(Benchmarking!$C$9="Yes",AV29-AV52,AV29) -> -2967543.98 | AW3: =IF(Benchmarking!$C$9="Yes",AW29-AW52,AW29) -> -1179197.53 | AX3: =IF(Benchmarking!$C$9="Yes",AX29-AX52,AX29) -> -5771052.89 | AY3: =IF(Benchmarking!$C$9="Yes",AY29-AY52,AY29) -> 0 | AZ3: =IF(Benchmarking!$C$9="Yes",AZ29-AZ52,AZ29) -> -126803.2 | BA3: =IF(Benchmarking!$C$9="Yes",BA29-BA52,BA29) -> -800 | BB3: =IF(Benchmarking!$C$9="Yes",BB29-BB52,BB29) -> -327416.86 | BC3: =IF(Benchmarking!$C$9="Yes",BC29-BC52,BC29) -> 0 | BD3: =IF(Benchmarking!$C$9="Yes",BD29-BD52,BD29) -> -32464.9 | BE3: =IF(Benchmarking!$C$9="Yes",BE29-BE52,BE29) -> 0 | BF3: =IF(Benchmarking!$C$9="Yes",BF29-BF52,BF29) -> -30306.56 | BG3: =IF(Benchmarking!$C$9="Yes",BG29-BG52,BG29) -> 0 | BH3: =IF(Benchmarking!$C$9="Yes",BH29-BH52,BH29) -> -19737.85 | BI3: =IF(Benchmarking!$C$9="Yes",BI29-BI52,BI29) -> -8550 | BJ3: =IF(Benchmarking!$C$9="Yes",BJ29-BJ52,BJ29) -> -1906.34 | BK3: =IF(Benchmarking!$C$9="Yes",BK29-BK52,BK29) -> 0 | BL3: =IF(Benchmarking!$C$9="Yes",BL29-BL52,BL29) -> 0 | BM3: =IF(Benchmarking!$C$9="Yes",BM29-BM52,BM29) -> -583 | BN3: =IF(Benchmarking!$C$9="Yes",BN29-BN52,BN29) -> 0 | BO3: =IF(Benchmarking!$C$9="Yes",BO29-BO52,BO29) -> 0 | BP3: =IF(Benchmarking!$C$9="Yes",BP29-BP52,BP29) -> -64297.81
A4: 7021 | B4: Valence School | C4: 0 | D4: 0 | E4: 115 | F4: 127 | G4: =C4+E4 -> 115 | H4: =D4+F4 -> 127 | I4: =IF(Benchmarking!$C$9="Yes",I30-I53,I30) -> 1696948.04 | J4: =IF(Benchmarking!$C$9="Yes",J30-J53,J30) -> 0 | K4: =IF(Benchmarking!$C$9="Yes",K30-K53,K30) -> 2717595.16 | L4: =IF(Benchmarking!$C$9="Yes",L30-L53,L30) -> 312667.54 | M4: =IF(Benchmarking!$C$9="Yes",M30-M53,M30) -> 434678.69 | N4: =IF(Benchmarking!$C$9="Yes",N30-N53,N30) -> 99625.55 | O4: =IF(Benchmarking!$C$9="Yes",O30-O53,O30) -> 562941.9 | P4: =IF(Benchmarking!$C$9="Yes",P30-P53,P30) -> 35849.25 | Q4: =IF(Benchmarking!$C$9="Yes",Q30-Q53,Q30) -> 25793.83 | R4: =IF(Benchmarking!$C$9="Yes",R30-R53,R30) -> 226.96 | S4: =IF(Benchmarking!$C$9="Yes",S30-S53,S30) -> 9109.68 | T4: =IF(Benchmarking!$C$9="Yes",T30-T53,T30) -> 136691.49 | U4: =IF(Benchmarking!$C$9="Yes",U30-U53,U30) -> 13093.99 | V4: =IF(Benchmarking!$C$9="Yes",V30-V53,V30) -> 30538.12 | W4: =IF(Benchmarking!$C$9="Yes",W30-W53,W30) -> 21222.48 | X4: =IF(Benchmarking!$C$9="Yes",X30-X53,X30) -> 81887.81 | Y4: =IF(Benchmarking!$C$9="Yes",Y30-Y53,Y30) -> 4232.48 | Z4: =IF(Benchmarking!$C$9="Yes",Z30-Z53,Z30) -> 53921.01 | AA4: =IF(Benchmarking!$C$9="Yes",AA30-AA53,AA30) -> 47465.99 | AB4: =IF(Benchmarking!$C$9="Yes",AB30-AB53,AB30) -> 19199.38 | AC4: =IF(Benchmarking!$C$9="Yes",AC30-AC53,AC30) -> 6608.12 | AD4: =IF(Benchmarking!$C$9="Yes",AD30-AD53,AD30) -> 6031.53 | AE4: =IF(Benchmarking!$C$9="Yes",AE30-AE53,AE30) -> 31577.1 | AF4: =IF(Benchmarking!$C$9="Yes",AF30-AF53,AF30) -> 575.37 | AG4: =IF(Benchmarking!$C$9="Yes",AG30-AG53,AG30) -> 4437.66 | AH4: =IF(Benchmarking!$C$9="Yes",AH30-AH53,AH30) -> 3638.8 | AI4: =IF(Benchmarking!$C$9="Yes",AI30-AI53,AI30) -> 7972.5 | AJ4: =IF(Benchmarking!$C$9="Yes",AJ30-AJ53,AJ30) -> 184044.29 | AK4: =IF(Benchmarking!$C$9="Yes",AK30-AK53,AK30) -> 7004.45 | AL4: =IF(Benchmarking!$C$9="Yes",AL30-AL53,AL30) -> 145.54 | AM4: =IF(Benchmarking!$C$9="Yes",AM30-AM53,AM30) -> 83434.61 | AN4: =IF(Benchmarking!$C$9="Yes",AN30-AN53,AN30) -> 14425.44 | AO4: =IF(Benchmarking!$C$9="Yes",AO30-AO53,AO30) -> 590892.59 | AP4: =IF(Benchmarking!$C$9="Yes",AP30-AP53,AP30) -> 32815.67 | AQ4: =IF(Benchmarking!$C$9="Yes",AQ30-AQ53,AQ30) -> 0 | AR4: =IF(Benchmarking!$C$9="Yes",AR30-AR53,AR30) -> 0 | AS4: =IF(Benchmarking!$C$9="Yes",AS30-AS53,AS30) -> 0 | AT4: =IF(Benchmarking!$C$9="Yes",AT30-AT53,AT30) -> 0 | AU4: =IF(Benchmarking!$C$9="Yes",AU30-AU53,AU30) -> 565.96 | AV4: =IF(Benchmarking!$C$9="Yes",AV30-AV53,AV30) -> -1032482.59 | AW4: =IF(Benchmarking!$C$9="Yes",AW30-AW53,AW30) -> -305447.34 | AX4: =IF(Benchmarking!$C$9="Yes",AX30-AX53,AX30) -> -5283831.12 | AY4: =IF(Benchmarking!$C$9="Yes",AY30-AY53,AY30) -> 0 | AZ4: =IF(Benchmarking!$C$9="Yes",AZ30-AZ53,AZ30) -> -44430 | BA4: =IF(Benchmarking!$C$9="Yes",BA30-BA53,BA30) -> -6082.53 | BB4: =IF(Benchmarking!$C$9="Yes",BB30-BB53,BB30) -> -1272591.91 | BC4: =IF(Benchmarking!$C$9="Yes",BC30-BC53,BC30) -> -8497.5 | BD4: =IF(Benchmarking!$C$9="Yes",BD30-BD53,BD30) -> -247657.07 | BE4: =IF(Benchmarking!$C$9="Yes",BE30-BE53,BE30) -> -19320.66 | BF4: =IF(Benchmarking!$C$9="Yes",BF30-BF53,BF30) -> 0 | BG4: =IF(Benchmarking!$C$9="Yes",BG30-BG53,BG30) -> -46904.92 | BH4: =IF(Benchmarking!$C$9="Yes",BH30-BH53,BH30) -> -868 | BI4: =IF(Benchmarking!$C$9="Yes",BI30-BI53,BI30) -> -8060.81 | BJ4: =IF(Benchmarking!$C$9="Yes",BJ30-BJ53,BJ30) -> 0 | BK4: =IF(Benchmarking!$C$9="Yes",BK30-BK53,BK30) -> 0 | BL4: =IF(Benchmarking!$C$9="Yes",BL30-BL53,BL30) -> 0 | BM4: =IF(Benchmarking!$C$9="Yes",BM30-BM53,BM30) -> -21103 | BN4: =IF(Benchmarking!$C$9="Yes",BN30-BN53,BN30) -> 0 | BO4: =IF(Benchmarking!$C$9="Yes",BO30-BO53,BO30) -> 0 | BP4: =IF(Benchmarking!$C$9="Yes",BP30-BP53,BP30) -> -12317.3
A5: 7032 | B5: Bower Grove School | C5: 0 | D5: 0 | E5: 225 | F5: 238 | G5: 225 | H5: 238 | I5: =IF(Benchmarking!$C$9="Yes",I31-I54,I31) -> 2623802.7 | J5: =IF(Benchmarking!$C$9="Yes",J31-J54,J31) -> 18353.05 | K5: =IF(Benchmarking!$C$9="Yes",K31-K54,K31) -> 2193037.57 | L5: =IF(Benchmarking!$C$9="Yes",L31-L54,L31) -> 98455.44 | M5: =IF(Benchmarking!$C$9="Yes",M31-M54,M31) -> 309161.09 | N5: =IF(Benchmarking!$C$9="Yes",N31-N54,N31) -> 58323.39 | O5: =IF(Benchmarking!$C$9="Yes",O31-O54,O31) -> 0 | P5: =IF(Benchmarking!$C$9="Yes",P31-P54,P31) -> 11769.66 | Q5: =IF(Benchmarking!$C$9="Yes",Q31-Q54,Q31) -> 27090.5 | R5: =IF(Benchmarking!$C$9="Yes",R31-R54,R31) -> 452.25 | S5: =IF(Benchmarking!$C$9="Yes",S31-S54,S31) -> 24841.68 | T5: =IF(Benchmarking!$C$9="Yes",T31-T54,T31) -> 47247.58 | U5: =IF(Benchmarking!$C$9="Yes",U31-U54,U31) -> 9742.51 | V5: =IF(Benchmarking!$C$9="Yes",V31-V54,V31) -> 95574.87 | W5: =IF(Benchmarking!$C$9="Yes",W31-W54,W31) -> 14750.27 | X5: =IF(Benchmarking!$C$9="Yes",X31-X54,X31) -> 64595.07 | Y5: =IF(Benchmarking!$C$9="Yes",Y31-Y54,Y31) -> 0 | Z5: =IF(Benchmarking!$C$9="Yes",Z31-Z54,Z31) -> 5781.58 | AA5: =IF(Benchmarking!$C$9="Yes",AA31-AA54,AA31) -> 61705.08 | AB5: =IF(Benchmarking!$C$9="Yes",AB31-AB54,AB31) -> 3109.72 | AC5: =IF(Benchmarking!$C$9="Yes",AC31-AC54,AC31) -> 0 | AD5: =IF(Benchmarking!$C$9="Yes",AD31-AD54,AD31) -> 46473.93 | AE5: =IF(Benchmarking!$C$9="Yes",AE31-AE54,AE31) -> 0 | AF5: =IF(Benchmarking!$C$9="Yes",AF31-AF54,AF31) -> 12873.3 | AG5: =IF(Benchmarking!$C$9="Yes",AG31-AG54,AG31) -> 4428.31 | AH5: =IF(Benchmarking!$C$9="Yes",AH31-AH54,AH31) -> 139.5 | AI5: =IF(Benchmarking!$C$9="Yes",AI31-AI54,AI31) -> 6975.42 | AJ5: =IF(Benchmarking!$C$9="Yes",AJ31-AJ54,AJ31) -> 46143.59 | AK5: =IF(Benchmarking!$C$9="Yes",AK31-AK54,AK31) -> 11163.54 | AL5: =IF(Benchmarking!$C$9="Yes",AL31-AL54,AL31) -> 72706.42 | AM5: =IF(Benchmarking!$C$9="Yes",AM31-AM54,AM31) -> 55835.77 | AN5: =IF(Benchmarking!$C$9="Yes",AN31-AN54,AN31) -> 2150 | AO5: =IF(Benchmarking!$C$9="Yes",AO31-AO54,AO31) -> 183689.12 | AP5: =IF(Benchmarking!$C$9="Yes",AP31-AP54,AP31) -> 43758.04 | AQ5: =IF(Benchmarking!$C$9="Yes",AQ31-AQ54,AQ31) -> 0 | AR5: =IF(Benchmarking!$C$9="Yes",AR31-AR54,AR31) -> 0 | AS5: =IF(Benchmarking!$C$9="Yes",AS31-AS54,AS31) -> 0 | AT5: =IF(Benchmarking!$C$9="Yes",AT31-AT54,AT31) -> 0 | AU5: =IF(Benchmarking!$C$9="Yes",AU31-AU54,AU31) -> 0 | AV5: =IF(Benchmarking!$C$9="Yes",AV31-AV54,AV31) -> -2473139.21 | AW5: =IF(Benchmarking!$C$9="Yes",AW31-AW54,AW31) -> 0 | AX5: =IF(Benchmarking!$C$9="Yes",AX31-AX54,AX31) -> -2860451.09 | AY5: =IF(Benchmarking!$C$9="Yes",AY31-AY54,AY31) -> 0 | AZ5: =IF(Benchmarking!$C$9="Yes",AZ31-AZ54,AZ31) -> -270271 | BA5: =IF(Benchmarking!$C$9="Yes",BA31-BA54,BA31) -> -9200 | BB5: =IF(Benchmarking!$C$9="Yes",BB31-BB54,BB31) -> -1976.42 | BC5: =IF(Benchmarking!$C$9="Yes",BC31-BC54,BC31) -> -7879.88 | BD5: =IF(Benchmarking!$C$9="Yes",BD31-BD54,BD31) -> -292136.49 | BE5: =IF(Benchmarking!$C$9="Yes",BE31-BE54,BE31) -> -11904.17 | BF5: =IF(Benchmarking!$C$9="Yes",BF31-BF54,BF31) -> 0 | BG5: =IF(Benchmarking!$C$9="Yes",BG31-BG54,BG31) -> -2201.77 | BH5: =IF(Benchmarking!$C$9="Yes",BH31-BH54,BH31) -> -24546.5 | BI5: =IF(Benchmarking!$C$9="Yes",BI31-BI54,BI31) -> -3495.69 | BJ5: =IF(Benchmarking!$C$9="Yes",BJ31-BJ54,BJ31) -> 0 | BK5: =IF(Benchmarking!$C$9="Yes",BK31-BK54,BK31) -> 0 | BL5: =IF(Benchmarking!$C$9="Yes",BL31-BL54,BL31) -> 0 | BM5: =IF(Benchmarking!$C$9="Yes",BM31-BM54,BM31) -> -18919 | BN5: =IF(Benchmarking!$C$9="Yes",BN31-BN54,BN31) -> 0 | BO5: =IF(Benchmarking!$C$9="Yes",BO31-BO54,BO31) -> 0 | BP5: =IF(Benchmarking!$C$9="Yes",BP31-BP54,BP31) -> -55191.25
A6: 7033 | B6: St Anthony's School | C6: 0 | D6: 0 | E6: 98 | F6: 105.3333333 | G6: 98 | H6: 105.3333333 | I6: =IF(Benchmarking!$C$9="Yes",I32-I55,I32) -> 1342681.2 | J6: =IF(Benchmarking!$C$9="Yes",J32-J55,J32) -> 0 | K6: =IF(Benchmarking!$C$9="Yes",K32-K55,K32) -> 744948.63 | L6: =IF(Benchmarking!$C$9="Yes",L32-L55,L32) -> 40731.59 | M6: =IF(Benchmarking!$C$9="Yes",M32-M55,M32) -> 209220.08 | N6: =IF(Benchmarking!$C$9="Yes",N32-N55,N32) -> 43755.8 | O6: =IF(Benchmarking!$C$9="Yes",O32-O55,O32) -> 53127.76 | P6: =IF(Benchmarking!$C$9="Yes",P32-P55,P32) -> 996.76 | Q6: =IF(Benchmarking!$C$9="Yes",Q32-Q55,Q32) -> 8485.46 | R6: =IF(Benchmarking!$C$9="Yes",R32-R55,R32) -> 203.68 | S6: =IF(Benchmarking!$C$9="Yes",S32-S55,S32) -> 10776.48 | T6: =IF(Benchmarking!$C$9="Yes",T32-T55,T32) -> 46039.56 | U6: =IF(Benchmarking!$C$9="Yes",U32-U55,U32) -> 6435 | V6: =IF(Benchmarking!$C$9="Yes",V32-V55,V32) -> 51668.52 | W6: =IF(Benchmarking!$C$9="Yes",W32-W55,W32) -> 4999.19 | X6: =IF(Benchmarking!$C$9="Yes",X32-X55,X32) -> 36860.49 | Y6: =IF(Benchmarking!$C$9="Yes",Y32-Y55,Y32) -> 0 | Z6: =IF(Benchmarking!$C$9="Yes",Z32-Z55,Z32) -> 9245.8 | AA6: =IF(Benchmarking!$C$9="Yes",AA32-AA55,AA32) -> 77298.74 | AB6: =IF(Benchmarking!$C$9="Yes",AB32-AB55,AB32) -> 4528.29 | AC6: =IF(Benchmarking!$C$9="Yes",AC32-AC55,AC32) -> 4951.62 | AD6: =IF(Benchmarking!$C$9="Yes",AD32-AD55,AD32) -> 3042.08 | AE6: =IF(Benchmarking!$C$9="Yes",AE32-AE55,AE32) -> 4869.75 | AF6: =IF(Benchmarking!$C$9="Yes",AF32-AF55,AF32) -> 1220 | AG6: =IF(Benchmarking!$C$9="Yes",AG32-AG55,AG32) -> 5100.01 | AH6: =IF(Benchmarking!$C$9="Yes",AH32-AH55,AH32) -> 2628.8 | AI6: =IF(Benchmarking!$C$9="Yes",AI32-AI55,AI32) -> 3765.76 | AJ6: =IF(Benchmarking!$C$9="Yes",AJ32-AJ55,AJ32) -> 7284.74 | AK6: =IF(Benchmarking!$C$9="Yes",AK32-AK55,AK32) -> 5409.07 | AL6: =IF(Benchmarking!$C$9="Yes",AL32-AL55,AL32) -> 12098 | AM6: =IF(Benchmarking!$C$9="Yes",AM32-AM55,AM32) -> 49138.05 | AN6: =IF(Benchmarking!$C$9="Yes",AN32-AN55,AN32) -> 0.13 | AO6: =IF(Benchmarking!$C$9="Yes",AO32-AO55,AO32) -> 203391.08 | AP6: =IF(Benchmarking!$C$9="Yes",AP32-AP55,AP32) -> 36515.41 | AQ6: =IF(Benchmarking!$C$9="Yes",AQ32-AQ55,AQ32) -> 0 | AR6: =IF(Benchmarking!$C$9="Yes",AR32-AR55,AR32) -> 0 | AS6: =IF(Benchmarking!$C$9="Yes",AS32-AS55,AS32) -> 35000 | AT6: =IF(Benchmarking!$C$9="Yes",AT32-AT55,AT32) -> 0 | AU6: =IF(Benchmarking!$C$9="Yes",AU32-AU55,AU32) -> 0 | AV6: =IF(Benchmarking!$C$9="Yes",AV32-AV55,AV32) -> -1099005.98 | AW6: =IF(Benchmarking!$C$9="Yes",AW32-AW55,AW32) -> 0 | AX6: =IF(Benchmarking!$C$9="Yes",AX32-AX55,AX32) -> -1597480.96 | AY6: =IF(Benchmarking!$C$9="Yes",AY32-AY55,AY32) -> 0 | AZ6: =IF(Benchmarking!$C$9="Yes",AZ32-AZ55,AZ32) -> -122685.38 | BA6: =IF(Benchmarking!$C$9="Yes",BA32-BA55,BA32) -> -63356.93 | BB6: =IF(Benchmarking!$C$9="Yes",BB32-BB55,BB32) -> -57647.31 | BC6: =IF(Benchmarking!$C$9="Yes",BC32-BC55,BC32) -> -11900 | BD6: =IF(Benchmarking!$C$9="Yes",BD32-BD55,BD32) -> -937.79 | BE6: =IF(Benchmarking!$C$9="Yes",BE32-BE55,BE32) -> -4818.72 | BF6: =IF(Benchmarking!$C$9="Yes",BF32-BF55,BF32) -> 0 | BG6: =IF(Benchmarking!$C$9="Yes",BG32-BG55,BG32) -> -9569.58 | BH6: =IF(Benchmarking!$C$9="Yes",BH32-BH55,BH32) -> -50 | BI6: =IF(Benchmarking!$C$9="Yes",BI32-BI55,BI32) -> -7481.78 | BJ6: =IF(Benchmarking!$C$9="Yes",BJ32-BJ55,BJ32) -> 0 | BK6: =IF(Benchmarking!$C$9="Yes",BK32-BK55,BK32) -> 0 | BL6: =IF(Benchmarking!$C$9="Yes",BL32-BL55,BL32) -> 0 | BM6: =IF(Benchmarking!$C$9="Yes",BM32-BM55,BM32) -> -16318 | BN6: =IF(Benchmarking!$C$9="Yes",BN32-BN55,BN32) -> 0 | BO6: =IF(Benchmarking!$C$9="Yes",BO32-BO55,BO32) -> 0 | BP6: =IF(Benchmarking!$C$9="Yes",BP32-BP55,BP32) -> -26767.5
A7: 7039 | B7: The Ifield School | C7: 0 | D7: 0 | E7: 266 | F7: 278.5 | G7: 266 | H7: 278.5 | I7: =IF(Benchmarking!$C$9="Yes",I33-I56,I33) -> 2697058.08 | J7: =IF(Benchmarking!$C$9="Yes",J33-J56,J33) -> 12857.45 | K7: =IF(Benchmarking!$C$9="Yes",K33-K56,K33) -> 3110424.57 | L7: =IF(Benchmarking!$C$9="Yes",L33-L56,L33) -> 244516.14 | M7: =IF(Benchmarking!$C$9="Yes",M33-M56,M33) -> 479521.89 | N7: =IF(Benchmarking!$C$9="Yes",N33-N56,N33) -> 73058.23 | O7: =IF(Benchmarking!$C$9="Yes",O33-O56,O33) -> 0 | P7: =IF(Benchmarking!$C$9="Yes",P33-P56,P33) -> 47906.73 | Q7: =IF(Benchmarking!$C$9="Yes",Q33-Q56,Q33) -> 47489.83 | R7: =IF(Benchmarking!$C$9="Yes",R33-R56,R33) -> 535.67 | S7: =IF(Benchmarking!$C$9="Yes",S33-S56,S33) -> 23466.99 | T7: =IF(Benchmarking!$C$9="Yes",T33-T56,T33) -> 146921.25 | U7: =IF(Benchmarking!$C$9="Yes",U33-U56,U33) -> 9220.88 | V7: =IF(Benchmarking!$C$9="Yes",V33-V56,V33) -> 13389.77 | W7: =IF(Benchmarking!$C$9="Yes",W33-W56,W33) -> 23822.27 | X7: =IF(Benchmarking!$C$9="Yes",X33-X56,X33) -> 85946.25 | Y7: =IF(Benchmarking!$C$9="Yes",Y33-Y56,Y33) -> 0 | Z7: =IF(Benchmarking!$C$9="Yes",Z33-Z56,Z33) -> 126048.01 | AA7: =IF(Benchmarking!$C$9="Yes",AA33-AA56,AA33) -> 142962.8 | AB7: =IF(Benchmarking!$C$9="Yes",AB33-AB56,AB33) -> 7304 | AC7: =IF(Benchmarking!$C$9="Yes",AC33-AC56,AC33) -> 0 | AD7: =IF(Benchmarking!$C$9="Yes",AD33-AD56,AD33) -> 11447.01 | AE7: =IF(Benchmarking!$C$9="Yes",AE33-AE56,AE33) -> 16287.71 | AF7: =IF(Benchmarking!$C$9="Yes",AF33-AF56,AF33) -> 28486.6 | AG7: =IF(Benchmarking!$C$9="Yes",AG33-AG56,AG33) -> 3086.66 | AH7: =IF(Benchmarking!$C$9="Yes",AH33-AH56,AH33) -> 0 | AI7: =IF(Benchmarking!$C$9="Yes",AI33-AI56,AI33) -> 5049.03 | AJ7: =IF(Benchmarking!$C$9="Yes",AJ33-AJ56,AJ33) -> 34525.34 | AK7: =IF(Benchmarking!$C$9="Yes",AK33-AK56,AK33) -> 12711.95 | AL7: =IF(Benchmarking!$C$9="Yes",AL33-AL56,AL33) -> 72458.52 | AM7: =IF(Benchmarking!$C$9="Yes",AM33-AM56,AM33) -> 73212.6 | AN7: =IF(Benchmarking!$C$9="Yes",AN33-AN56,AN33) -> 0 | AO7: =IF(Benchmarking!$C$9="Yes",AO33-AO56,AO33) -> 501596.65 | AP7: =IF(Benchmarking!$C$9="Yes",AP33-AP56,AP33) -> 79129.53 | AQ7: =IF(Benchmarking!$C$9="Yes",AQ33-AQ56,AQ33) -> 0 | AR7: =IF(Benchmarking!$C$9="Yes",AR33-AR56,AR33) -> 0 | AS7: =IF(Benchmarking!$C$9="Yes",AS33-AS56,AS33) -> 0 | AT7: =IF(Benchmarking!$C$9="Yes",AT33-AT56,AT33) -> 0 | AU7: =IF(Benchmarking!$C$9="Yes",AU33-AU56,AU33) -> 0 | AV7: =IF(Benchmarking!$C$9="Yes",AV33-AV56,AV33) -> -2574363.4 | AW7: =IF(Benchmarking!$C$9="Yes",AW33-AW56,AW33) -> -436584.32 | AX7: =IF(Benchmarking!$C$9="Yes",AX33-AX56,AX33) -> -3490972.32 | AY7: =IF(Benchmarking!$C$9="Yes",AY33-AY56,AY33) -> 0 | AZ7: =IF(Benchmarking!$C$9="Yes",AZ33-AZ56,AZ33) -> -137949 | BA7: =IF(Benchmarking!$C$9="Yes",BA33-BA56,BA33) -> -7142.57 | BB7: =IF(Benchmarking!$C$9="Yes",BB33-BB56,BB33) -> -3930.83 | BC7: =IF(Benchmarking!$C$9="Yes",BC33-BC56,BC33) -> -50.27 | BD7: =IF(Benchmarking!$C$9="Yes",BD33-BD56,BD33) -> -1462031.6 | BE7: =IF(Benchmarking!$C$9="Yes",BE33-BE56,BE33) -> -25267.87 | BF7: =IF(Benchmarking!$C$9="Yes",BF33-BF56,BF33) -> 0 | BG7: =IF(Benchmarking!$C$9="Yes",BG33-BG56,BG33) -> -14469.6 | BH7: =IF(Benchmarking!$C$9="Yes",BH33-BH56,BH33) -> -10653.7 | BI7: =IF(Benchmarking!$C$9="Yes",BI33-BI56,BI33) -> -52955.03 | BJ7: =IF(Benchmarking!$C$9="Yes",BJ33-BJ56,BJ33) -> 0 | BK7: =IF(Benchmarking!$C$9="Yes",BK33-BK56,BK33) -> 0 | BL7: =IF(Benchmarking!$C$9="Yes",BL33-BL56,BL33) -> 0 | BM7: =IF(Benchmarking!$C$9="Yes",BM33-BM56,BM33) -> -27702 | BN7: =IF(Benchmarking!$C$9="Yes",BN33-BN56,BN33) -> 0 | BO7: =IF(Benchmarking!$C$9="Yes",BO33-BO56,BO33) -> 0 | BP7: =IF(Benchmarking!$C$9="Yes",BP33-BP56,BP33) -> -29516.67
A8: 7040 | B8: The Foreland School | C8: 19 | D8: 0 | E8: 244 | F8: 268.6666667 | G8: 263 | H8: 268.6666667 | I8: =IF(Benchmarking!$C$9="Yes",I34-I57,I34) -> 2748965.53 | J8: =IF(Benchmarking!$C$9="Yes",J34-J57,J34) -> 1186.85 | K8: =IF(Benchmarking!$C$9="Yes",K34-K57,K34) -> 3131389.74 | L8: =IF(Benchmarking!$C$9="Yes",L34-L57,L34) -> 68761.52 | M8: =IF(Benchmarking!$C$9="Yes",M34-M57,M34) -> 323320.35 | N8: =IF(Benchmarking!$C$9="Yes",N34-N57,N34) -> 0 | O8: =IF(Benchmarking!$C$9="Yes",O34-O57,O34) -> 100774.74 | P8: =IF(Benchmarking!$C$9="Yes",P34-P57,P34) -> 31745.38 | Q8: =IF(Benchmarking!$C$9="Yes",Q34-Q57,Q34) -> 15384.45 | R8: =IF(Benchmarking!$C$9="Yes",R34-R57,R34) -> 490.27 | S8: =IF(Benchmarking!$C$9="Yes",S34-S57,S34) -> 23671.2 | T8: =IF(Benchmarking!$C$9="Yes",T34-T57,T34) -> 71357.22 | U8: =IF(Benchmarking!$C$9="Yes",U34-U57,U34) -> 32565.82 | V8: =IF(Benchmarking!$C$9="Yes",V34-V57,V34) -> 122967.75 | W8: =IF(Benchmarking!$C$9="Yes",W34-W57,W34) -> 19193.31 | X8: =IF(Benchmarking!$C$9="Yes",X34-X57,X34) -> 124420.75 | Y8: =IF(Benchmarking!$C$9="Yes",Y34-Y57,Y34) -> 0 | Z8: =IF(Benchmarking!$C$9="Yes",Z34-Z57,Z34) -> 190248.41 | AA8: =IF(Benchmarking!$C$9="Yes",AA34-AA57,AA34) -> 150276.44 | AB8: =IF(Benchmarking!$C$9="Yes",AB34-AB57,AB34) -> 0 | AC8: =IF(Benchmarking!$C$9="Yes",AC34-AC57,AC34) -> 6050.24 | AD8: =IF(Benchmarking!$C$9="Yes",AD34-AD57,AD34) -> 0 | AE8: =IF(Benchmarking!$C$9="Yes",AE34-AE57,AE34) -> 4491.36 | AF8: =IF(Benchmarking!$C$9="Yes",AF34-AF57,AF34) -> 13009.62 | AG8: =IF(Benchmarking!$C$9="Yes",AG34-AG57,AG34) -> 15811.75 | AH8: =IF(Benchmarking!$C$9="Yes",AH34-AH57,AH34) -> 7913.54 | AI8: =IF(Benchmarking!$C$9="Yes",AI34-AI57,AI34) -> 565.5 | AJ8: =IF(Benchmarking!$C$9="Yes",AJ34-AJ57,AJ34) -> 10864.56 | AK8: =IF(Benchmarking!$C$9="Yes",AK34-AK57,AK34) -> 49682.88 | AL8: =IF(Benchmarking!$C$9="Yes",AL34-AL57,AL34) -> 10822.95 | AM8: =IF(Benchmarking!$C$9="Yes",AM34-AM57,AM34) -> 36501.68 | AN8: =IF(Benchmarking!$C$9="Yes",AN34-AN57,AN34) -> 92630.93 | AO8: =IF(Benchmarking!$C$9="Yes",AO34-AO57,AO34) -> 0 | AP8: =IF(Benchmarking!$C$9="Yes",AP34-AP57,AP34) -> 12960.68 | AQ8: =IF(Benchmarking!$C$9="Yes",AQ34-AQ57,AQ34) -> 26404.56 | AR8: =IF(Benchmarking!$C$9="Yes",AR34-AR57,AR34) -> 0 | AS8: =IF(Benchmarking!$C$9="Yes",AS34-AS57,AS34) -> 0 | AT8: =IF(Benchmarking!$C$9="Yes",AT34-AT57,AT34) -> 0 | AU8: =IF(Benchmarking!$C$9="Yes",AU34-AU57,AU34) -> 0 | AV8: =IF(Benchmarking!$C$9="Yes",AV34-AV57,AV34) -> -2698748.89 | AW8: =IF(Benchmarking!$C$9="Yes",AW34-AW57,AW34) -> -342739.51 | AX8: =IF(Benchmarking!$C$9="Yes",AX34-AX57,AX34) -> -3503202.47 | AY8: =IF(Benchmarking!$C$9="Yes",AY34-AY57,AY34) -> 0 | AZ8: =IF(Benchmarking!$C$9="Yes",AZ34-AZ57,AZ34) -> -169095.39 | BA8: =IF(Benchmarking!$C$9="Yes",BA34-BA57,BA34) -> -7628.22 | BB8: =IF(Benchmarking!$C$9="Yes",BB34-BB57,BB34) -> -546625.98 | BC8: =IF(Benchmarking!$C$9="Yes",BC34-BC57,BC34) -> -100 | BD8: =IF(Benchmarking!$C$9="Yes",BD34-BD57,BD34) -> -58813.06 | BE8: =IF(Benchmarking!$C$9="Yes",BE34-BE57,BE34) -> -13213.61 | BF8: =IF(Benchmarking!$C$9="Yes",BF34-BF57,BF34) -> 0 | BG8: =IF(Benchmarking!$C$9="Yes",BG34-BG57,BG34) -> -23855.21 | BH8: =IF(Benchmarking!$C$9="Yes",BH34-BH57,BH34) -> -284 | BI8: =IF(Benchmarking!$C$9="Yes",BI34-BI57,BI34) -> -30876.14 | BJ8: =IF(Benchmarking!$C$9="Yes",BJ34-BJ57,BJ34) -> 0 | BK8: =IF(Benchmarking!$C$9="Yes",BK34-BK57,BK34) -> 0 | BL8: =IF(Benchmarking!$C$9="Yes",BL34-BL57,BL34) -> 0 | BM8: =IF(Benchmarking!$C$9="Yes",BM34-BM57,BM34) -> -33489 | BN8: =IF(Benchmarking!$C$9="Yes",BN34-BN57,BN34) -> 0 | BO8: =IF(Benchmarking!$C$9="Yes",BO34-BO57,BO34) -> 0 | BP8: =IF(Benchmarking!$C$9="Yes",BP34-BP57,BP34) -> -26326.36
A9: 7041 | B9: Goldwyn Community Special School | C9: 0 | D9: 0 | E9: 195 | F9: 203.5 | G9: 195 | H9: 203.5 | I9: =IF(Benchmarking!$C$9="Yes",I35-I58,I35) -> 3035059.78 | J9: =IF(Benchmarking!$C$9="Yes",J35-J58,J35) -> 0 | K9: =IF(Benchmarking!$C$9="Yes",K35-K58,K35) -> 1171975.98 | L9: =IF(Benchmarking!$C$9="Yes",L35-L58,L35) -> 178118.03 | M9: =IF(Benchmarking!$C$9="Yes",M35-M58,M35) -> 377087.38 | N9: =IF(Benchmarking!$C$9="Yes",N35-N58,N35) -> 33963.24 | O9: =IF(Benchmarking!$C$9="Yes",O35-O58,O35) -> 261322.79 | P9: =IF(Benchmarking!$C$9="Yes",P35-P58,P35) -> 56043.86 | Q9: =IF(Benchmarking!$C$9="Yes",Q35-Q58,Q35) -> 19905.86 | R9: =IF(Benchmarking!$C$9="Yes",R35-R58,R35) -> 391.95 | S9: =IF(Benchmarking!$C$9="Yes",S35-S58,S35) -> 18357.72 | T9: =IF(Benchmarking!$C$9="Yes",T35-T58,T35) -> 26643.88 | U9: =IF(Benchmarking!$C$9="Yes",U35-U58,U35) -> 17381.27 | V9: =IF(Benchmarking!$C$9="Yes",V35-V58,V35) -> 83196.35 | W9: =IF(Benchmarking!$C$9="Yes",W35-W58,W35) -> 10303.81 | X9: =IF(Benchmarking!$C$9="Yes",X35-X58,X35) -> 87459.19 | Y9: =IF(Benchmarking!$C$9="Yes",Y35-Y58,Y35) -> 0 | Z9: =IF(Benchmarking!$C$9="Yes",Z35-Z58,Z35) -> 108496.67 | AA9: =IF(Benchmarking!$C$9="Yes",AA35-AA58,AA35) -> 66644.37 | AB9: =IF(Benchmarking!$C$9="Yes",AB35-AB58,AB35) -> 32021.99 | AC9: =IF(Benchmarking!$C$9="Yes",AC35-AC58,AC35) -> 0 | AD9: =IF(Benchmarking!$C$9="Yes",AD35-AD58,AD35) -> 19234.19 | AE9: =IF(Benchmarking!$C$9="Yes",AE35-AE58,AE35) -> 15258.74 | AF9: =IF(Benchmarking!$C$9="Yes",AF35-AF58,AF35) -> 5839.99 | AG9: =IF(Benchmarking!$C$9="Yes",AG35-AG58,AG35) -> 15977.32 | AH9: =IF(Benchmarking!$C$9="Yes",AH35-AH58,AH35) -> 8243.04 | AI9: =IF(Benchmarking!$C$9="Yes",AI35-AI58,AI35) -> 33203.67 | AJ9: =IF(Benchmarking!$C$9="Yes",AJ35-AJ58,AJ35) -> 37470.21 | AK9: =IF(Benchmarking!$C$9="Yes",AK35-AK58,AK35) -> 15638.82 | AL9: =IF(Benchmarking!$C$9="Yes",AL35-AL58,AL35) -> 1122640.58 | AM9: =IF(Benchmarking!$C$9="Yes",AM35-AM58,AM35) -> 36631.53 | AN9: =IF(Benchmarking!$C$9="Yes",AN35-AN58,AN35) -> 39566.95 | AO9: =IF(Benchmarking!$C$9="Yes",AO35-AO58,AO35) -> 189982.8 | AP9: =IF(Benchmarking!$C$9="Yes",AP35-AP58,AP35) -> 77621.3 | AQ9: =IF(Benchmarking!$C$9="Yes",AQ35-AQ58,AQ35) -> 0 | AR9: =IF(Benchmarking!$C$9="Yes",AR35-AR58,AR35) -> 0 | AS9: =IF(Benchmarking!$C$9="Yes",AS35-AS58,AS35) -> 0 | AT9: =IF(Benchmarking!$C$9="Yes",AT35-AT58,AT35) -> 0 | AU9: =IF(Benchmarking!$C$9="Yes",AU35-AU58,AU35) -> 0 | AV9: =IF(Benchmarking!$C$9="Yes",AV35-AV58,AV35) -> -1784014.83 | AW9: =IF(Benchmarking!$C$9="Yes",AW35-AW58,AW35) -> -354357.63 | AX9: =IF(Benchmarking!$C$9="Yes",AX35-AX58,AX35) -> -2921393.91 | AY9: =IF(Benchmarking!$C$9="Yes",AY35-AY58,AY35) -> 0 | AZ9: =IF(Benchmarking!$C$9="Yes",AZ35-AZ58,AZ35) -> -128755 | BA9: =IF(Benchmarking!$C$9="Yes",BA35-BA58,BA35) -> -308210.62 | BB9: =IF(Benchmarking!$C$9="Yes",BB35-BB58,BB35) -> -210000 | BC9: =IF(Benchmarking!$C$9="Yes",BC35-BC58,BC35) -> -100 | BD9: =IF(Benchmarking!$C$9="Yes",BD35-BD58,BD35) -> -1753867.45 | BE9: =IF(Benchmarking!$C$9="Yes",BE35-BE58,BE35) -> -5678.25 | BF9: =IF(Benchmarking!$C$9="Yes",BF35-BF58,BF35) -> 0 | BG9: =IF(Benchmarking!$C$9="Yes",BG35-BG58,BG35) -> -49226.11 | BH9: =IF(Benchmarking!$C$9="Yes",BH35-BH58,BH35) -> -330 | BI9: =IF(Benchmarking!$C$9="Yes",BI35-BI58,BI35) -> -4238.51 | BJ9: =IF(Benchmarking!$C$9="Yes",BJ35-BJ58,BJ35) -> 0 | BK9: =IF(Benchmarking!$C$9="Yes",BK35-BK58,BK35) -> 0 | BL9: =IF(Benchmarking!$C$9="Yes",BL35-BL58,BL35) -> 0 | BM9: =IF(Benchmarking!$C$9="Yes",BM35-BM58,BM35) -> 0 | BN9: =IF(Benchmarking!$C$9="Yes",BN35-BN58,BN35) -> 0 | BO9: =IF(Benchmarking!$C$9="Yes",BO35-BO58,BO35) -> 0 | BP9: =IF(Benchmarking!$C$9="Yes",BP35-BP58,BP35) -> -28824.06
A10: 7043 | B10: The Beacon, Folkestone | C10: 0 | D10: 0 | E10: 408 | F10: 425.9166667 | G10: 408 | H10: 425.9166667 | I10: =IF(Benchmarking!$C$9="Yes",I36-I59,I36) -> 3911738.61 | J10: =IF(Benchmarking!$C$9="Yes",J36-J59,J36) -> 0 | K10: =IF(Benchmarking!$C$9="Yes",K36-K59,K36) -> 3973184.68 | L10: =IF(Benchmarking!$C$9="Yes",L36-L59,L36) -> 516118.78 | M10: =IF(Benchmarking!$C$9="Yes",M36-M59,M36) -> 511453.31 | N10: =IF(Benchmarking!$C$9="Yes",N36-N59,N36) -> 121155.63 | O10: =IF(Benchmarking!$C$9="Yes",O36-O59,O36) -> 184369.89 | P10: =IF(Benchmarking!$C$9="Yes",P36-P59,P36) -> 49493.91 | Q10: =IF(Benchmarking!$C$9="Yes",Q36-Q59,Q36) -> -33201.45 | R10: =IF(Benchmarking!$C$9="Yes",R36-R59,R36) -> 812.38 | S10: =IF(Benchmarking!$C$9="Yes",S36-S59,S36) -> 35703.84 | T10: =IF(Benchmarking!$C$9="Yes",T36-T59,T36) -> 86687.49 | U10: =IF(Benchmarking!$C$9="Yes",U36-U59,U36) -> 35828.12 | V10: =IF(Benchmarking!$C$9="Yes",V36-V59,V36) -> 16660.72 | W10: =IF(Benchmarking!$C$9="Yes",W36-W59,W36) -> 12739.21 | X10: =IF(Benchmarking!$C$9="Yes",X36-X59,X36) -> 146208.66 | Y10: =IF(Benchmarking!$C$9="Yes",Y36-Y59,Y36) -> 0 | Z10: =IF(Benchmarking!$C$9="Yes",Z36-Z59,Z36) -> 66406.04 | AA10: =IF(Benchmarking!$C$9="Yes",AA36-AA59,AA36) -> 137707.71 | AB10: =IF(Benchmarking!$C$9="Yes",AB36-AB59,AB36) -> 16854.16 | AC10: =IF(Benchmarking!$C$9="Yes",AC36-AC59,AC36) -> 0 | AD10: =IF(Benchmarking!$C$9="Yes",AD36-AD59,AD36) -> 25663.75 | AE10: =IF(Benchmarking!$C$9="Yes",AE36-AE59,AE36) -> 46415.06 | AF10: =IF(Benchmarking!$C$9="Yes",AF36-AF59,AF36) -> 52649.96 | AG10: =IF(Benchmarking!$C$9="Yes",AG36-AG59,AG36) -> 27693.23 | AH10: =IF(Benchmarking!$C$9="Yes",AH36-AH59,AH36) -> 33935.2 | AI10: =IF(Benchmarking!$C$9="Yes",AI36-AI59,AI36) -> 20029.96 | AJ10: =IF(Benchmarking!$C$9="Yes",AJ36-AJ59,AJ36) -> 24932.59 | AK10: =IF(Benchmarking!$C$9="Yes",AK36-AK59,AK36) -> 17324.18 | AL10: =IF(Benchmarking!$C$9="Yes",AL36-AL59,AL36) -> 28449.59 | AM10: =IF(Benchmarking!$C$9="Yes",AM36-AM59,AM36) -> 164816.28 | AN10: =IF(Benchmarking!$C$9="Yes",AN36-AN59,AN36) -> 1134 | AO10: =IF(Benchmarking!$C$9="Yes",AO36-AO59,AO36) -> 80108.63 | AP10: =IF(Benchmarking!$C$9="Yes",AP36-AP59,AP36) -> 46339.1 | AQ10: =IF(Benchmarking!$C$9="Yes",AQ36-AQ59,AQ36) -> 0 | AR10: =IF(Benchmarking!$C$9="Yes",AR36-AR59,AR36) -> 0 | AS10: =IF(Benchmarking!$C$9="Yes",AS36-AS59,AS36) -> 24000 | AT10: =IF(Benchmarking!$C$9="Yes",AT36-AT59,AT36) -> 0 | AU10: =IF(Benchmarking!$C$9="Yes",AU36-AU59,AU36) -> 0 | AV10: =IF(Benchmarking!$C$9="Yes",AV36-AV59,AV36) -> -3729707.75 | AW10: =IF(Benchmarking!$C$9="Yes",AW36-AW59,AW36) -> -1010527.33 | AX10: =IF(Benchmarking!$C$9="Yes",AX36-AX59,AX36) -> -4806157.17 | AY10: =IF(Benchmarking!$C$9="Yes",AY36-AY59,AY36) -> 0 | AZ10: =IF(Benchmarking!$C$9="Yes",AZ36-AZ59,AZ36) -> -278183.75 | BA10: =IF(Benchmarking!$C$9="Yes",BA36-BA59,BA36) -> -13420.29 | BB10: =IF(Benchmarking!$C$9="Yes",BB36-BB59,BB36) -> -13183.78 | BC10: =IF(Benchmarking!$C$9="Yes",BC36-BC59,BC36) -> -62203.87 | BD10: =IF(Benchmarking!$C$9="Yes",BD36-BD59,BD36) -> -855795.72 | BE10: =IF(Benchmarking!$C$9="Yes",BE36-BE59,BE36) -> -105349.66 | BF10: =IF(Benchmarking!$C$9="Yes",BF36-BF59,BF36) -> 0 | BG10: =IF(Benchmarking!$C$9="Yes",BG36-BG59,BG36) -> -6296.37 | BH10: =IF(Benchmarking!$C$9="Yes",BH36-BH59,BH36) -> -1796.23 | BI10: =IF(Benchmarking!$C$9="Yes",BI36-BI59,BI36) -> -4188.93 | BJ10: =IF(Benchmarking!$C$9="Yes",BJ36-BJ59,BJ36) -> 0 | BK10: =IF(Benchmarking!$C$9="Yes",BK36-BK59,BK36) -> 0 | BL10: =IF(Benchmarking!$C$9="Yes",BL36-BL59,BL36) -> 0 | BM10: =IF(Benchmarking!$C$9="Yes",BM36-BM59,BM36) -> -32044 | BN10: =IF(Benchmarking!$C$9="Yes",BN36-BN59,BN36) -> 0 | BO10: =IF(Benchmarking!$C$9="Yes",BO36-BO59,BO36) -> 0 | BP10: =IF(Benchmarking!$C$9="Yes",BP36-BP59,BP36) -> -72514.58
A11: 7044 | B11: Rowhill School | C11: 0 | D11: 0 | E11: 150 | F11: 161.8333333 | G11: 150 | H11: 161.8333333 | I11: =IF(Benchmarking!$C$9="Yes",I37-I60,I37) -> 2337181.64 | J11: =IF(Benchmarking!$C$9="Yes",J37-J60,J37) -> 0 | K11: =IF(Benchmarking!$C$9="Yes",K37-K60,K37) -> 804875.63 | L11: =IF(Benchmarking!$C$9="Yes",L37-L60,L37) -> 46879.14 | M11: =IF(Benchmarking!$C$9="Yes",M37-M60,M37) -> 355796.04 | N11: =IF(Benchmarking!$C$9="Yes",N37-N60,N37) -> 52076 | O11: =IF(Benchmarking!$C$9="Yes",O37-O60,O37) -> 0 | P11: =IF(Benchmarking!$C$9="Yes",P37-P60,P37) -> 20225.45 | Q11: =IF(Benchmarking!$C$9="Yes",Q37-Q60,Q37) -> 19435.77 | R11: =IF(Benchmarking!$C$9="Yes",R37-R60,R37) -> 286.43 | S11: =IF(Benchmarking!$C$9="Yes",S37-S60,S37) -> 16906.92 | T11: =IF(Benchmarking!$C$9="Yes",T37-T60,T37) -> 53724.12 | U11: =IF(Benchmarking!$C$9="Yes",U37-U60,U37) -> 8098.19 | V11: =IF(Benchmarking!$C$9="Yes",V37-V60,V37) -> 55946.42 | W11: =IF(Benchmarking!$C$9="Yes",W37-W60,W37) -> 5323.92 | X11: =IF(Benchmarking!$C$9="Yes",X37-X60,X37) -> 66443.42 | Y11: =IF(Benchmarking!$C$9="Yes",Y37-Y60,Y37) -> 0 | Z11: =IF(Benchmarking!$C$9="Yes",Z37-Z60,Z37) -> 12740.26 | AA11: =IF(Benchmarking!$C$9="Yes",AA37-AA60,AA37) -> 104134.07 | AB11: =IF(Benchmarking!$C$9="Yes",AB37-AB60,AB37) -> 11718.7 | AC11: =IF(Benchmarking!$C$9="Yes",AC37-AC60,AC37) -> 0 | AD11: =IF(Benchmarking!$C$9="Yes",AD37-AD60,AD37) -> 7083.27 | AE11: =IF(Benchmarking!$C$9="Yes",AE37-AE60,AE37) -> 12947.9 | AF11: =IF(Benchmarking!$C$9="Yes",AF37-AF60,AF37) -> 6887.98 | AG11: =IF(Benchmarking!$C$9="Yes",AG37-AG60,AG37) -> 2309.75 | AH11: =IF(Benchmarking!$C$9="Yes",AH37-AH60,AH37) -> 5199.73 | AI11: =IF(Benchmarking!$C$9="Yes",AI37-AI60,AI37) -> 18341.11 | AJ11: =IF(Benchmarking!$C$9="Yes",AJ37-AJ60,AJ37) -> 20360.17 | AK11: =IF(Benchmarking!$C$9="Yes",AK37-AK60,AK37) -> 7473.21 | AL11: =IF(Benchmarking!$C$9="Yes",AL37-AL60,AL37) -> 245528.68 | AM11: =IF(Benchmarking!$C$9="Yes",AM37-AM60,AM37) -> 15180.89 | AN11: =IF(Benchmarking!$C$9="Yes",AN37-AN60,AN37) -> 73541.21 | AO11: =IF(Benchmarking!$C$9="Yes",AO37-AO60,AO37) -> 410571.03 | AP11: =IF(Benchmarking!$C$9="Yes",AP37-AP60,AP37) -> 68424.22 | AQ11: =IF(Benchmarking!$C$9="Yes",AQ37-AQ60,AQ37) -> 0 | AR11: =IF(Benchmarking!$C$9="Yes",AR37-AR60,AR37) -> 0 | AS11: =IF(Benchmarking!$C$9="Yes",AS37-AS60,AS37) -> 30340.36 | AT11: =IF(Benchmarking!$C$9="Yes",AT37-AT60,AT37) -> 0 | AU11: =IF(Benchmarking!$C$9="Yes",AU37-AU60,AU37) -> 0 | AV11: =IF(Benchmarking!$C$9="Yes",AV37-AV60,AV37) -> -1691682.63 | AW11: =IF(Benchmarking!$C$9="Yes",AW37-AW60,AW37) -> 0 | AX11: =IF(Benchmarking!$C$9="Yes",AX37-AX60,AX37) -> -2248282.72 | AY11: =IF(Benchmarking!$C$9="Yes",AY37-AY60,AY37) -> 0 | AZ11: =IF(Benchmarking!$C$9="Yes",AZ37-AZ60,AZ37) -> -144066 | BA11: =IF(Benchmarking!$C$9="Yes",BA37-BA60,BA37) -> -600 | BB11: =IF(Benchmarking!$C$9="Yes",BB37-BB60,BB37) -> -634052.73 | BC11: =IF(Benchmarking!$C$9="Yes",BC37-BC60,BC37) -> 0 | BD11: =IF(Benchmarking!$C$9="Yes",BD37-BD60,BD37) -> -124756.57 | BE11: =IF(Benchmarking!$C$9="Yes",BE37-BE60,BE37) -> -4090.65 | BF11: =IF(Benchmarking!$C$9="Yes",BF37-BF60,BF37) -> 0 | BG11: =IF(Benchmarking!$C$9="Yes",BG37-BG60,BG37) -> -2159.99 | BH11: =IF(Benchmarking!$C$9="Yes",BH37-BH60,BH37) -> -1859.2 | BI11: =IF(Benchmarking!$C$9="Yes",BI37-BI60,BI37) -> -11126.91 | BJ11: =IF(Benchmarking!$C$9="Yes",BJ37-BJ60,BJ37) -> 0 | BK11: =IF(Benchmarking!$C$9="Yes",BK37-BK60,BK37) -> 0 | BL11: =IF(Benchmarking!$C$9="Yes",BL37-BL60,BL37) -> 0 | BM11: =IF(Benchmarking!$C$9="Yes",BM37-BM60,BM37) -> -16309 | BN11: =IF(Benchmarking!$C$9="Yes",BN37-BN60,BN37) -> 0 | BO11: =IF(Benchmarking!$C$9="Yes",BO37-BO60,BO37) -> 0 | BP11: =IF(Benchmarking!$C$9="Yes",BP37-BP60,BP37) -> -37445.31
A12: 7045 | B12: Harbour School | C12: 0 | D12: 0 | E12: 152 | F12: 137.75 | G12: 152 | H12: 137.75 | I12: =IF(Benchmarking!$C$9="Yes",I38-I61,I38) -> 1503826.22 | J12: =IF(Benchmarking!$C$9="Yes",J38-J61,J38) -> 0 | K12: =IF(Benchmarking!$C$9="Yes",K38-K61,K38) -> 1029788.02 | L12: =IF(Benchmarking!$C$9="Yes",L38-L61,L38) -> 111506.56 | M12: =IF(Benchmarking!$C$9="Yes",M38-M61,M38) -> 230947.21 | N12: =IF(Benchmarking!$C$9="Yes",N38-N61,N38) -> 56906.46 | O12: =IF(Benchmarking!$C$9="Yes",O38-O61,O38) -> 981832.35 | P12: =IF(Benchmarking!$C$9="Yes",P38-P61,P38) -> 23027.99 | Q12: =IF(Benchmarking!$C$9="Yes",Q38-Q61,Q38) -> 12101.55 | R12: =IF(Benchmarking!$C$9="Yes",R38-R61,R38) -> 305.52 | S12: =IF(Benchmarking!$C$9="Yes",S38-S61,S38) -> 14454.6 | T12: =IF(Benchmarking!$C$9="Yes",T38-T61,T38) -> 32634.03 | U12: =IF(Benchmarking!$C$9="Yes",U38-U61,U38) -> 10762.63 | V12: =IF(Benchmarking!$C$9="Yes",V38-V61,V38) -> 8973.89 | W12: =IF(Benchmarking!$C$9="Yes",W38-W61,W38) -> 5550.57 | X12: =IF(Benchmarking!$C$9="Yes",X38-X61,X38) -> 37402.19 | Y12: =IF(Benchmarking!$C$9="Yes",Y38-Y61,Y38) -> 0 | Z12: =IF(Benchmarking!$C$9="Yes",Z38-Z61,Z38) -> 52102.12 | AA12: =IF(Benchmarking!$C$9="Yes",AA38-AA61,AA38) -> 78875.42 | AB12: =IF(Benchmarking!$C$9="Yes",AB38-AB61,AB38) -> 6757.28 | AC12: =IF(Benchmarking!$C$9="Yes",AC38-AC61,AC38) -> 0 | AD12: =IF(Benchmarking!$C$9="Yes",AD38-AD61,AD38) -> 2575.25 | AE12: =IF(Benchmarking!$C$9="Yes",AE38-AE61,AE38) -> 8183.59 | AF12: =IF(Benchmarking!$C$9="Yes",AF38-AF61,AF38) -> 1567.48 | AG12: =IF(Benchmarking!$C$9="Yes",AG38-AG61,AG38) -> 880.47 | AH12: =IF(Benchmarking!$C$9="Yes",AH38-AH61,AH38) -> 24881.16 | AI12: =IF(Benchmarking!$C$9="Yes",AI38-AI61,AI38) -> 11069.75 | AJ12: =IF(Benchmarking!$C$9="Yes",AJ38-AJ61,AJ38) -> 35586.25 | AK12: =IF(Benchmarking!$C$9="Yes",AK38-AK61,AK38) -> 12589.56 | AL12: =IF(Benchmarking!$C$9="Yes",AL38-AL61,AL38) -> 335046.45 | AM12: =IF(Benchmarking!$C$9="Yes",AM38-AM61,AM38) -> 67948.15 | AN12: =IF(Benchmarking!$C$9="Yes",AN38-AN61,AN38) -> 85492.62 | AO12: =IF(Benchmarking!$C$9="Yes",AO38-AO61,AO38) -> 263703.46 | AP12: =IF(Benchmarking!$C$9="Yes",AP38-AP61,AP38) -> 65251.1 | AQ12: =IF(Benchmarking!$C$9="Yes",AQ38-AQ61,AQ38) -> 0 | AR12: =IF(Benchmarking!$C$9="Yes",AR38-AR61,AR38) -> 0 | AS12: =IF(Benchmarking!$C$9="Yes",AS38-AS61,AS38) -> 48810 | AT12: =IF(Benchmarking!$C$9="Yes",AT38-AT61,AT38) -> 0 | AU12: =IF(Benchmarking!$C$9="Yes",AU38-AU61,AU38) -> 0 | AV12: =IF(Benchmarking!$C$9="Yes",AV38-AV61,AV38) -> -1573247.08 | AW12: =IF(Benchmarking!$C$9="Yes",AW38-AW61,AW38) -> 0 | AX12: =IF(Benchmarking!$C$9="Yes",AX38-AX61,AX38) -> -1891641.28 | AY12: =IF(Benchmarking!$C$9="Yes",AY38-AY61,AY38) -> 0 | AZ12: =IF(Benchmarking!$C$9="Yes",AZ38-AZ61,AZ38) -> -135396.43 | BA12: =IF(Benchmarking!$C$9="Yes",BA38-BA61,BA38) -> -1490827.68 | BB12: =IF(Benchmarking!$C$9="Yes",BB38-BB61,BB38) -> -6598.73 | BC12: =IF(Benchmarking!$C$9="Yes",BC38-BC61,BC38) -> -148.61 | BD12: =IF(Benchmarking!$C$9="Yes",BD38-BD61,BD38) -> -15415.16 | BE12: =IF(Benchmarking!$C$9="Yes",BE38-BE61,BE38) -> -2264.36 | BF12: =IF(Benchmarking!$C$9="Yes",BF38-BF61,BF38) -> 0 | BG12: =IF(Benchmarking!$C$9="Yes",BG38-BG61,BG38) -> -1803.15 | BH12: =IF(Benchmarking!$C$9="Yes",BH38-BH61,BH38) -> 0 | BI12: =IF(Benchmarking!$C$9="Yes",BI38-BI61,BI38) -> -7822.53 | BJ12: =IF(Benchmarking!$C$9="Yes",BJ38-BJ61,BJ38) -> 0 | BK12: =IF(Benchmarking!$C$9="Yes",BK38-BK61,BK38) -> 0 | BL12: =IF(Benchmarking!$C$9="Yes",BL38-BL61,BL38) -> 0 | BM12: =IF(Benchmarking!$C$9="Yes",BM38-BM61,BM38) -> -16914 | BN12: =IF(Benchmarking!$C$9="Yes",BN38-BN61,BN38) -> 0 | BO12: =IF(Benchmarking!$C$9="Yes",BO38-BO61,BO38) -> 0 | BP12: =IF(Benchmarking!$C$9="Yes",BP38-BP61,BP38) -> -37671.56
A13: 7051 | B13: Nexus School | C13: 2 | D13: 0 | E13: 297 | F13: 288.1666667 | G13: 299 | H13: 288.1666667 | I13: =IF(Benchmarking!$C$9="Yes",I39-I62,I39) -> 2844972.98 | J13: =IF(Benchmarking!$C$9="Yes",J39-J62,J39) -> 0 | K13: =IF(Benchmarking!$C$9="Yes",K39-K62,K39) -> 2495126.25 | L13: =IF(Benchmarking!$C$9="Yes",L39-L62,L39) -> 83326.48 | M13: =IF(Benchmarking!$C$9="Yes",M39-M62,M39) -> 345908.01 | N13: =IF(Benchmarking!$C$9="Yes",N39-N62,N39) -> 0 | O13: =IF(Benchmarking!$C$9="Yes",O39-O62,O39) -> 0 | P13: =IF(Benchmarking!$C$9="Yes",P39-P62,P39) -> 46656.9 | Q13: =IF(Benchmarking!$C$9="Yes",Q39-Q62,Q39) -> 48792.23 | R13: =IF(Benchmarking!$C$9="Yes",R39-R62,R39) -> 599.81 | S13: =IF(Benchmarking!$C$9="Yes",S39-S62,S39) -> 24382.7 | T13: =IF(Benchmarking!$C$9="Yes",T39-T62,T39) -> 143543.61 | U13: =IF(Benchmarking!$C$9="Yes",U39-U62,U39) -> 24112.9 | V13: =IF(Benchmarking!$C$9="Yes",V39-V62,V39) -> 99040.63 | W13: =IF(Benchmarking!$C$9="Yes",W39-W62,W39) -> 51377.49 | X13: =IF(Benchmarking!$C$9="Yes",X39-X62,X39) -> 134629.18 | Y13: =IF(Benchmarking!$C$9="Yes",Y39-Y62,Y39) -> 0 | Z13: =IF(Benchmarking!$C$9="Yes",Z39-Z62,Z39) -> 68106.03 | AA13: =IF(Benchmarking!$C$9="Yes",AA39-AA62,AA39) -> 291084.51 | AB13: =IF(Benchmarking!$C$9="Yes",AB39-AB62,AB39) -> 21811.78 | AC13: =IF(Benchmarking!$C$9="Yes",AC39-AC62,AC39) -> 26589.98 | AD13: =IF(Benchmarking!$C$9="Yes",AD39-AD62,AD39) -> 18465.17 | AE13: =IF(Benchmarking!$C$9="Yes",AE39-AE62,AE39) -> 24618.85 | AF13: =IF(Benchmarking!$C$9="Yes",AF39-AF62,AF39) -> 25087.02 | AG13: =IF(Benchmarking!$C$9="Yes",AG39-AG62,AG39) -> 8724.47 | AH13: =IF(Benchmarking!$C$9="Yes",AH39-AH62,AH39) -> 27075.68 | AI13: =IF(Benchmarking!$C$9="Yes",AI39-AI62,AI39) -> 7563.2 | AJ13: =IF(Benchmarking!$C$9="Yes",AJ39-AJ62,AJ39) -> 17290.71 | AK13: =IF(Benchmarking!$C$9="Yes",AK39-AK62,AK39) -> 10540.3 | AL13: =IF(Benchmarking!$C$9="Yes",AL39-AL62,AL39) -> 2924.07 | AM13: =IF(Benchmarking!$C$9="Yes",AM39-AM62,AM39) -> 160286.46 | AN13: =IF(Benchmarking!$C$9="Yes",AN39-AN62,AN39) -> 2696.48 | AO13: =IF(Benchmarking!$C$9="Yes",AO39-AO62,AO39) -> 828420.29 | AP13: =IF(Benchmarking!$C$9="Yes",AP39-AP62,AP39) -> 70226.25 | AQ13: =IF(Benchmarking!$C$9="Yes",AQ39-AQ62,AQ39) -> 0 | AR13: =IF(Benchmarking!$C$9="Yes",AR39-AR62,AR39) -> 0 | AS13: =IF(Benchmarking!$C$9="Yes",AS39-AS62,AS39) -> 32994.6 | AT13: =IF(Benchmarking!$C$9="Yes",AT39-AT62,AT39) -> 0 | AU13: =IF(Benchmarking!$C$9="Yes",AU39-AU62,AU39) -> 0 | AV13: =IF(Benchmarking!$C$9="Yes",AV39-AV62,AV39) -> -2816427.48 | AW13: =IF(Benchmarking!$C$9="Yes",AW39-AW62,AW39) -> -394878.39 | AX13: =IF(Benchmarking!$C$9="Yes",AX39-AX62,AX39) -> -4947136.79 | AY13: =IF(Benchmarking!$C$9="Yes",AY39-AY62,AY39) -> 0 | AZ13: =IF(Benchmarking!$C$9="Yes",AZ39-AZ62,AZ39) -> -139770 | BA13: =IF(Benchmarking!$C$9="Yes",BA39-BA62,BA39) -> -3171.29 | BB13: =IF(Benchmarking!$C$9="Yes",BB39-BB62,BB39) -> -2110 | BC13: =IF(Benchmarking!$C$9="Yes",BC39-BC62,BC39) -> -14345.82 | BD13: =IF(Benchmarking!$C$9="Yes",BD39-BD62,BD39) -> -34522.11 | BE13: =IF(Benchmarking!$C$9="Yes",BE39-BE62,BE39) -> -12396.67 | BF13: =IF(Benchmarking!$C$9="Yes",BF39-BF62,BF39) -> 0 | BG13: =IF(Benchmarking!$C$9="Yes",BG39-BG62,BG39) -> -15660.11 | BH13: =IF(Benchmarking!$C$9="Yes",BH39-BH62,BH39) -> -1818.34 | BI13: =IF(Benchmarking!$C$9="Yes",BI39-BI62,BI39) -> -6152.09 | BJ13: =IF(Benchmarking!$C$9="Yes",BJ39-BJ62,BJ39) -> 0 | BK13: =IF(Benchmarking!$C$9="Yes",BK39-BK62,BK39) -> 0 | BL13: =IF(Benchmarking!$C$9="Yes",BL39-BL62,BL39) -> 0 | BM13: =IF(Benchmarking!$C$9="Yes",BM39-BM62,BM39) -> -36495 | BN13: =IF(Benchmarking!$C$9="Yes",BN39-BN62,BN39) -> 0 | BO13: =IF(Benchmarking!$C$9="Yes",BO39-BO62,BO39) -> 0 | BP13: =IF(Benchmarking!$C$9="Yes",BP39-BP62,BP39) -> -28135.63
A14: 7052 | B14: Grange Park School | C14: 0 | D14: 0 | E14: 211 | F14: 186 | G14: 211 | H14: 186 | I14: =IF(Benchmarking!$C$9="Yes",I40-I63,I40) -> 1679004.96 | J14: =IF(Benchmarking!$C$9="Yes",J40-J63,J40) -> 0 | K14: =IF(Benchmarking!$C$9="Yes",K40-K63,K40) -> 835088.61 | L14: =IF(Benchmarking!$C$9="Yes",L40-L63,L40) -> 92444.33 | M14: =IF(Benchmarking!$C$9="Yes",M40-M63,M40) -> 222775.65 | N14: =IF(Benchmarking!$C$9="Yes",N40-N63,N40) -> 53801.95 | O14: =IF(Benchmarking!$C$9="Yes",O40-O63,O40) -> 100499.17 | P14: =IF(Benchmarking!$C$9="Yes",P40-P63,P40) -> 16583.47 | Q14: =IF(Benchmarking!$C$9="Yes",Q40-Q63,Q40) -> 4398.67 | R14: =IF(Benchmarking!$C$9="Yes",R40-R63,R40) -> 379.72 | S14: =IF(Benchmarking!$C$9="Yes",S40-S63,S40) -> 12557.16 | T14: =IF(Benchmarking!$C$9="Yes",T40-T63,T40) -> 26353.35 | U14: =IF(Benchmarking!$C$9="Yes",U40-U63,U40) -> 4522.18 | V14: =IF(Benchmarking!$C$9="Yes",V40-V63,V40) -> 1768.9 | W14: =IF(Benchmarking!$C$9="Yes",W40-W63,W40) -> 4076.89 | X14: =IF(Benchmarking!$C$9="Yes",X40-X63,X40) -> 53507.27 | Y14: =IF(Benchmarking!$C$9="Yes",Y40-Y63,Y40) -> 0 | Z14: =IF(Benchmarking!$C$9="Yes",Z40-Z63,Z40) -> 86076.76 | AA14: =IF(Benchmarking!$C$9="Yes",AA40-AA63,AA40) -> 116156.99 | AB14: =IF(Benchmarking!$C$9="Yes",AB40-AB63,AB40) -> 4593 | AC14: =IF(Benchmarking!$C$9="Yes",AC40-AC63,AC40) -> 0 | AD14: =IF(Benchmarking!$C$9="Yes",AD40-AD63,AD40) -> 14372 | AE14: =IF(Benchmarking!$C$9="Yes",AE40-AE63,AE40) -> 13254.3 | AF14: =IF(Benchmarking!$C$9="Yes",AF40-AF63,AF40) -> 3528.47 | AG14: =IF(Benchmarking!$C$9="Yes",AG40-AG63,AG40) -> 11905.74 | AH14: =IF(Benchmarking!$C$9="Yes",AH40-AH63,AH40) -> 25663.32 | AI14: =IF(Benchmarking!$C$9="Yes",AI40-AI63,AI40) -> 16139.43 | AJ14: =IF(Benchmarking!$C$9="Yes",AJ40-AJ63,AJ40) -> 21485.09 | AK14: =IF(Benchmarking!$C$9="Yes",AK40-AK63,AK40) -> 9953.63 | AL14: =IF(Benchmarking!$C$9="Yes",AL40-AL63,AL40) -> 7803.84 | AM14: =IF(Benchmarking!$C$9="Yes",AM40-AM63,AM40) -> 29141.78 | AN14: =IF(Benchmarking!$C$9="Yes",AN40-AN63,AN40) -> 0 | AO14: =IF(Benchmarking!$C$9="Yes",AO40-AO63,AO40) -> 365754.26 | AP14: =IF(Benchmarking!$C$9="Yes",AP40-AP63,AP40) -> 36679.85 | AQ14: =IF(Benchmarking!$C$9="Yes",AQ40-AQ63,AQ40) -> 0 | AR14: =IF(Benchmarking!$C$9="Yes",AR40-AR63,AR40) -> 0 | AS14: =IF(Benchmarking!$C$9="Yes",AS40-AS63,AS40) -> 172390.3 | AT14: =IF(Benchmarking!$C$9="Yes",AT40-AT63,AT40) -> 0 | AU14: =IF(Benchmarking!$C$9="Yes",AU40-AU63,AU40) -> 0 | AV14: =IF(Benchmarking!$C$9="Yes",AV40-AV63,AV40) -> -1424544.67 | AW14: =IF(Benchmarking!$C$9="Yes",AW40-AW63,AW40) -> -709281.72 | AX14: =IF(Benchmarking!$C$9="Yes",AX40-AX63,AX40) -> -2555664.33 | AY14: =IF(Benchmarking!$C$9="Yes",AY40-AY63,AY40) -> 0 | AZ14: =IF(Benchmarking!$C$9="Yes",AZ40-AZ63,AZ40) -> -51120 | BA14: =IF(Benchmarking!$C$9="Yes",BA40-BA63,BA40) -> -1256.93 | BB14: =IF(Benchmarking!$C$9="Yes",BB40-BB63,BB40) -> -4741.32 | BC14: =IF(Benchmarking!$C$9="Yes",BC40-BC63,BC40) -> 0 | BD14: =IF(Benchmarking!$C$9="Yes",BD40-BD63,BD40) -> -5145.83 | BE14: =IF(Benchmarking!$C$9="Yes",BE40-BE63,BE40) -> -13192.54 | BF14: =IF(Benchmarking!$C$9="Yes",BF40-BF63,BF40) -> 0 | BG14: =IF(Benchmarking!$C$9="Yes",BG40-BG63,BG40) -> -5019.2 | BH14: =IF(Benchmarking!$C$9="Yes",BH40-BH63,BH40) -> -26752.76 | BI14: =IF(Benchmarking!$C$9="Yes",BI40-BI63,BI40) -> -530 | BJ14: =IF(Benchmarking!$C$9="Yes",BJ40-BJ63,BJ40) -> 0 | BK14: =IF(Benchmarking!$C$9="Yes",BK40-BK63,BK40) -> 0 | BL14: =IF(Benchmarking!$C$9="Yes",BL40-BL63,BL40) -> 0 | BM14: =IF(Benchmarking!$C$9="Yes",BM40-BM63,BM40) -> -14444 | BN14: =IF(Benchmarking!$C$9="Yes",BN40-BN63,BN40) -> 0 | BO14: =IF(Benchmarking!$C$9="Yes",BO40-BO63,BO40) -> 0 | BP14: =IF(Benchmarking!$C$9="Yes",BP40-BP63,BP40) -> -24767.11
A15: 7056 | B15: Five Acre Wood School | C15: 25 | D15: 0 | E15: 838 | F15: 840.25 | G15: 863 | H15: 840.25 | I15: =IF(Benchmarking!$C$9="Yes",I41-I64,I41) -> 6186104.03 | J15: =IF(Benchmarking!$C$9="Yes",J41-J64,J41) -> 0 | K15: =IF(Benchmarking!$C$9="Yes",K41-K64,K41) -> 6007769.68 | L15: =IF(Benchmarking!$C$9="Yes",L41-L64,L41) -> 367985.97 | M15: =IF(Benchmarking!$C$9="Yes",M41-M64,M41) -> 1433805.78 | N15: =IF(Benchmarking!$C$9="Yes",N41-N64,N41) -> 233298.09 | O15: =IF(Benchmarking!$C$9="Yes",O41-O64,O41) -> 351155.37 | P15: =IF(Benchmarking!$C$9="Yes",P41-P64,P41) -> 101853.27 | Q15: =IF(Benchmarking!$C$9="Yes",Q41-Q64,Q41) -> 161290.99 | R15: =IF(Benchmarking!$C$9="Yes",R41-R64,R41) -> 1595.27 | S15: =IF(Benchmarking!$C$9="Yes",S41-S64,S41) -> 73905.67 | T15: =IF(Benchmarking!$C$9="Yes",T41-T64,T41) -> 220766.79 | U15: =IF(Benchmarking!$C$9="Yes",U41-U64,U41) -> 38838.03 | V15: =IF(Benchmarking!$C$9="Yes",V41-V64,V41) -> 197345.98 | W15: =IF(Benchmarking!$C$9="Yes",W41-W64,W41) -> 20958.56 | X15: =IF(Benchmarking!$C$9="Yes",X41-X64,X41) -> 149660.73 | Y15: =IF(Benchmarking!$C$9="Yes",Y41-Y64,Y41) -> 0 | Z15: =IF(Benchmarking!$C$9="Yes",Z41-Z64,Z41) -> 338509.56 | AA15: =IF(Benchmarking!$C$9="Yes",AA41-AA64,AA41) -> 850840.62 | AB15: =IF(Benchmarking!$C$9="Yes",AB41-AB64,AB41) -> 17124.36 | AC15: =IF(Benchmarking!$C$9="Yes",AC41-AC64,AC41) -> 2747.32 | AD15: =IF(Benchmarking!$C$9="Yes",AD41-AD64,AD41) -> 11238.3 | AE15: =IF(Benchmarking!$C$9="Yes",AE41-AE64,AE41) -> 249734.08 | AF15: =IF(Benchmarking!$C$9="Yes",AF41-AF64,AF41) -> 36610.93 | AG15: =IF(Benchmarking!$C$9="Yes",AG41-AG64,AG41) -> 129648.54 | AH15: =IF(Benchmarking!$C$9="Yes",AH41-AH64,AH41) -> 60500.78 | AI15: =IF(Benchmarking!$C$9="Yes",AI41-AI64,AI41) -> 0 | AJ15: =IF(Benchmarking!$C$9="Yes",AJ41-AJ64,AJ41) -> 240 | AK15: =IF(Benchmarking!$C$9="Yes",AK41-AK64,AK41) -> 8677.95 | AL15: =IF(Benchmarking!$C$9="Yes",AL41-AL64,AL41) -> 129594.09 | AM15: =IF(Benchmarking!$C$9="Yes",AM41-AM64,AM41) -> 32025.17 | AN15: =IF(Benchmarking!$C$9="Yes",AN41-AN64,AN41) -> 5162.99 | AO15: =IF(Benchmarking!$C$9="Yes",AO41-AO64,AO41) -> 118667.11 | AP15: =IF(Benchmarking!$C$9="Yes",AP41-AP64,AP41) -> 285112.91 | AQ15: =IF(Benchmarking!$C$9="Yes",AQ41-AQ64,AQ41) -> 0 | AR15: =IF(Benchmarking!$C$9="Yes",AR41-AR64,AR41) -> 0 | AS15: =IF(Benchmarking!$C$9="Yes",AS41-AS64,AS41) -> 859394.86 | AT15: =IF(Benchmarking!$C$9="Yes",AT41-AT64,AT41) -> 0 | AU15: =IF(Benchmarking!$C$9="Yes",AU41-AU64,AU41) -> 0 | AV15: =IF(Benchmarking!$C$9="Yes",AV41-AV64,AV41) -> -8176676.63 | AW15: =IF(Benchmarking!$C$9="Yes",AW41-AW64,AW41) -> -1005255.06 | AX15: =IF(Benchmarking!$C$9="Yes",AX41-AX64,AX41) -> -8243548.33 | AY15: =IF(Benchmarking!$C$9="Yes",AY41-AY64,AY41) -> 0 | AZ15: =IF(Benchmarking!$C$9="Yes",AZ41-AZ64,AZ41) -> -451267.16 | BA15: =IF(Benchmarking!$C$9="Yes",BA41-BA64,BA41) -> 0 | BB15: =IF(Benchmarking!$C$9="Yes",BB41-BB64,BB41) -> -4800 | BC15: =IF(Benchmarking!$C$9="Yes",BC41-BC64,BC41) -> -19560 | BD15: =IF(Benchmarking!$C$9="Yes",BD41-BD64,BD41) -> -2835 | BE15: =IF(Benchmarking!$C$9="Yes",BE41-BE64,BE41) -> -1119479.2 | BF15: =IF(Benchmarking!$C$9="Yes",BF41-BF64,BF41) -> -61382.03 | BG15: =IF(Benchmarking!$C$9="Yes",BG41-BG64,BG41) -> 0 | BH15: =IF(Benchmarking!$C$9="Yes",BH41-BH64,BH41) -> -89679.59 | BI15: =IF(Benchmarking!$C$9="Yes",BI41-BI64,BI41) -> -3225.58 | BJ15: =IF(Benchmarking!$C$9="Yes",BJ41-BJ64,BJ41) -> -231086.72 | BK15: =IF(Benchmarking!$C$9="Yes",BK41-BK64,BK41) -> 0 | BL15: =IF(Benchmarking!$C$9="Yes",BL41-BL64,BL41) -> 0 | BM15: =IF(Benchmarking!$C$9="Yes",BM41-BM64,BM41) -> -54443 | BN15: =IF(Benchmarking!$C$9="Yes",BN41-BN64,BN41) -> 0 | BO15: =IF(Benchmarking!$C$9="Yes",BO41-BO64,BO41) -> 0 | BP15: =IF(Benchmarking!$C$9="Yes",BP41-BP64,BP41) -> -86159.06
A16: 7058 | B16: Stone Bay School | C16: 0 | D16: 0 | E16: 103 | F16: 112.5 | G16: 103 | H16: 112.5 | I16: =IF(Benchmarking!$C$9="Yes",I42-I65,I42) -> 1422204.58 | J16: =IF(Benchmarking!$C$9="Yes",J42-J65,J42) -> 0 | K16: =IF(Benchmarking!$C$9="Yes",K42-K65,K42) -> 1841133.21 | L16: =IF(Benchmarking!$C$9="Yes",L42-L65,L42) -> 331263.21 | M16: =IF(Benchmarking!$C$9="Yes",M42-M65,M42) -> 154255.81 | N16: =IF(Benchmarking!$C$9="Yes",N42-N65,N42) -> 76782.78 | O16: =IF(Benchmarking!$C$9="Yes",O42-O65,O42) -> 80636.36 | P16: =IF(Benchmarking!$C$9="Yes",P42-P65,P42) -> 31016.88 | Q16: =IF(Benchmarking!$C$9="Yes",Q42-Q65,Q42) -> 44141.21 | R16: =IF(Benchmarking!$C$9="Yes",R42-R65,R42) -> 206.53 | S16: =IF(Benchmarking!$C$9="Yes",S42-S65,S42) -> 11019 | T16: =IF(Benchmarking!$C$9="Yes",T42-T65,T42) -> 138052.64 | U16: =IF(Benchmarking!$C$9="Yes",U42-U65,U42) -> 17680.08 | V16: =IF(Benchmarking!$C$9="Yes",V42-V65,V42) -> 16881.24 | W16: =IF(Benchmarking!$C$9="Yes",W42-W65,W42) -> 10590.82 | X16: =IF(Benchmarking!$C$9="Yes",X42-X65,X42) -> 122230.16 | Y16: =IF(Benchmarking!$C$9="Yes",Y42-Y65,Y42) -> 0 | Z16: =IF(Benchmarking!$C$9="Yes",Z42-Z65,Z42) -> 72470.54 | AA16: =IF(Benchmarking!$C$9="Yes",AA42-AA65,AA42) -> 92065.64 | AB16: =IF(Benchmarking!$C$9="Yes",AB42-AB65,AB42) -> 14592.03 | AC16: =IF(Benchmarking!$C$9="Yes",AC42-AC65,AC42) -> 0 | AD16: =IF(Benchmarking!$C$9="Yes",AD42-AD65,AD42) -> 6740.24 | AE16: =IF(Benchmarking!$C$9="Yes",AE42-AE65,AE42) -> 14112.89 | AF16: =IF(Benchmarking!$C$9="Yes",AF42-AF65,AF42) -> 6796.63 | AG16: =IF(Benchmarking!$C$9="Yes",AG42-AG65,AG42) -> 6236.21 | AH16: =IF(Benchmarking!$C$9="Yes",AH42-AH65,AH42) -> 4286.32 | AI16: =IF(Benchmarking!$C$9="Yes",AI42-AI65,AI42) -> 0 | AJ16: =IF(Benchmarking!$C$9="Yes",AJ42-AJ65,AJ42) -> 15554.67 | AK16: =IF(Benchmarking!$C$9="Yes",AK42-AK65,AK42) -> 5636.87 | AL16: =IF(Benchmarking!$C$9="Yes",AL42-AL65,AL42) -> 1750.89 | AM16: =IF(Benchmarking!$C$9="Yes",AM42-AM65,AM42) -> 43648.21 | AN16: =IF(Benchmarking!$C$9="Yes",AN42-AN65,AN42) -> 0 | AO16: =IF(Benchmarking!$C$9="Yes",AO42-AO65,AO42) -> 100585.82 | AP16: =IF(Benchmarking!$C$9="Yes",AP42-AP65,AP42) -> 53089.94 | AQ16: =IF(Benchmarking!$C$9="Yes",AQ42-AQ65,AQ42) -> 0 | AR16: =IF(Benchmarking!$C$9="Yes",AR42-AR65,AR42) -> 310857.68 | AS16: =IF(Benchmarking!$C$9="Yes",AS42-AS65,AS42) -> 0 | AT16: =IF(Benchmarking!$C$9="Yes",AT42-AT65,AT42) -> 0 | AU16: =IF(Benchmarking!$C$9="Yes",AU42-AU65,AU42) -> -1086578.39 | AV16: =IF(Benchmarking!$C$9="Yes",AV42-AV65,AV42) -> -92478.75 | AW16: =IF(Benchmarking!$C$9="Yes",AW42-AW65,AW42) -> -3430549.8 | AX16: =IF(Benchmarking!$C$9="Yes",AX42-AX65,AX42) -> 0 | AY16: =IF(Benchmarking!$C$9="Yes",AY42-AY65,AY42) -> -97180 | AZ16: =IF(Benchmarking!$C$9="Yes",AZ42-AZ65,AZ42) -> -12169.69 | BA16: =IF(Benchmarking!$C$9="Yes",BA42-BA65,BA42) -> -504085.23 | BB16: =IF(Benchmarking!$C$9="Yes",BB42-BB65,BB42) -> -13146.89 | BC16: =IF(Benchmarking!$C$9="Yes",BC42-BC65,BC42) -> -2733.78 | BD16: =IF(Benchmarking!$C$9="Yes",BD42-BD65,BD42) -> -1284.7 | BE16: =IF(Benchmarking!$C$9="Yes",BE42-BE65,BE42) -> 0 | BF16: =IF(Benchmarking!$C$9="Yes",BF42-BF65,BF42) -> -17708.3 | BG16: =IF(Benchmarking!$C$9="Yes",BG42-BG65,BG42) -> -1910 | BH16: =IF(Benchmarking!$C$9="Yes",BH42-BH65,BH42) -> -3032.25 | BI16: =IF(Benchmarking!$C$9="Yes",BI42-BI65,BI42) -> 0 | BJ16: =IF(Benchmarking!$C$9="Yes",BJ42-BJ65,BJ42) -> 0 | BK16: =IF(Benchmarking!$C$9="Yes",BK42-BK65,BK42) -> 0 | BL16: =IF(Benchmarking!$C$9="Yes",BL42-BL65,BL42) -> 0 | BM16: =IF(Benchmarking!$C$9="Yes",BM42-BM65,BM42) -> -19561 | BN16: =IF(Benchmarking!$C$9="Yes",BN42-BN65,BN42) -> 0 | BO16: =IF(Benchmarking!$C$9="Yes",BO42-BO65,BO42) -> 0 | BP16: =IF(Benchmarking!$C$9="Yes",BP42-BP65,BP42) -> -17235.63
A17: 7062 | B17: The Orchard School | C17: 0 | D17: 0 | E17: 100 | F17: 107.25 | G17: 100 | H17: 107.25 | I17: =IF(Benchmarking!$C$9="Yes",I43-I66,I43) -> 1542805.79 | J17: =IF(Benchmarking!$C$9="Yes",J43-J66,J43) -> 0 | K17: =IF(Benchmarking!$C$9="Yes",K43-K66,K43) -> 783310.41 | L17: =IF(Benchmarking!$C$9="Yes",L43-L66,L43) -> 44519.33 | M17: =IF(Benchmarking!$C$9="Yes",M43-M66,M43) -> 199277.51 | N17: =IF(Benchmarking!$C$9="Yes",N43-N66,N43) -> 0 | O17: =IF(Benchmarking!$C$9="Yes",O43-O66,O43) -> 0 | P17: =IF(Benchmarking!$C$9="Yes",P43-P66,P43) -> 17946.61 | Q17: =IF(Benchmarking!$C$9="Yes",Q43-Q66,Q43) -> 19124.86 | R17: =IF(Benchmarking!$C$9="Yes",R43-R66,R43) -> 201 | S17: =IF(Benchmarking!$C$9="Yes",S43-S66,S43) -> 1144.56 | T17: =IF(Benchmarking!$C$9="Yes",T43-T66,T43) -> 47570.5 | U17: =IF(Benchmarking!$C$9="Yes",U43-U66,U43) -> 59204.04 | V17: =IF(Benchmarking!$C$9="Yes",V43-V66,V43) -> 5357.66 | W17: =IF(Benchmarking!$C$9="Yes",W43-W66,W43) -> 3903.17 | X17: =IF(Benchmarking!$C$9="Yes",X43-X66,X43) -> 54203.31 | Y17: =IF(Benchmarking!$C$9="Yes",Y43-Y66,Y43) -> 0 | Z17: =IF(Benchmarking!$C$9="Yes",Z43-Z66,Z43) -> 10100.18 | AA17: =IF(Benchmarking!$C$9="Yes",AA43-AA66,AA43) -> 71611.14 | AB17: =IF(Benchmarking!$C$9="Yes",AB43-AB66,AB43) -> 0 | AC17: =IF(Benchmarking!$C$9="Yes",AC43-AC66,AC43) -> 1946 | AD17: =IF(Benchmarking!$C$9="Yes",AD43-AD66,AD43) -> 38.5 | AE17: =IF(Benchmarking!$C$9="Yes",AE43-AE66,AE43) -> 672.12 | AF17: =IF(Benchmarking!$C$9="Yes",AF43-AF66,AF43) -> 25528.41 | AG17: =IF(Benchmarking!$C$9="Yes",AG43-AG66,AG43) -> 6589.39 | AH17: =IF(Benchmarking!$C$9="Yes",AH43-AH66,AH43) -> 6532.75 | AI17: =IF(Benchmarking!$C$9="Yes",AI43-AI66,AI43) -> 19497.56 | AJ17: =IF(Benchmarking!$C$9="Yes",AJ43-AJ66,AJ43) -> 12210.26 | AK17: =IF(Benchmarking!$C$9="Yes",AK43-AK66,AK43) -> 30259.65 | AL17: =IF(Benchmarking!$C$9="Yes",AL43-AL66,AL43) -> 6368.36 | AM17: =IF(Benchmarking!$C$9="Yes",AM43-AM66,AM43) -> 12044.1 | AN17: =IF(Benchmarking!$C$9="Yes",AN43-AN66,AN43) -> 39989.95 | AO17: =IF(Benchmarking!$C$9="Yes",AO43-AO66,AO43) -> 103161.55 | AP17: =IF(Benchmarking!$C$9="Yes",AP43-AP66,AP43) -> 85983.17 | AQ17: =IF(Benchmarking!$C$9="Yes",AQ43-AQ66,AQ43) -> 69877.83 | AR17: =IF(Benchmarking!$C$9="Yes",AR43-AR66,AR43) -> 0 | AS17: =IF(Benchmarking!$C$9="Yes",AS43-AS66,AS43) -> 104484.57 | AT17: =IF(Benchmarking!$C$9="Yes",AT43-AT66,AT43) -> 0 | AU17: =IF(Benchmarking!$C$9="Yes",AU43-AU66,AU43) -> 0 | AV17: =IF(Benchmarking!$C$9="Yes",AV43-AV66,AV43) -> -1117293.72 | AW17: =IF(Benchmarking!$C$9="Yes",AW43-AW66,AW43) -> 0 | AX17: =IF(Benchmarking!$C$9="Yes",AX43-AX66,AX43) -> -1566527.82 | AY17: =IF(Benchmarking!$C$9="Yes",AY43-AY66,AY43) -> 0 | AZ17: =IF(Benchmarking!$C$9="Yes",AZ43-AZ66,AZ43) -> -108228 | BA17: =IF(Benchmarking!$C$9="Yes",BA43-BA66,BA43) -> -1200 | BB17: =IF(Benchmarking!$C$9="Yes",BB43-BB66,BB43) -> -313940.08 | BC17: =IF(Benchmarking!$C$9="Yes",BC43-BC66,BC43) -> 0 | BD17: =IF(Benchmarking!$C$9="Yes",BD43-BD66,BD43) -> -15589.16 | BE17: =IF(Benchmarking!$C$9="Yes",BE43-BE66,BE43) -> -3846.27 | BF17: =IF(Benchmarking!$C$9="Yes",BF43-BF66,BF43) -> 0 | BG17: =IF(Benchmarking!$C$9="Yes",BG43-BG66,BG43) -> 0 | BH17: =IF(Benchmarking!$C$9="Yes",BH43-BH66,BH43) -> 0 | BI17: =IF(Benchmarking!$C$9="Yes",BI43-BI66,BI43) -> -212.65 | BJ17: =IF(Benchmarking!$C$9="Yes",BJ43-BJ66,BJ43) -> 0 | BK17: =IF(Benchmarking!$C$9="Yes",BK43-BK66,BK43) -> 0 | BL17: =IF(Benchmarking!$C$9="Yes",BL43-BL66,BL43) -> 0 | BM17: =IF(Benchmarking!$C$9="Yes",BM43-BM66,BM43) -> 0 | BN17: =IF(Benchmarking!$C$9="Yes",BN43-BN66,BN43) -> -17088 | BO17: =IF(Benchmarking!$C$9="Yes",BO43-BO66,BO43) -> 0 | BP17: =IF(Benchmarking!$C$9="Yes",BP43-BP66,BP43) -> -12498.44
A18: 7063 | B18: St Nicholas' School | C18: 0 | D18: 0 | E18: 340 | F18: 378.1666667 | G18: 340 | H18: 378.1666667 | I18: =IF(Benchmarking!$C$9="Yes",I44-I67,I44) -> 3488513.31 | J18: =IF(Benchmarking!$C$9="Yes",J44-J67,J44) -> 0 | K18: =IF(Benchmarking!$C$9="Yes",K44-K67,K44) -> 3747661.62 | L18: =IF(Benchmarking!$C$9="Yes",L44-L67,L44) -> 156391.26 | M18: =IF(Benchmarking!$C$9="Yes",M44-M67,M44) -> 211759.82 | N18: =IF(Benchmarking!$C$9="Yes",N44-N67,N44) -> 95272.95 | O18: =IF(Benchmarking!$C$9="Yes",O44-O67,O44) -> 22227.59 | P18: =IF(Benchmarking!$C$9="Yes",P44-P67,P44) -> 100473.17 | Q18: =IF(Benchmarking!$C$9="Yes",Q44-Q67,Q44) -> 66304.17 | R18: =IF(Benchmarking!$C$9="Yes",R44-R67,R44) -> 695.8 | S18: =IF(Benchmarking!$C$9="Yes",S44-S67,S44) -> 33709.2 | T18: =IF(Benchmarking!$C$9="Yes",T44-T67,T44) -> 7430.5 | U18: =IF(Benchmarking!$C$9="Yes",U44-U67,U44) -> 5880.09 | V18: =IF(Benchmarking!$C$9="Yes",V44-V67,V44) -> 17342.2 | W18: =IF(Benchmarking!$C$9="Yes",W44-W67,W44) -> 14707.89 | X18: =IF(Benchmarking!$C$9="Yes",X44-X67,X44) -> 99232.07 | Y18: =IF(Benchmarking!$C$9="Yes",Y44-Y67,Y44) -> 0 | Z18: =IF(Benchmarking!$C$9="Yes",Z44-Z67,Z44) -> 255375.18 | AA18: =IF(Benchmarking!$C$9="Yes",AA44-AA67,AA44) -> 181416.41 | AB18: =IF(Benchmarking!$C$9="Yes",AB44-AB67,AB44) -> 0 | AC18: =IF(Benchmarking!$C$9="Yes",AC44-AC67,AC44) -> 31665.9 | AD18: =IF(Benchmarking!$C$9="Yes",AD44-AD67,AD44) -> 0 | AE18: =IF(Benchmarking!$C$9="Yes",AE44-AE67,AE44) -> 12549 | AF18: =IF(Benchmarking!$C$9="Yes",AF44-AF67,AF44) -> 25417.4 | AG18: =IF(Benchmarking!$C$9="Yes",AG44-AG67,AG44) -> 20667.63 | AH18: =IF(Benchmarking!$C$9="Yes",AH44-AH67,AH44) -> 690.28 | AI18: =IF(Benchmarking!$C$9="Yes",AI44-AI67,AI44) -> 3257 | AJ18: =IF(Benchmarking!$C$9="Yes",AJ44-AJ67,AJ44) -> 3005.45 | AK18: =IF(Benchmarking!$C$9="Yes",AK44-AK67,AK44) -> 2584.84 | AL18: =IF(Benchmarking!$C$9="Yes",AL44-AL67,AL44) -> 15595.62 | AM18: =IF(Benchmarking!$C$9="Yes",AM44-AM67,AM44) -> 87276 | AN18: =IF(Benchmarking!$C$9="Yes",AN44-AN67,AN44) -> 54183.79 | AO18: =IF(Benchmarking!$C$9="Yes",AO44-AO67,AO44) -> 33597.13 | AP18: =IF(Benchmarking!$C$9="Yes",AP44-AP67,AP44) -> 125262.93 | AQ18: =IF(Benchmarking!$C$9="Yes",AQ44-AQ67,AQ44) -> 67262.94 | AR18: =IF(Benchmarking!$C$9="Yes",AR44-AR67,AR44) -> 0 | AS18: =IF(Benchmarking!$C$9="Yes",AS44-AS67,AS44) -> 15207.53 | AT18: =IF(Benchmarking!$C$9="Yes",AT44-AT67,AT44) -> 0 | AU18: =IF(Benchmarking!$C$9="Yes",AU44-AU67,AU44) -> 0 | AV18: =IF(Benchmarking!$C$9="Yes",AV44-AV67,AV44) -> -3608722.88 | AW18: =IF(Benchmarking!$C$9="Yes",AW44-AW67,AW44) -> -439301.07 | AX18: =IF(Benchmarking!$C$9="Yes",AX44-AX67,AX44) -> -4266499.51 | AY18: =IF(Benchmarking!$C$9="Yes",AY44-AY67,AY44) -> 0 | AZ18: =IF(Benchmarking!$C$9="Yes",AZ44-AZ67,AZ44) -> -250617 | BA18: =IF(Benchmarking!$C$9="Yes",BA44-BA67,BA44) -> -5200 | BB18: =IF(Benchmarking!$C$9="Yes",BB44-BB67,BB44) -> -10904.62 | BC18: =IF(Benchmarking!$C$9="Yes",BC44-BC67,BC44) -> -21920 | BD18: =IF(Benchmarking!$C$9="Yes",BD44-BD67,BD44) -> -270073.29 | BE18: =IF(Benchmarking!$C$9="Yes",BE44-BE67,BE44) -> -26760.36 | BF18: =IF(Benchmarking!$C$9="Yes",BF44-BF67,BF44) -> 0 | BG18: =IF(Benchmarking!$C$9="Yes",BG44-BG67,BG44) -> -19775.75 | BH18: =IF(Benchmarking!$C$9="Yes",BH44-BH67,BH44) -> -10564.17 | BI18: =IF(Benchmarking!$C$9="Yes",BI44-BI67,BI44) -> -10464.98 | BJ18: =IF(Benchmarking!$C$9="Yes",BJ44-BJ67,BJ44) -> 0 | BK18: =IF(Benchmarking!$C$9="Yes",BK44-BK67,BK44) -> 0 | BL18: =IF(Benchmarking!$C$9="Yes",BL44-BL67,BL44) -> 0 | BM18: =IF(Benchmarking!$C$9="Yes",BM44-BM67,BM44) -> -36141 | BN18: =IF(Benchmarking!$C$9="Yes",BN44-BN67,BN44) -> 0 | BO18: =IF(Benchmarking!$C$9="Yes",BO44-BO67,BO44) -> 0 | BP18: =IF(Benchmarking!$C$9="Yes",BP44-BP67,BP44) -> -41800
A19: 7067 | B19: Portal House School | C19: 0 | D19: 0 | E19: 80 | F19: 74.83333333 | G19: 80 | H19: 74.83333333 | I19: =IF(Benchmarking!$C$9="Yes",I45-I68,I45) -> 1425157.26 | J19: =IF(Benchmarking!$C$9="Yes",J45-J68,J45) -> 0 | K19: =IF(Benchmarking!$C$9="Yes",K45-K68,K45) -> 501414.48 | L19: =IF(Benchmarking!$C$9="Yes",L45-L68,L45) -> 52245.03 | M19: =IF(Benchmarking!$C$9="Yes",M45-M68,M45) -> 96286.01 | N19: =IF(Benchmarking!$C$9="Yes",N45-N68,N45) -> 35989.56 | O19: =IF(Benchmarking!$C$9="Yes",O45-O68,O45) -> 0 | P19: =IF(Benchmarking!$C$9="Yes",P45-P68,P45) -> 11946.77 | Q19: =IF(Benchmarking!$C$9="Yes",Q45-Q68,Q45) -> 0 | R19: =IF(Benchmarking!$C$9="Yes",R45-R68,R45) -> 160.8 | S19: =IF(Benchmarking!$C$9="Yes",S45-S68,S45) -> 7279.2 | T19: =IF(Benchmarking!$C$9="Yes",T45-T68,T45) -> 10423.45 | U19: =IF(Benchmarking!$C$9="Yes",U45-U68,U45) -> 10272.7 | V19: =IF(Benchmarking!$C$9="Yes",V45-V68,V45) -> 26026.05 | W19: =IF(Benchmarking!$C$9="Yes",W45-W68,W45) -> 4929.6 | X19: =IF(Benchmarking!$C$9="Yes",X45-X68,X45) -> 54882.03 | Y19: =IF(Benchmarking!$C$9="Yes",Y45-Y68,Y45) -> 0 | Z19: =IF(Benchmarking!$C$9="Yes",Z45-Z68,Z45) -> 16786.74 | AA19: =IF(Benchmarking!$C$9="Yes",AA45-AA68,AA45) -> 64324.52 | AB19: =IF(Benchmarking!$C$9="Yes",AB45-AB68,AB45) -> 8421.6 | AC19: =IF(Benchmarking!$C$9="Yes",AC45-AC68,AC45) -> 503 | AD19: =IF(Benchmarking!$C$9="Yes",AD45-AD68,AD45) -> 3362.54 | AE19: =IF(Benchmarking!$C$9="Yes",AE45-AE68,AE45) -> 11093.74 | AF19: =IF(Benchmarking!$C$9="Yes",AF45-AF68,AF45) -> 7868.75 | AG19: =IF(Benchmarking!$C$9="Yes",AG45-AG68,AG45) -> 789.56 | AH19: =IF(Benchmarking!$C$9="Yes",AH45-AH68,AH45) -> 7348 | AI19: =IF(Benchmarking!$C$9="Yes",AI45-AI68,AI45) -> 9540.91 | AJ19: =IF(Benchmarking!$C$9="Yes",AJ45-AJ68,AJ45) -> 5140.98 | AK19: =IF(Benchmarking!$C$9="Yes",AK45-AK68,AK45) -> 4089.39 | AL19: =IF(Benchmarking!$C$9="Yes",AL45-AL68,AL45) -> 1510 | AM19: =IF(Benchmarking!$C$9="Yes",AM45-AM68,AM45) -> 28492.83 | AN19: =IF(Benchmarking!$C$9="Yes",AN45-AN68,AN45) -> 11803.75 | AO19: =IF(Benchmarking!$C$9="Yes",AO45-AO68,AO45) -> 2822 | AP19: =IF(Benchmarking!$C$9="Yes",AP45-AP68,AP45) -> 19450.41 | AQ19: =IF(Benchmarking!$C$9="Yes",AQ45-AQ68,AQ45) -> 0 | AR19: =IF(Benchmarking!$C$9="Yes",AR45-AR68,AR45) -> 0 | AS19: =IF(Benchmarking!$C$9="Yes",AS45-AS68,AS45) -> 0 | AT19: =IF(Benchmarking!$C$9="Yes",AT45-AT68,AT45) -> -827196.8 | AU19: =IF(Benchmarking!$C$9="Yes",AU45-AU68,AU45) -> -94.83 | AV19: =IF(Benchmarking!$C$9="Yes",AV45-AV68,AV45) -> -1599321.82 | AW19: =IF(Benchmarking!$C$9="Yes",AW45-AW68,AW45) -> 0 | AX19: =IF(Benchmarking!$C$9="Yes",AX45-AX68,AX45) -> -57175 | AY19: =IF(Benchmarking!$C$9="Yes",AY45-AY68,AY45) -> -4526.47 | AZ19: =IF(Benchmarking!$C$9="Yes",AZ45-AZ68,AZ45) -> -6290 | BA19: =IF(Benchmarking!$C$9="Yes",BA45-BA68,BA45) -> 0 | BB19: =IF(Benchmarking!$C$9="Yes",BB45-BB68,BB45) -> -5530.68 | BC19: =IF(Benchmarking!$C$9="Yes",BC45-BC68,BC45) -> 0 | BD19: =IF(Benchmarking!$C$9="Yes",BD45-BD68,BD45) -> 0 | BE19: =IF(Benchmarking!$C$9="Yes",BE45-BE68,BE45) -> -7648.03 | BF19: =IF(Benchmarking!$C$9="Yes",BF45-BF68,BF45) -> -1030 | BG19: =IF(Benchmarking!$C$9="Yes",BG45-BG68,BG45) -> 0 | BH19: =IF(Benchmarking!$C$9="Yes",BH45-BH68,BH45) -> 0 | BI19: =IF(Benchmarking!$C$9="Yes",BI45-BI68,BI45) -> 0 | BJ19: =IF(Benchmarking!$C$9="Yes",BJ45-BJ68,BJ45) -> 0 | BK19: =IF(Benchmarking!$C$9="Yes",BK45-BK68,BK45) -> 0 | BL19: =IF(Benchmarking!$C$9="Yes",BL45-BL68,BL45) -> 0 | BM19: =IF(Benchmarking!$C$9="Yes",BM45-BM68,BM45) -> 0 | BN19: =IF(Benchmarking!$C$9="Yes",BN45-BN68,BN45) -> 0 | BO19: =IF(Benchmarking!$C$9="Yes",BO45-BO68,BO45) -> 0 | BP19: =IF(Benchmarking!$C$9="Yes",BP45-BP68,BP45) -> -20099.06
A20: 7069 | B20: The Wyvern School | C20: 10 | D20: 0 | E20: 352 | F20: 358 | G20: 362 | H20: 358 | I20: =IF(Benchmarking!$C$9="Yes",I46-I69,I46) -> 3262455.67 | J20: =IF(Benchmarking!$C$9="Yes",J46-J69,J46) -> 3468.22 | K20: =IF(Benchmarking!$C$9="Yes",K46-K69,K46) -> 3413812.8 | L20: =IF(Benchmarking!$C$9="Yes",L46-L69,L46) -> 188747.73 | M20: =IF(Benchmarking!$C$9="Yes",M46-M69,M46) -> 351042.66 | N20: =IF(Benchmarking!$C$9="Yes",N46-N69,N46) -> 0 | O20: =IF(Benchmarking!$C$9="Yes",O46-O69,O46) -> 0 | P20: =IF(Benchmarking!$C$9="Yes",P46-P69,P46) -> 20829.22 | Q20: =IF(Benchmarking!$C$9="Yes",Q46-Q69,Q46) -> 72790.26 | R20: =IF(Benchmarking!$C$9="Yes",R46-R69,R46) -> 28317.3 | S20: =IF(Benchmarking!$C$9="Yes",S46-S69,S46) -> 31707.72 | T20: =IF(Benchmarking!$C$9="Yes",T46-T69,T46) -> 158303.55 | U20: =IF(Benchmarking!$C$9="Yes",U46-U69,U46) -> 18884.27 | V20: =IF(Benchmarking!$C$9="Yes",V46-V69,V46) -> 57519.98 | W20: =IF(Benchmarking!$C$9="Yes",W46-W69,W46) -> 21382.92 | X20: =IF(Benchmarking!$C$9="Yes",X46-X69,X46) -> 81734.95 | Y20: =IF(Benchmarking!$C$9="Yes",Y46-Y69,Y46) -> 0 | Z20: =IF(Benchmarking!$C$9="Yes",Z46-Z69,Z46) -> 79900.53 | AA20: =IF(Benchmarking!$C$9="Yes",AA46-AA69,AA46) -> 361723.27 | AB20: =IF(Benchmarking!$C$9="Yes",AB46-AB69,AB46) -> 0 | AC20: =IF(Benchmarking!$C$9="Yes",AC46-AC69,AC46) -> 5797.16 | AD20: =IF(Benchmarking!$C$9="Yes",AD46-AD69,AD46) -> 1849.28 | AE20: =IF(Benchmarking!$C$9="Yes",AE46-AE69,AE46) -> 9105.6 | AF20: =IF(Benchmarking!$C$9="Yes",AF46-AF69,AF46) -> 15969.36 | AG20: =IF(Benchmarking!$C$9="Yes",AG46-AG69,AG46) -> 39202.53 | AH20: =IF(Benchmarking!$C$9="Yes",AH46-AH69,AH46) -> 11099.34 | AI20: =IF(Benchmarking!$C$9="Yes",AI46-AI69,AI46) -> 10358.45 | AJ20: =IF(Benchmarking!$C$9="Yes",AJ46-AJ69,AJ46) -> 2219.26 | AK20: =IF(Benchmarking!$C$9="Yes",AK46-AK69,AK46) -> 58766.68 | AL20: =IF(Benchmarking!$C$9="Yes",AL46-AL69,AL46) -> 14963.77 | AM20: =IF(Benchmarking!$C$9="Yes",AM46-AM69,AM46) -> 34240.21 | AN20: =IF(Benchmarking!$C$9="Yes",AN46-AN69,AN46) -> 150069.97 | AO20: =IF(Benchmarking!$C$9="Yes",AO46-AO69,AO46) -> 254689.98 | AP20: =IF(Benchmarking!$C$9="Yes",AP46-AP69,AP46) -> 90196.95 | AQ20: =IF(Benchmarking!$C$9="Yes",AQ46-AQ69,AQ46) -> 67606.33 | AR20: =IF(Benchmarking!$C$9="Yes",AR46-AR69,AR46) -> 0 | AS20: =IF(Benchmarking!$C$9="Yes",AS46-AS69,AS46) -> 37353 | AT20: =IF(Benchmarking!$C$9="Yes",AT46-AT69,AT46) -> 0 | AU20: =IF(Benchmarking!$C$9="Yes",AU46-AU69,AU46) -> 0 | AV20: =IF(Benchmarking!$C$9="Yes",AV46-AV69,AV46) -> -3388745.36 | AW20: =IF(Benchmarking!$C$9="Yes",AW46-AW69,AW46) -> -483945.86 | AX20: =IF(Benchmarking!$C$9="Yes",AX46-AX69,AX46) -> -4265294.26 | AY20: =IF(Benchmarking!$C$9="Yes",AY46-AY69,AY46) -> 0 | AZ20: =IF(Benchmarking!$C$9="Yes",AZ46-AZ69,AZ46) -> -160670 | BA20: =IF(Benchmarking!$C$9="Yes",BA46-BA69,BA46) -> -3371.29 | BB20: =IF(Benchmarking!$C$9="Yes",BB46-BB69,BB46) -> -493931.4 | BC20: =IF(Benchmarking!$C$9="Yes",BC46-BC69,BC46) -> -10125 | BD20: =IF(Benchmarking!$C$9="Yes",BD46-BD69,BD46) -> -2412.88 | BE20: =IF(Benchmarking!$C$9="Yes",BE46-BE69,BE46) -> -27384.14 | BF20: =IF(Benchmarking!$C$9="Yes",BF46-BF69,BF46) -> -14557.5 | BG20: =IF(Benchmarking!$C$9="Yes",BG46-BG69,BG46) -> -38492.4 | BH20: =IF(Benchmarking!$C$9="Yes",BH46-BH69,BH46) -> -6279.25 | BI20: =IF(Benchmarking!$C$9="Yes",BI46-BI69,BI46) -> -95037.82 | BJ20: =IF(Benchmarking!$C$9="Yes",BJ46-BJ69,BJ46) -> 0 | BK20: =IF(Benchmarking!$C$9="Yes",BK46-BK69,BK46) -> 0 | BL20: =IF(Benchmarking!$C$9="Yes",BL46-BL69,BL46) -> 0 | BM20: =IF(Benchmarking!$C$9="Yes",BM46-BM69,BM46) -> 0 | BN20: =IF(Benchmarking!$C$9="Yes",BN46-BN69,BN46) -> -37065 | BO20: =IF(Benchmarking!$C$9="Yes",BO46-BO69,BO46) -> 0 | BP20: =IF(Benchmarking!$C$9="Yes",BP46-BP69,BP46) -> -39335.83
A21: 7070 | B21: Oakley School | C21: 0 | D21: 0 | E21: 212 | F21: 221.25 | G21: 212 | H21: 221.25 | I21: =IF(Benchmarking!$C$9="Yes",I47-I70,I47) -> 2252812.45 | J21: =IF(Benchmarking!$C$9="Yes",J47-J70,J47) -> 0 | K21: =IF(Benchmarking!$C$9="Yes",K47-K70,K47) -> 1818470.85 | L21: =IF(Benchmarking!$C$9="Yes",L47-L70,L47) -> 107460.44 | M21: =IF(Benchmarking!$C$9="Yes",M47-M70,M47) -> 214915.82 | N21: =IF(Benchmarking!$C$9="Yes",N47-N70,N47) -> 0 | O21: =IF(Benchmarking!$C$9="Yes",O47-O70,O47) -> 125716.38 | P21: =IF(Benchmarking!$C$9="Yes",P47-P70,P47) -> 50338.24 | Q21: =IF(Benchmarking!$C$9="Yes",Q47-Q70,Q47) -> 38160.04 | R21: =IF(Benchmarking!$C$9="Yes",R47-R70,R47) -> 421.1 | S21: =IF(Benchmarking!$C$9="Yes",S47-S70,S47) -> 18661.8 | T21: =IF(Benchmarking!$C$9="Yes",T47-T70,T47) -> 32996.56 | U21: =IF(Benchmarking!$C$9="Yes",U47-U70,U47) -> 9312.19 | V21: =IF(Benchmarking!$C$9="Yes",V47-V70,V47) -> 105125.66 | W21: =IF(Benchmarking!$C$9="Yes",W47-W70,W47) -> 21442.97 | X21: =IF(Benchmarking!$C$9="Yes",X47-X70,X47) -> 67614.68 | Y21: =IF(Benchmarking!$C$9="Yes",Y47-Y70,Y47) -> 0 | Z21: =IF(Benchmarking!$C$9="Yes",Z47-Z70,Z47) -> 51596.23 | AA21: =IF(Benchmarking!$C$9="Yes",AA47-AA70,AA47) -> 199711.67 | AB21: =IF(Benchmarking!$C$9="Yes",AB47-AB70,AB47) -> 10396.6 | AC21: =IF(Benchmarking!$C$9="Yes",AC47-AC70,AC47) -> 4735.71 | AD21: =IF(Benchmarking!$C$9="Yes",AD47-AD70,AD47) -> 26872.26 | AE21: =IF(Benchmarking!$C$9="Yes",AE47-AE70,AE47) -> 8878.14 | AF21: =IF(Benchmarking!$C$9="Yes",AF47-AF70,AF47) -> 2116.6 | AG21: =IF(Benchmarking!$C$9="Yes",AG47-AG70,AG47) -> 30268.2 | AH21: =IF(Benchmarking!$C$9="Yes",AH47-AH70,AH47) -> 1635.25 | AI21: =IF(Benchmarking!$C$9="Yes",AI47-AI70,AI47) -> 19751.74 | AJ21: =IF(Benchmarking!$C$9="Yes",AJ47-AJ70,AJ47) -> 10640.58 | AK21: =IF(Benchmarking!$C$9="Yes",AK47-AK70,AK47) -> 7347.19 | AL21: =IF(Benchmarking!$C$9="Yes",AL47-AL70,AL47) -> 73234 | AM21: =IF(Benchmarking!$C$9="Yes",AM47-AM70,AM47) -> 389576.88 | AN21: =IF(Benchmarking!$C$9="Yes",AN47-AN70,AN47) -> 181476.11 | AO21: =IF(Benchmarking!$C$9="Yes",AO47-AO70,AO47) -> 42026.8 | AP21: =IF(Benchmarking!$C$9="Yes",AP47-AP70,AP47) -> 0 | AQ21: =IF(Benchmarking!$C$9="Yes",AQ47-AQ70,AQ47) -> 0 | AR21: =IF(Benchmarking!$C$9="Yes",AR47-AR70,AR47) -> 0 | AS21: =IF(Benchmarking!$C$9="Yes",AS47-AS70,AS47) -> 67172.64 | AT21: =IF(Benchmarking!$C$9="Yes",AT47-AT70,AT47) -> 0 | AU21: =IF(Benchmarking!$C$9="Yes",AU47-AU70,AU47) -> 0 | AV21: =IF(Benchmarking!$C$9="Yes",AV47-AV70,AV47) -> -2156209.67 | AW21: =IF(Benchmarking!$C$9="Yes",AW47-AW70,AW47) -> -407847.65 | AX21: =IF(Benchmarking!$C$9="Yes",AX47-AX70,AX47) -> -2453191.87 | AY21: =IF(Benchmarking!$C$9="Yes",AY47-AY70,AY47) -> 0 | AZ21: =IF(Benchmarking!$C$9="Yes",AZ47-AZ70,AZ47) -> -96300 | BA21: =IF(Benchmarking!$C$9="Yes",BA47-BA70,BA47) -> -8633.86 | BB21: =IF(Benchmarking!$C$9="Yes",BB47-BB70,BB47) -> -795 | BC21: =IF(Benchmarking!$C$9="Yes",BC47-BC70,BC47) -> 0 | BD21: =IF(Benchmarking!$C$9="Yes",BD47-BD70,BD47) -> -526689.38 | BE21: =IF(Benchmarking!$C$9="Yes",BE47-BE70,BE47) -> -25258.8 | BF21: =IF(Benchmarking!$C$9="Yes",BF47-BF70,BF47) -> 0 | BG21: =IF(Benchmarking!$C$9="Yes",BG47-BG70,BG47) -> -14857.08 | BH21: =IF(Benchmarking!$C$9="Yes",BH47-BH70,BH47) -> -39777.2 | BI21: =IF(Benchmarking!$C$9="Yes",BI47-BI70,BI47) -> -17540.06 | BJ21: =IF(Benchmarking!$C$9="Yes",BJ47-BJ70,BJ47) -> 0 | BK21: =IF(Benchmarking!$C$9="Yes",BK47-BK70,BK47) -> 0 | BL21: =IF(Benchmarking!$C$9="Yes",BL47-BL70,BL47) -> 0 | BM21: =IF(Benchmarking!$C$9="Yes",BM47-BM70,BM47) -> -23816 | BN21: =IF(Benchmarking!$C$9="Yes",BN47-BN70,BN47) -> 0 | BO21: =IF(Benchmarking!$C$9="Yes",BO47-BO70,BO47) -> 0 | BP21: =IF(Benchmarking!$C$9="Yes",BP47-BP70,BP47) -> -25521.77
A22: 7072 | B22: Meadowfield School | C22: 25 | D22: 0 | E22: 389 | F22: 388.1666667 | G22: 414 | H22: 388.1666667 | I22: =IF(Benchmarking!$C$9="Yes",I48-I71,I48) -> 3725240.43 | J22: =IF(Benchmarking!$C$9="Yes",J48-J71,J48) -> 2921.84 | K22: =IF(Benchmarking!$C$9="Yes",K48-K71,K48) -> 3584298.52 | L22: =IF(Benchmarking!$C$9="Yes",L48-L71,L48) -> 155229.15 | M22: =IF(Benchmarking!$C$9="Yes",M48-M71,M48) -> 536522.73 | N22: =IF(Benchmarking!$C$9="Yes",N48-N71,N48) -> 0 | O22: =IF(Benchmarking!$C$9="Yes",O48-O71,O48) -> 290956.2 | P22: =IF(Benchmarking!$C$9="Yes",P48-P71,P48) -> 25645.9 | Q22: =IF(Benchmarking!$C$9="Yes",Q48-Q71,Q48) -> 49296.11 | R22: =IF(Benchmarking!$C$9="Yes",R48-R71,R48) -> 786.58 | S22: =IF(Benchmarking!$C$9="Yes",S48-S71,S48) -> 32252.72 | T22: =IF(Benchmarking!$C$9="Yes",T48-T71,T48) -> 154780.05 | U22: =IF(Benchmarking!$C$9="Yes",U48-U71,U48) -> 22856.95 | V22: =IF(Benchmarking!$C$9="Yes",V48-V71,V48) -> 143920.79 | W22: =IF(Benchmarking!$C$9="Yes",W48-W71,W48) -> 26040.65 | X22: =IF(Benchmarking!$C$9="Yes",X48-X71,X48) -> 184414.64 | Y22: =IF(Benchmarking!$C$9="Yes",Y48-Y71,Y48) -> 0 | Z22: =IF(Benchmarking!$C$9="Yes",Z48-Z71,Z48) -> 92792.91 | AA22: =IF(Benchmarking!$C$9="Yes",AA48-AA71,AA48) -> 158321.25 | AB22: =IF(Benchmarking!$C$9="Yes",AB48-AB71,AB48) -> 5701.37 | AC22: =IF(Benchmarking!$C$9="Yes",AC48-AC71,AC48) -> 4.99 | AD22: =IF(Benchmarking!$C$9="Yes",AD48-AD71,AD48) -> 15409.98 | AE22: =IF(Benchmarking!$C$9="Yes",AE48-AE71,AE48) -> 13399.34 | AF22: =IF(Benchmarking!$C$9="Yes",AF48-AF71,AF48) -> 6155.26 | AG22: =IF(Benchmarking!$C$9="Yes",AG48-AG71,AG48) -> 35440.66 | AH22: =IF(Benchmarking!$C$9="Yes",AH48-AH71,AH48) -> 37316.13 | AI22: =IF(Benchmarking!$C$9="Yes",AI48-AI71,AI48) -> 10174.6 | AJ22: =IF(Benchmarking!$C$9="Yes",AJ48-AJ71,AJ48) -> 30946.84 | AK22: =IF(Benchmarking!$C$9="Yes",AK48-AK71,AK48) -> 16362.63 | AL22: =IF(Benchmarking!$C$9="Yes",AL48-AL71,AL48) -> 5831.78 | AM22: =IF(Benchmarking!$C$9="Yes",AM48-AM71,AM48) -> 100369.36 | AN22: =IF(Benchmarking!$C$9="Yes",AN48-AN71,AN48) -> 497553.38 | AO22: =IF(Benchmarking!$C$9="Yes",AO48-AO71,AO48) -> 82209.73 | AP22: =IF(Benchmarking!$C$9="Yes",AP48-AP71,AP48) -> 68380.06 | AQ22: =IF(Benchmarking!$C$9="Yes",AQ48-AQ71,AQ48) -> 0 | AR22: =IF(Benchmarking!$C$9="Yes",AR48-AR71,AR48) -> 0 | AS22: =IF(Benchmarking!$C$9="Yes",AS48-AS71,AS48) -> 0 | AT22: =IF(Benchmarking!$C$9="Yes",AT48-AT71,AT48) -> 0 | AU22: =IF(Benchmarking!$C$9="Yes",AU48-AU71,AU48) -> 0 | AV22: =IF(Benchmarking!$C$9="Yes",AV48-AV71,AV48) -> -3672675.26 | AW22: =IF(Benchmarking!$C$9="Yes",AW48-AW71,AW48) -> -581999.46 | AX22: =IF(Benchmarking!$C$9="Yes",AX48-AX71,AX48) -> -4668681.66 | AY22: =IF(Benchmarking!$C$9="Yes",AY48-AY71,AY48) -> 0 | AZ22: =IF(Benchmarking!$C$9="Yes",AZ48-AZ71,AZ48) -> -253405.94 | BA22: =IF(Benchmarking!$C$9="Yes",BA48-BA71,BA48) -> -8999.5 | BB22: =IF(Benchmarking!$C$9="Yes",BB48-BB71,BB48) -> -184434.22 | BC22: =IF(Benchmarking!$C$9="Yes",BC48-BC71,BC48) -> -25640 | BD22: =IF(Benchmarking!$C$9="Yes",BD48-BD71,BD48) -> -168803.84 | BE22: =IF(Benchmarking!$C$9="Yes",BE48-BE71,BE48) -> 0 | BF22: =IF(Benchmarking!$C$9="Yes",BF48-BF71,BF48) -> 0 | BG22: =IF(Benchmarking!$C$9="Yes",BG48-BG71,BG48) -> -60024.13 | BH22: =IF(Benchmarking!$C$9="Yes",BH48-BH71,BH48) -> -5730.38 | BI22: =IF(Benchmarking!$C$9="Yes",BI48-BI71,BI48) -> -32083.12 | BJ22: =IF(Benchmarking!$C$9="Yes",BJ48-BJ71,BJ48) -> 0 | BK22: =IF(Benchmarking!$C$9="Yes",BK48-BK71,BK48) -> 0 | BL22: =IF(Benchmarking!$C$9="Yes",BL48-BL71,BL48) -> 0 | BM22: =IF(Benchmarking!$C$9="Yes",BM48-BM71,BM48) -> -31680 | BN22: =IF(Benchmarking!$C$9="Yes",BN48-BN71,BN48) -> 0 | BO22: =IF(Benchmarking!$C$9="Yes",BO48-BO71,BO48) -> 0 | BP22: =IF(Benchmarking!$C$9="Yes",BP48-BP71,BP48) -> -41780.63
A23: 7073 | B23: Laleham Gap School | C23: 0 | D23: 0 | E23: 207 | F23: 232.25 | G23: 207 | H23: 232.25 | I23: =IF(Benchmarking!$C$9="Yes",I49-I72,I49) -> 2419305.31 | J23: =IF(Benchmarking!$C$9="Yes",J49-J72,J49) -> 0 | K23: =IF(Benchmarking!$C$9="Yes",K49-K72,K49) -> 1981134.35 | L23: =IF(Benchmarking!$C$9="Yes",L49-L72,L49) -> 176328.96 | M23: =IF(Benchmarking!$C$9="Yes",M49-M72,M49) -> 296282.02 | N23: =IF(Benchmarking!$C$9="Yes",N49-N72,N49) -> 122861.77 | O23: =IF(Benchmarking!$C$9="Yes",O49-O72,O49) -> 0 | P23: =IF(Benchmarking!$C$9="Yes",P49-P72,P49) -> 21809.22 | Q23: =IF(Benchmarking!$C$9="Yes",Q49-Q72,Q49) -> 25569.91 | R23: =IF(Benchmarking!$C$9="Yes",R49-R72,R49) -> 415.9 | S23: =IF(Benchmarking!$C$9="Yes",S49-S72,S49) -> 21718.86 | T23: =IF(Benchmarking!$C$9="Yes",T49-T72,T49) -> 55416.28 | U23: =IF(Benchmarking!$C$9="Yes",U49-U72,U49) -> 6647.33 | V23: =IF(Benchmarking!$C$9="Yes",V49-V72,V49) -> 13799.18 | W23: =IF(Benchmarking!$C$9="Yes",W49-W72,W49) -> 8892.61 | X23: =IF(Benchmarking!$C$9="Yes",X49-X72,X49) -> 51419.21 | Y23: =IF(Benchmarking!$C$9="Yes",Y49-Y72,Y49) -> 0 | Z23: =IF(Benchmarking!$C$9="Yes",Z49-Z72,Z49) -> 25075.15 | AA23: =IF(Benchmarking!$C$9="Yes",AA49-AA72,AA49) -> 140607.76 | AB23: =IF(Benchmarking!$C$9="Yes",AB49-AB72,AB49) -> 9154.54 | AC23: =IF(Benchmarking!$C$9="Yes",AC49-AC72,AC49) -> 0 | AD23: =IF(Benchmarking!$C$9="Yes",AD49-AD72,AD49) -> 17878.24 | AE23: =IF(Benchmarking!$C$9="Yes",AE49-AE72,AE49) -> 10820.97 | AF23: =IF(Benchmarking!$C$9="Yes",AF49-AF72,AF49) -> 33899.37 | AG23: =IF(Benchmarking!$C$9="Yes",AG49-AG72,AG49) -> 5844.1 | AH23: =IF(Benchmarking!$C$9="Yes",AH49-AH72,AH49) -> 139.5 | AI23: =IF(Benchmarking!$C$9="Yes",AI49-AI72,AI49) -> 21402.65 | AJ23: =IF(Benchmarking!$C$9="Yes",AJ49-AJ72,AJ49) -> 63705.65 | AK23: =IF(Benchmarking!$C$9="Yes",AK49-AK72,AK49) -> 9453.77 | AL23: =IF(Benchmarking!$C$9="Yes",AL49-AL72,AL49) -> 23.2 | AM23: =IF(Benchmarking!$C$9="Yes",AM49-AM72,AM49) -> 75083.86 | AN23: =IF(Benchmarking!$C$9="Yes",AN49-AN72,AN49) -> 0 | AO23: =IF(Benchmarking!$C$9="Yes",AO49-AO72,AO49) -> 148298.66 | AP23: =IF(Benchmarking!$C$9="Yes",AP49-AP72,AP49) -> 69857.79 | AQ23: =IF(Benchmarking!$C$9="Yes",AQ49-AQ72,AQ49) -> 0 | AR23: =IF(Benchmarking!$C$9="Yes",AR49-AR72,AR49) -> 0 | AS23: =IF(Benchmarking!$C$9="Yes",AS49-AS72,AS49) -> 31472 | AT23: =IF(Benchmarking!$C$9="Yes",AT49-AT72,AT49) -> 0 | AU23: =IF(Benchmarking!$C$9="Yes",AU49-AU72,AU49) -> 0 | AV23: =IF(Benchmarking!$C$9="Yes",AV49-AV72,AV49) -> -2280696.05 | AW23: =IF(Benchmarking!$C$9="Yes",AW49-AW72,AW49) -> -145322.8 | AX23: =IF(Benchmarking!$C$9="Yes",AX49-AX72,AX49) -> -3158807.71 | AY23: =IF(Benchmarking!$C$9="Yes",AY49-AY72,AY49) -> 0 | AZ23: =IF(Benchmarking!$C$9="Yes",AZ49-AZ72,AZ49) -> -117040 | BA23: =IF(Benchmarking!$C$9="Yes",BA49-BA72,BA49) -> -283177.09 | BB23: =IF(Benchmarking!$C$9="Yes",BB49-BB72,BB49) -> -3244 | BC23: =IF(Benchmarking!$C$9="Yes",BC49-BC72,BC49) -> 0 | BD23: =IF(Benchmarking!$C$9="Yes",BD49-BD72,BD49) -> -618.31 | BE23: =IF(Benchmarking!$C$9="Yes",BE49-BE72,BE49) -> -12124.67 | BF23: =IF(Benchmarking!$C$9="Yes",BF49-BF72,BF49) -> 0 | BG23: =IF(Benchmarking!$C$9="Yes",BG49-BG72,BG49) -> 0 | BH23: =IF(Benchmarking!$C$9="Yes",BH49-BH72,BH49) -> 0 | BI23: =IF(Benchmarking!$C$9="Yes",BI49-BI72,BI49) -> -38956.28 | BJ23: =IF(Benchmarking!$C$9="Yes",BJ49-BJ72,BJ49) -> 0 | BK23: =IF(Benchmarking!$C$9="Yes",BK49-BK72,BK49) -> 0 | BL23: =IF(Benchmarking!$C$9="Yes",BL49-BL72,BL49) -> 0 | BM23: =IF(Benchmarking!$C$9="Yes",BM49-BM72,BM49) -> -21427 | BN23: =IF(Benchmarking!$C$9="Yes",BN49-BN72,BN49) -> 0 | BO23: =IF(Benchmarking!$C$9="Yes",BO49-BO72,BO49) -> 0 | BP23: =IF(Benchmarking!$C$9="Yes",BP49-BP72,BP49) -> -46755.11
I25: E01 | J25: E02 | K25: E03 | L25: E04 | M25: E05 | N25: E06 | O25: E07 | P25: E08 | Q25: E09 | R25: E10 | S25: E11 | T25: E12 | U25: E13 | V25: E14 | W25: E15 | X25: E16 | Y25: E17 | Z25: E18 | AA25: E19 | AB25: E20A | AC25: E20B | AD25: E20C | AE25: E20D | AF25: E20E | AG25: E20F | AH25: E20G | AI25: E21 | AJ25: E22 | AK25: E23 | AL25: E24 | AM25: E25 | AN25: E26 | AO25: E27 | AP25: E28 | AQ25: E28B | AR25: E29 | AS25: E30 | AT25: E31 | AU25: E32 | AV25: I01 | AW25: I02 | AX25: I03 | AY25: I04 | AZ25: I05 | BA25: I06 | BB25: I07 | BC25: I08 | BD25: I08b | BE25: I09 | BF25: I10 | BG25: I11 | BH25: I12 | BI25: I13 | BJ25: I15 | BK25: I16 | BL25: I17 | BM25: I18 | BN25: I18A | BO25: I18B | BP25: I18C
I26: 35 | J26: 36 | K26: 37 | L26: 38 | M26: 39 | N26: 40 | O26: 41 | P26: 42 | Q26: 43 | R26: 44 | S26: 45 | T26: 46 | U26: 47 | V26: 48 | W26: 49 | X26: 50 | Y26: 51 | Z26: 52 | AA26: 53 | AB26: 54 | AI26: 55 | AJ26: 56 | AK26: 57 | AL26: 58 | AM26: 59 | AN26: 60 | AO26: 61 | AP26: 62 | AQ26: 63 | AR26: 64 | AS26: 65 | AT26: 66 | AU26: 67 | AV26: 72 | AW26: 73 | AX26: 74 | AY26: 75 | AZ26: 76 | BA26: 77 | BB26: 78 | BC26: 79 | BD26: 80 | BE26: 81 | BF26: 82 | BG26: 83 | BH26: 84 | BI26: 85 | BJ26: 87 | BK26: 88 | BL26: 89 | BM26: 90 | BN26: 91 | BO26: 92 | BP26: 93
H28: =Benchmarking!C1&" All" -> 2024-25 All | I28: E01 | J28: E02 | K28: E03 | L28: E04 | M28: E05 | N28: E06 | O28: E07 | P28: E08 | Q28: E09 | R28: E10 | S28: E11 | T28: E12 | U28: E13 | V28: E14 | W28: E15 | X28: E16 | Y28: E17 | Z28: E18 | AA28: E19 | AB28: E20 | AC28: E20 | AD28: E20 | AE28: E20 | AF28: E20 | AG28: E20 | AH28: E20 | AI28: E21 | AJ28: E22 | AK28: E23 | AL28: E24 | AM28: E25 | AN28: E26 | AO28: E27 | AP28: E28 | AQ28: E28B | AR28: E29 | AS28: E30 | AT28: E31 | AU28: E32 | AV28: I01 | AW28: I02 | AX28: I03 | AY28: I04 | AZ28: I05 | BA28: I06 | BB28: I07 | BC28: I08 | BD28: I08b | BE28: I09 | BF28: I10 | BG28: I11 | BH28: I12 | BI28: I13 | BJ28: I15 | BK28: I16 | BL28: I17 | BM28: I18 | BN28: I18A | BO28: I18B | BP28: I18C
F29: All Funds These figures are taken from the Closedown checking sheet | H29: 7002 | I29: 4198904.1 | J29: 0 | K29: 2671039.06 | L29: 301530.14 | M29: 729905.02 | N29: 88413.45 | O29: 342508.76 | P29: 40811.98 | Q29: 15133.62 | R29: 776.7 | S29: 27068.04 | T29: 101624.2 | U29: 33753.85 | V29: 155147.41 | W29: 14651.22 | X29: 185545.86 | Y29: 2194.83 | Z29: 41474.83 | AA29: 375648.03 | AB29: 14154.64 | AC29: 0 | AD29: 17154.4 | AE29: 65098.01 | AF29: 47547.96 | AG29: 7329.09 | AH29: 50049.56 | AI29: 23426.28 | AJ29: 36734.7 | AK29: 16220.1 | AL29: 6990.08 | AM29: 223470.15 | AN29: 45087.3 | AO29: 335812.54 | AP29: 63295 | AQ29: 0 | AR29: 50662.17 | AS29: 195251.11 | AT29: 0 | AU29: 0 | AV29: -2967543.98 | AW29: -1179197.53 | AX29: -5771052.89 | AY29: 0 | AZ29: -126803.2 | BA29: -800 | BB29: -327416.86 | BC29: 0 | BD29: -32464.9 | BE29: 0 | BF29: -30306.56 | BG29: 0 | BH29: -19737.85 | BI29: -8550 | BJ29: -1906.34 | BK29: 0 | BL29: 0 | BM29: -583 | BN29: 0 | BO29: 0 | BP29: -64297.81
H30: 7021 | I30: 1696948.04 | J30: 0 | K30: 2717595.16 | L30: 312667.54 | M30: 434678.69 | N30: 99625.55 | O30: 562941.9 | P30: 35849.25 | Q30: 25793.83 | R30: 226.96 | S30: 9109.68 | T30: 136691.49 | U30: 13093.99 | V30: 30538.12 | W30: 21222.48 | X30: 81887.81 | Y30: 4232.48 | Z30: 53921.01 | AA30: 47465.99 | AB30: 19199.38 | AC30: 6608.12 | AD30: 6031.53 | AE30: 31577.1 | AF30: 575.37 | AG30: 4437.66 | AH30: 3638.8 | AI30: 7972.5 | AJ30: 184044.29 | AK30: 7004.45 | AL30: 145.54 | AM30: 83434.61 | AN30: 14425.44 | AO30: 590892.59 | AP30: 32815.67 | AQ30: 0 | AR30: 0 | AS30: 0 | AT30: 0 | AU30: 565.96 | AV30: -1032482.59 | AW30: -305447.34 | AX30: -5283831.12 | AY30: 0 | AZ30: -44430 | BA30: -6082.53 | BB30: -1272591.91 | BC30: -8497.5 | BD30: -247657.07 | BE30: -19320.66 | BF30: 0 | BG30: -46904.92 | BH30: -868 | BI30: -8060.81 | BJ30: 0 | BK30: 0 | BL30: 0 | BM30: -21103 | BN30: 0 | BO30: 0 | BP30: -12317.3
H31: 7032 | I31: 2623802.7 | J31: 18353.05 | K31: 2193037.57 | L31: 98455.44 | M31: 309161.09 | N31: 58323.39 | O31: 0 | P31: 11769.66 | Q31: 27090.5 | R31: 452.25 | S31: 24841.68 | T31: 47247.58 | U31: 9742.51 | V31: 95574.87 | W31: 14750.27 | X31: 64595.07 | Y31: 0 | Z31: 5781.58 | AA31: 61705.08 | AB31: 3109.72 | AC31: 0 | AD31: 46473.93 | AE31: 0 | AF31: 12873.3 | AG31: 4428.31 | AH31: 139.5 | AI31: 6975.42 | AJ31: 46143.59 | AK31: 11163.54 | AL31: 72706.42 | AM31: 55835.77 | AN31: 2150 | AO31: 183689.12 | AP31: 43758.04 | AQ31: 0 | AR31: 0 | AS31: 0 | AT31: 0 | AU31: 0 | AV31: -2473139.21 | AW31: 0 | AX31: -2860451.09 | AY31: 0 | AZ31: -270271 | BA31: -9200 | BB31: -1976.42 | BC31: -7879.88 | BD31: -292136.49 | BE31: -11904.17 | BF31: 0 | BG31: -2201.77 | BH31: -24546.5 | BI31: -3495.69 | BJ31: 0 | BK31: 0 | BL31: 0 | BM31: -18919 | BN31: 0 | BO31: 0 | BP31: -55191.25
H32: 7033 | I32: 1342681.2 | J32: 0 | K32: 744948.63 | L32: 40731.59 | M32: 209220.08 | N32: 43755.8 | O32: 53127.76 | P32: 996.76 | Q32: 8485.46 | R32: 203.68 | S32: 10776.48 | T32: 46039.56 | U32: 6435 | V32: 51668.52 | W32: 4999.19 | X32: 36860.49 | Y32: 0 | Z32: 9245.8 | AA32: 77298.74 | AB32: 4528.29 | AC32: 4951.62 | AD32: 3042.08 | AE32: 4869.75 | AF32: 1220 | AG32: 5100.01 | AH32: 2628.8 | AI32: 3765.76 | AJ32: 7284.74 | AK32: 5409.07 | AL32: 12098 | AM32: 49138.05 | AN32: 0.13 | AO32: 203391.08 | AP32: 36515.41 | AQ32: 0 | AR32: 0 | AS32: 35000 | AT32: 0 | AU32: 0 | AV32: -1099005.98 | AW32: 0 | AX32: -1597480.96 | AY32: 0 | AZ32: -122685.38 | BA32: -63356.93 | BB32: -57647.31 | BC32: -11900 | BD32: -937.79 | BE32: -4818.72 | BF32: 0 | BG32: -9569.58 | BH32: -50 | BI32: -7481.78 | BJ32: 0 | BK32: 0 | BL32: 0 | BM32: -16318 | BN32: 0 | BO32: 0 | BP32: -26767.5
H33: 7039 | I33: 2697058.08 | J33: 12857.45 | K33: 3110424.57 | L33: 244516.14 | M33: 479521.89 | N33: 73058.23 | O33: 0 | P33: 47906.73 | Q33: 47489.83 | R33: 535.67 | S33: 23466.99 | T33: 146921.25 | U33: 9220.88 | V33: 13389.77 | W33: 23822.27 | X33: 85946.25 | Y33: 0 | Z33: 126048.01 | AA33: 142962.8 | AB33: 7304 | AC33: 0 | AD33: 11447.01 | AE33: 16287.71 | AF33: 28486.6 | AG33: 3086.66 | AH33: 0 | AI33: 5049.03 | AJ33: 34525.34 | AK33: 12711.95 | AL33: 72458.52 | AM33: 73212.6 | AN33: 0 | AO33: 501596.65 | AP33: 79129.53 | AQ33: 0 | AR33: 0 | AS33: 0 | AT33: 0 | AU33: 0 | AV33: -2574363.4 | AW33: -436584.32 | AX33: -3490972.32 | AY33: 0 | AZ33: -137949 | BA33: -7142.57 | BB33: -3930.83 | BC33: -50.27 | BD33: -1462031.6 | BE33: -25267.87 | BF33: 0 | BG33: -14469.6 | BH33: -10653.7 | BI33: -52955.03 | BJ33: 0 | BK33: 0 | BL33: 0 | BM33: -27702 | BN33: 0 | BO33: 0 | BP33: -29516.67
H34: 7040 | I34: 2748965.53 | J34: 1186.85 | K34: 3131389.74 | L34: 68761.52 | M34: 323320.35 | N34: 0 | O34: 100774.74 | P34: 31745.38 | Q34: 15384.45 | R34: 490.27 | S34: 23671.2 | T34: 71357.22 | U34: 32565.82 | V34: 122967.75 | W34: 19193.31 | X34: 124420.75 | Y34: 0 | Z34: 190248.41 | AA34: 150276.44 | AB34: 0 | AC34: 6050.24 | AD34: 0 | AE34: 4491.36 | AF34: 13009.62 | AG34: 15811.75 | AH34: 7913.54 | AI34: 565.5 | AJ34: 10864.56 | AK34: 49682.88 | AL34: 10822.95 | AM34: 36501.68 | AN34: 92630.93 | AO34: 0 | AP34: 12960.68 | AQ34: 26404.56 | AR34: 0 | AS34: 0 | AT34: 0 | AU34: 0 | AV34: -2698748.89 | AW34: -342739.51 | AX34: -3503202.47 | AY34: 0 | AZ34: -169095.39 | BA34: -7628.22 | BB34: -546625.98 | BC34: -100 | BD34: -58813.06 | BE34: -13213.61 | BF34: 0 | BG34: -23855.21 | BH34: -284 | BI34: -30876.14 | BJ34: 0 | BK34: 0 | BL34: 0 | BM34: -33489 | BN34: 0 | BO34: 0 | BP34: -26326.36
H35: 7041 | I35: 3035059.78 | J35: 0 | K35: 1171975.98 | L35: 178118.03 | M35: 377087.38 | N35: 33963.24 | O35: 261322.79 | P35: 56043.86 | Q35: 19905.86 | R35: 391.95 | S35: 18357.72 | T35: 26643.88 | U35: 17381.27 | V35: 83196.35 | W35: 10303.81 | X35: 87459.19 | Y35: 0 | Z35: 108496.67 | AA35: 66644.37 | AB35: 32021.99 | AC35: 0 | AD35: 19234.19 | AE35: 15258.74 | AF35: 5839.99 | AG35: 15977.32 | AH35: 8243.04 | AI35: 33203.67 | AJ35: 37470.21 | AK35: 15638.82 | AL35: 1122640.58 | AM35: 36631.53 | AN35: 39566.95 | AO35: 189982.8 | AP35: 77621.3 | AQ35: 0 | AR35: 0 | AS35: 0 | AT35: 0 | AU35: 0 | AV35: -1784014.83 | AW35: -354357.63 | AX35: -2921393.91 | AY35: 0 | AZ35: -128755 | BA35: -308210.62 | BB35: -210000 | BC35: -100 | BD35: -1753867.45 | BE35: -5678.25 | BF35: 0 | BG35: -49226.11 | BH35: -330 | BI35: -4238.51 | BJ35: 0 | BK35: 0 | BL35: 0 | BM35: 0 | BN35: 0 | BO35: 0 | BP35: -28824.06
H36: 7043 | I36: 3911738.61 | J36: 0 | K36: 3973184.68 | L36: 516118.78 | M36: 511453.31 | N36: 121155.63 | O36: 184369.89 | P36: 49493.91 | Q36: -33201.45 | R36: 812.38 | S36: 35703.84 | T36: 86687.49 | U36: 35828.12 | V36: 16660.72 | W36: 12739.21 | X36: 146208.66 | Y36: 0 | Z36: 66406.04 | AA36: 137707.71 | AB36: 16854.16 | AC36: 0 | AD36: 25663.75 | AE36: 46415.06 | AF36: 52649.96 | AG36: 27693.23 | AH36: 33935.2 | AI36: 20029.96 | AJ36: 24932.59 | AK36: 17324.18 | AL36: 28449.59 | AM36: 164816.28 | AN36: 1134 | AO36: 80108.63 | AP36: 46339.1 | AQ36: 0 | AR36: 0 | AS36: 24000 | AT36: 0 | AU36: 0 | AV36: -3729707.75 | AW36: -1010527.33 | AX36: -4806157.17 | AY36: 0 | AZ36: -278183.75 | BA36: -13420.29 | BB36: -13183.78 | BC36: -62203.87 | BD36: -855795.72 | BE36: -105349.66 | BF36: 0 | BG36: -6296.37 | BH36: -1796.23 | BI36: -4188.93 | BJ36: 0 | BK36: 0 | BL36: 0 | BM36: -32044 | BN36: 0 | BO36: 0 | BP36: -72514.58
H37: 7044 | I37: 2337181.64 | J37: 0 | K37: 804875.63 | L37: 46879.14 | M37: 355796.04 | N37: 52076 | O37: 0 | P37: 20225.45 | Q37: 19435.77 | R37: 286.43 | S37: 16906.92 | T37: 53724.12 | U37: 8098.19 | V37: 55946.42 | W37: 5323.92 | X37: 66443.42 | Y37: 0 | Z37: 12740.26 | AA37: 104134.07 | AB37: 11718.7 | AC37: 0 | AD37: 7083.27 | AE37: 12947.9 | AF37: 6887.98 | AG37: 2309.75 | AH37: 5199.73 | AI37: 18341.11 | AJ37: 20360.17 | AK37: 7473.21 | AL37: 245528.68 | AM37: 15180.89 | AN37: 73541.21 | AO37: 410571.03 | AP37: 68424.22 | AQ37: 0 | AR37: 0 | AS37: 30340.36 | AT37: 0 | AU37: 0 | AV37: -1691682.63 | AW37: 0 | AX37: -2248282.72 | AY37: 0 | AZ37: -144066 | BA37: -600 | BB37: -634052.73 | BC37: 0 | BD37: -124756.57 | BE37: -4090.65 | BF37: 0 | BG37: -2159.99 | BH37: -1859.2 | BI37: -11126.91 | BJ37: 0 | BK37: 0 | BL37: 0 | BM37: -16309 | BN37: 0 | BO37: 0 | BP37: -37445.31
H38: 7045 | I38: 1503826.22 | J38: 0 | K38: 1029788.02 | L38: 111506.56 | M38: 230947.21 | N38: 56906.46 | O38: 981832.35 | P38: 23027.99 | Q38: 12101.55 | R38: 305.52 | S38: 14454.6 | T38: 32634.03 | U38: 10762.63 | V38: 8973.89 | W38: 5550.57 | X38: 37402.19 | Y38: 0 | Z38: 52102.12 | AA38: 78875.42 | AB38: 6757.28 | AC38: 0 | AD38: 2575.25 | AE38: 8183.59 | AF38: 1567.48 | AG38: 880.47 | AH38: 24881.16 | AI38: 11069.75 | AJ38: 35586.25 | AK38: 12589.56 | AL38: 335046.45 | AM38: 67948.15 | AN38: 85492.62 | AO38: 263703.46 | AP38: 65251.1 | AQ38: 0 | AR38: 0 | AS38: 48810 | AT38: 0 | AU38: 0 | AV38: -1573247.08 | AW38: 0 | AX38: -1891641.28 | AY38: 0 | AZ38: -135396.43 | BA38: -1490827.68 | BB38: -6598.73 | BC38: -148.61 | BD38: -15415.16 | BE38: -2264.36 | BF38: 0 | BG38: -1803.15 | BH38: 0 | BI38: -7822.53 | BJ38: 0 | BK38: 0 | BL38: 0 | BM38: -16914 | BN38: 0 | BO38: 0 | BP38: -37671.56
H39: 7051 | I39: 2844972.98 | J39: 0 | K39: 2495126.25 | L39: 83326.48 | M39: 345908.01 | N39: 0 | O39: 0 | P39: 46656.9 | Q39: 48792.23 | R39: 599.81 | S39: 24382.7 | T39: 143543.61 | U39: 24112.9 | V39: 99040.63 | W39: 51377.49 | X39: 134629.18 | Y39: 0 | Z39: 68106.03 | AA39: 291084.51 | AB39: 21811.78 | AC39: 26589.98 | AD39: 18465.17 | AE39: 24618.85 | AF39: 25087.02 | AG39: 8724.47 | AH39: 27075.68 | AI39: 7563.2 | AJ39: 17290.71 | AK39: 10540.3 | AL39: 2924.07 | AM39: 160286.46 | AN39: 2696.48 | AO39: 828420.29 | AP39: 70226.25 | AQ39: 0 | AR39: 0 | AS39: 32994.6 | AT39: 0 | AU39: 0 | AV39: -2816427.48 | AW39: -394878.39 | AX39: -4947136.79 | AY39: 0 | AZ39: -139770 | BA39: -3171.29 | BB39: -2110 | BC39: -14345.82 | BD39: -34522.11 | BE39: -12396.67 | BF39: 0 | BG39: -15660.11 | BH39: -1818.34 | BI39: -6152.09 | BJ39: 0 | BK39: 0 | BL39: 0 | BM39: -36495 | BN39: 0 | BO39: 0 | BP39: -28135.63
H40: 7052 | I40: 1679004.96 | J40: 0 | K40: 835088.61 | L40: 92444.33 | M40: 222775.65 | N40: 53801.95 | O40: 100499.17 | P40: 16583.47 | Q40: 4398.67 | R40: 379.72 | S40: 12557.16 | T40: 26353.35 | U40: 4522.18 | V40: 1768.9 | W40: 4076.89 | X40: 53507.27 | Y40: 0 | Z40: 86076.76 | AA40: 116156.99 | AB40: 4593 | AC40: 0 | AD40: 14372 | AE40: 13254.3 | AF40: 3528.47 | AG40: 11905.74 | AH40: 25663.32 | AI40: 16139.43 | AJ40: 21485.09 | AK40: 9953.63 | AL40: 7803.84 | AM40: 29141.78 | AN40: 0 | AO40: 365754.26 | AP40: 36679.85 | AR40: 0 | AS40: 172390.3 | AV40: -1424544.67 | AW40: -709281.72 | AX40: -2555664.33 | AY40: 0 | AZ40: -51120 | BA40: -1256.93 | BB40: -4741.32 | BC40: 0 | BD40: -5145.83 | BE40: -13192.54 | BF40: 0 | BG40: -5019.2 | BH40: -26752.76 | BI40: -530 | BJ40: 0 | BM40: -14444 | BN40: 0 | BO40: 0 | BP40: -24767.11
H41: 7056 | I41: 6186104.03 | J41: 0 | K41: 6007769.68 | L41: 367985.97 | M41: 1433805.78 | N41: 233298.09 | O41: 351155.37 | P41: 101853.27 | Q41: 161290.99 | R41: 1595.27 | S41: 73905.67 | T41: 220766.79 | U41: 38838.03 | V41: 197345.98 | W41: 20958.56 | X41: 149660.73 | Y41: 0 | Z41: 338509.56 | AA41: 850840.62 | AB41: 17124.36 | AC41: 2747.32 | AD41: 11238.3 | AE41: 249734.08 | AF41: 36610.93 | AG41: 129648.54 | AH41: 60500.78 | AI41: 0 | AJ41: 240 | AK41: 8677.95 | AL41: 129594.09 | AM41: 32025.17 | AN41: 5162.99 | AO41: 118667.11 | AP41: 285112.91 | AQ41: 0 | AR41: 0 | AS41: 859394.86 | AT41: 0 | AU41: 0 | AV41: -8176676.63 | AW41: -1005255.06 | AX41: -8243548.33 | AY41: 0 | AZ41: -451267.16 | BA41: 0 | BB41: -4800 | BC41: -19560 | BD41: -2835 | BE41: -1119479.2 | BF41: -61382.03 | BG41: 0 | BH41: -89679.59 | BI41: -3225.58 | BJ41: -231086.72 | BK41: 0 | BL41: 0 | BM41: -54443 | BN41: 0 | BO41: 0 | BP41: -86159.06
H42: 7058 | I42: 1422204.58 | J42: 0 | K42: 1841133.21 | L42: 331263.21 | M42: 154255.81 | N42: 76782.78 | O42: 80636.36 | P42: 31016.88 | Q42: 44141.21 | R42: 206.53 | S42: 11019 | T42: 138052.64 | U42: 17680.08 | V42: 16881.24 | W42: 10590.82 | X42: 122230.16 | Y42: 0 | Z42: 72470.54 | AA42: 92065.64 | AB42: 14592.03 | AC42: 0 | AD42: 6740.24 | AE42: 14112.89 | AF42: 6796.63 | AG42: 6236.21 | AH42: 4286.32 | AI42: 0 | AJ42: 15554.67 | AK42: 5636.87 | AL42: 1750.89 | AM42: 43648.21 | AN42: 0 | AO42: 100585.82 | AP42: 53089.94 | AQ42: 0 | AR42: 310857.68 | AS42: 0 | AT42: 0 | AU42: -1086578.39 | AV42: -92478.75 | AW42: -3430549.8 | AX42: 0 | AY42: -97180 | AZ42: -12169.69 | BA42: -504085.23 | BB42: -13146.89 | BC42: -2733.78 | BD42: -1284.7 | BE42: 0 | BF42: -17708.3 | BG42: -1910 | BH42: -3032.25 | BI42: 0 | BJ42: 0 | BK42: 0 | BL42: 0 | BM42: -19561 | BN42: 0 | BO42: 0 | BP42: -17235.63
H43: 7062 | I43: 1542805.79 | J43: 0 | K43: 783310.41 | L43: 44519.33 | M43: 199277.51 | N43: 0 | O43: 0 | P43: 17946.61 | Q43: 19124.86 | R43: 201 | S43: 1144.56 | T43: 47570.5 | U43: 59204.04 | V43: 5357.66 | W43: 3903.17 | X43: 54203.31 | Y43: 0 | Z43: 10100.18 | AA43: 71611.14 | AB43: 0 | AC43: 1946 | AD43: 38.5 | AE43: 672.12 | AF43: 25528.41 | AG43: 6589.39 | AH43: 6532.75 | AI43: 19497.56 | AJ43: 12210.26 | AK43: 30259.65 | AL43: 6368.36 | AM43: 12044.1 | AN43: 39989.95 | AO43: 103161.55 | AP43: 85983.17 | AQ43: 69877.83 | AR43: 0 | AS43: 104484.57 | AT43: 0 | AU43: 0 | AV43: -1117293.72 | AW43: 0 | AX43: -1566527.82 | AY43: 0 | AZ43: -108228 | BA43: -1200 | BB43: -313940.08 | BC43: 0 | BD43: -15589.16 | BE43: -3846.27 | BF43: 0 | BG43: 0 | BH43: 0 | BI43: -212.65 | BJ43: 0 | BK43: 0 | BL43: 0 | BM43: 0 | BN43: -17088 | BO43: 0 | BP43: -12498.44
H44: 7063 | I44: 3488513.31 | J44: 0 | K44: 3747661.62 | L44: 156391.26 | M44: 211759.82 | N44: 95272.95 | O44: 22227.59 | P44: 100473.17 | Q44: 66304.17 | R44: 695.8 | S44: 33709.2 | T44: 7430.5 | U44: 5880.09 | V44: 17342.2 | W44: 14707.89 | X44: 99232.07 | Y44: 0 | Z44: 255375.18 | AA44: 181416.41 | AB44: 0 | AC44: 31665.9 | AD44: 0 | AE44: 12549 | AF44: 25417.4 | AG44: 20667.63 | AH44: 690.28 | AI44: 3257 | AJ44: 3005.45 | AK44: 2584.84 | AL44: 15595.62 | AM44: 87276 | AN44: 54183.79 | AO44: 33597.13 | AP44: 125262.93 | AQ44: 67262.94 | AR44: 0 | AS44: 15207.53 | AT44: 0 | AU44: 0 | AV44: -3608722.88 | AW44: -439301.07 | AX44: -4266499.51 | AY44: 0 | AZ44: -250617 | BA44: -5200 | BB44: -10904.62 | BC44: -21920 | BD44: -270073.29 | BE44: -26760.36 | BF44: 0 | BG44: -19775.75 | BH44: -10564.17 | BI44: -10464.98 | BJ44: 0 | BK44: 0 | BL44: 0 | BM44: -36141 | BN44: 0 | BO44: 0 | BP44: -41800
H45: 7067 | I45: 1425157.26 | J45: 0 | K45: 501414.48 | L45: 52245.03 | M45: 96286.01 | N45: 35989.56 | O45: 0 | P45: 11946.77 | Q45: 0 | R45: 160.8 | S45: 7279.2 | T45: 10423.45 | U45: 10272.7 | V45: 26026.05 | W45: 4929.6 | X45: 54882.03 | Y45: 0 | Z45: 16786.74 | AA45: 64324.52 | AB45: 8421.6 | AC45: 503 | AD45: 3362.54 | AE45: 11093.74 | AF45: 7868.75 | AG45: 789.56 | AH45: 7348 | AI45: 9540.91 | AJ45: 5140.98 | AK45: 4089.39 | AL45: 1510 | AM45: 28492.83 | AN45: 11803.75 | AO45: 2822 | AP45: 19450.41 | AQ45: 0 | AR45: 0 | AS45: 0 | AT45: -827196.8 | AU45: -94.83 | AV45: -1599321.82 | AW45: 0 | AX45: -57175 | AY45: -4526.47 | AZ45: -6290 | BA45: 0 | BB45: -5530.68 | BC45: 0 | BD45: 0 | BE45: -7648.03 | BF45: -1030 | BG45: 0 | BH45: 0 | BI45: 0 | BJ45: 0 | BK45: 0 | BL45: 0 | BM45: 0 | BN45: 0 | BO45: 0 | BP45: -20099.06
H46: 7069 | I46: 3262455.67 | J46: 3468.22 | K46: 3413812.8 | L46: 188747.73 | M46: 351042.66 | N46: 0 | O46: 0 | P46: 20829.22 | Q46: 72790.26 | R46: 28317.3 | S46: 31707.72 | T46: 158303.55 | U46: 18884.27 | V46: 57519.98 | W46: 21382.92 | X46: 81734.95 | Y46: 0 | Z46: 79900.53 | AA46: 361723.27 | AB46: 0 | AC46: 5797.16 | AD46: 1849.28 | AE46: 9105.6 | AF46: 15969.36 | AG46: 39202.53 | AH46: 11099.34 | AI46: 10358.45 | AJ46: 2219.26 | AK46: 58766.68 | AL46: 14963.77 | AM46: 34240.21 | AN46: 150069.97 | AO46: 254689.98 | AP46: 90196.95 | AQ46: 67606.33 | AR46: 0 | AS46: 37353 | AT46: 0 | AU46: 0 | AV46: -3388745.36 | AW46: -483945.86 | AX46: -4265294.26 | AY46: 0 | AZ46: -160670 | BA46: -3371.29 | BB46: -493931.4 | BC46: -10125 | BD46: -2412.88 | BE46: -27384.14 | BF46: -14557.5 | BG46: -38492.4 | BH46: -6279.25 | BI46: -95037.82 | BJ46: 0 | BK46: 0 | BL46: 0 | BM46: 0 | BN46: -37065 | BO46: 0 | BP46: -39335.83
H47: 7070 | I47: 2252812.45 | J47: 0 | K47: 1818470.85 | L47: 107460.44 | M47: 214915.82 | N47: 0 | O47: 125716.38 | P47: 50338.24 | Q47: 38160.04 | R47: 421.1 | S47: 18661.8 | T47: 32996.56 | U47: 9312.19 | V47: 105125.66 | W47: 21442.97 | X47: 67614.68 | Y47: 0 | Z47: 51596.23 | AA47: 199711.67 | AB47: 10396.6 | AC47: 4735.71 | AD47: 26872.26 | AE47: 8878.14 | AF47: 2116.6 | AG47: 30268.2 | AH47: 1635.25 | AI47: 19751.74 | AJ47: 10640.58 | AK47: 7347.19 | AL47: 73234 | AM47: 389576.88 | AN47: 181476.11 | AO47: 42026.8 | AP47: 0 | AQ47: 0 | AR47: 0 | AS47: 67172.64 | AT47: 0 | AU47: 0 | AV47: -2156209.67 | AW47: -407847.65 | AX47: -2453191.87 | AY47: 0 | AZ47: -96300 | BA47: -8633.86 | BB47: -795 | BC47: 0 | BD47: -526689.38 | BE47: -25258.8 | BF47: 0 | BG47: -14857.08 | BH47: -39777.2 | BI47: -17540.06 | BJ47: 0 | BK47: 0 | BL47: 0 | BM47: -23816 | BN47: 0 | BO47: 0 | BP47: -25521.77
H48: 7072 | I48: 3725240.43 | J48: 2921.84 | K48: 3584298.52 | L48: 155229.15 | M48: 536522.73 | N48: 0 | O48: 290956.2 | P48: 25645.9 | Q48: 49296.11 | R48: 786.58 | S48: 32252.72 | T48: 154780.05 | U48: 22856.95 | V48: 143920.79 | W48: 26040.65 | X48: 184414.64 | Y48: 0 | Z48: 92792.91 | AA48: 158321.25 | AB48: 5701.37 | AC48: 4.99 | AD48: 15409.98 | AE48: 13399.34 | AF48: 6155.26 | AG48: 35440.66 | AH48: 37316.13 | AI48: 10174.6 | AJ48: 30946.84 | AK48: 16362.63 | AL48: 5831.78 | AM48: 100369.36 | AN48: 497553.38 | AO48: 82209.73 | AP48: 68380.06 | AQ48: 0 | AR48: 0 | AS48: 0 | AT48: 0 | AU48: 0 | AV48: -3672675.26 | AW48: -581999.46 | AX48: -4668681.66 | AY48: 0 | AZ48: -253405.94 | BA48: -8999.5 | BB48: -184434.22 | BC48: -25640 | BD48: -168803.84 | BE48: 0 | BF48: 0 | BG48: -60024.13 | BH48: -5730.38 | BI48: -32083.12 | BJ48: 0 | BK48: 0 | BL48: 0 | BM48: -31680 | BN48: 0 | BO48: 0 | BP48: -41780.63
H49: 7073 | I49: 2419305.31 | J49: 0 | K49: 1981134.35 | L49: 176328.96 | M49: 296282.02 | N49: 122861.77 | O49: 0 | P49: 21809.22 | Q49: 25569.91 | R49: 415.9 | S49: 21718.86 | T49: 55416.28 | U49: 6647.33 | V49: 13799.18 | W49: 8892.61 | X49: 51419.21 | Y49: 0 | Z49: 25075.15 | AA49: 140607.76 | AB49: 9154.54 | AC49: 0 | AD49: 17878.24 | AE49: 10820.97 | AF49: 33899.37 | AG49: 5844.1 | AH49: 139.5 | AI49: 21402.65 | AJ49: 63705.65 | AK49: 9453.77 | AL49: 23.2 | AM49: 75083.86 | AN49: 0 | AO49: 148298.66 | AP49: 69857.79 | AQ49: 0 | AR49: 0 | AS49: 31472 | AT49: 0 | AU49: 0 | AV49: -2280696.05 | AW49: -145322.8 | AX49: -3158807.71 | AY49: 0 | AZ49: -117040 | BA49: -283177.09 | BB49: -3244 | BC49: 0 | BD49: -618.31 | BE49: -12124.67 | BF49: 0 | BG49: 0 | BH49: 0 | BI49: -38956.28 | BJ49: 0 | BK49: 0 | BL49: 0 | BM49: -21427 | BN49: 0 | BO49: 0 | BP49: -46755.11
I50: 2 | J50: 3 | K50: 4 | L50: 5 | M50: 6 | O50: 7 | P50: 8 | Q50: 9 | T50: 10 | Z50: 11 | AA50: 12 | AB50: 13 | AJ50: 14 | AL50: 15 | AM50: 16 | AO50: 17 | AP50: 18 | AQ50: 19 | BA50: 20 | BB50: 21 | BC50: 22
H51: =Benchmarking!C1&" Fund 50" -> 2024-25 Fund 50 | I51: E01-50 | J51: E02-50 | K51: E03-50 | L51: E04-50 | M51: E05-50 | N51: E06-50 | O51: E07-50 | P51: E08-50 | Q51: E09-50 | R51: E10-50 | S51: E11-50 | T51: E12-50 | U51: E13-50 | V51: E14-50 | W51: E15-50 | X51: E16-50 | Y51: E17-50 | Z51: E18-50 | AA51: E19-50 | AB51: E20A-50 | AC51: E20B-50 | AD51: E20C-50 | AE51: E20D-50 | AF51: E20E-50 | AG51: E20F-50 | AH51: E20G-50 | AI51: E21-50 | AJ51: E22-50 | AK51: E23-50 | AL51: E24-50 | AM51: E25-50 | AN51: E26-50 | AO51: E27-50 | AP51: E28-50 | AQ51: E28B-50 | AR51: E29-50 | AS51: E30-50 | AT51: E31-50 | AU51: E32-50 | AV51: I01-50 | AW51: I02-50 | AX51: I03-50 | AY51: I04-50 | AZ51: I05-50 | BA51: I06-50 | BB51: I07-50 | BC51: I08-50 | BD51: I08b-50 | BE51: I09-50 | BF51: I10-50 | BG51: I11-50 | BH51: I12-50 | BI51: I13-50 | BJ51: I15-50 | BK51: I16-50 | BL51: I17-50 | BM51: I18-50 | BN51: I18A-50 | BO51: I18B-50 | BP51: I18C-50
F52: Fund 50 These figures are taken from the School I&E Report | H52: 7002 | I52: 351768.76 | J52: 0 | K52: 0 | L52: 0 | M52: 23430.46 | N52: 0 | O52: 0 | P52: 3766.65 | Q52: 432.78 | R52: 0 | S52: 0 | T52: 0 | U52: 0 | V52: 0 | W52: 0 | X52: 0 | Y52: 0 | Z52: 0 | AA52: 297.38 | AB52: 0 | AC52: 0 | AD52: 0 | AE52: 82 | AF52: 0 | AG52: 14.15 | AH52: 0 | AI52: 0 | AJ52: 871.43 | AK52: 0 | AL52: 8400 | AM52: 0 | AN52: 0 | AO52: 0 | AP52: 0 | AQ52: 0 | AR52: 0 | AS52: 0 | AT52: 0 | AU52: 0 | AV52: 0 | AW52: 0 | AX52: -12662.69 | AY52: 0 | AZ52: 0 | BA52: -219096 | BB52: -150000 | BC52: 0 | BD52: -6400 | BE52: 0 | BF52: 0 | BG52: 0 | BH52: 0 | BI52: 0 | BJ52: 0 | BK52: 0 | BL52: 0 | BM52: -583 | BN52: 0 | BO52: 0 | BP52: -64297.81
H53: 7021 | I53: 304587.86 | J53: 16554.06 | K53: 0 | L53: 0 | M53: 23674.65 | N53: 0 | O53: 5808 | P53: 2806.01 | Q53: 1782.49 | R53: 0 | S53: 0 | T53: 0 | U53: 0 | V53: 0 | W53: 0 | X53: 0 | Y53: 0 | Z53: 157.44 | AA53: 10.99 | AB53: 0 | AC53: 0 | AD53: 0 | AE53: 0 | AF53: 14.92 | AG53: 0 | AH53: 0 | AI53: 0 | AJ53: 2206.42 | AK53: 0 | AL53: 12000 | AM53: 0 | AN53: 0 | AO53: 0 | AP53: 67 | AQ53: 0 | AR53: 0 | AS53: 0 | AT53: 0 | AU53: 565.96 | AV53: 0 | AW53: 0 | AX53: -10870.22 | AY53: 0 | AZ53: 0 | BA53: -240189.56 | BB53: -120000 | BC53: 0 | BD53: -4139.2 | BE53: 0 | BF53: 0 | BG53: 0 | BH53: 0 | BI53: 0 | BJ53: 0 | BK53: 0 | BL53: 0 | BM53: 0 | BN53: 0 | BO53: 0 | BP53: 0
H54: 7032 | I54: 0 | J54: 0 | K54: 0 | L54: 0 | M54: 0 | N54: 0 | O54: 0 | P54: 0 | Q54: 0 | R54: 0 | S54: 0 | T54: 0 | U54: 0 | V54: 0 | W54: 0 | X54: 0 | Y54: 0 | Z54: 0 | AA54: 0 | AB54: 0 | AC54: 0 | AD54: 0 | AE54: 0 | AF54: 0 | AG54: 0 | AH54: 0 | AI54: 0 | AJ54: 0 | AK54: 0 | AL54: 0 | AM54: 0 | AN54: 0 | AO54: 0 | AP54: 0 | AQ54: 0 | AR54: 0 | AS54: 0 | AT54: 0 | AU54: 0 | AV54: 0 | AW54: 0 | AX54: 0 | AY54: 0 | AZ54: 0 | BA54: 0 | BB54: 0 | BC54: 0 | BD54: 0 | BE54: 0 | BF54: 0 | BG54: 0 | BH54: 0 | BI54: 0 | BJ54: 0 | BK54: 0 | BL54: 0 | BM54: 0 | BN54: 0 | BO54: 0 | BP54: 0
H55: 7033 | I55: 0 | J55: 0 | K55: 0 | L55: 0 | M55: 0 | N55: 0 | O55: 0 | P55: 0 | Q55: 0 | R55: 0 | S55: 0 | T55: 0 | U55: 0 | V55: 0 | W55: 0 | X55: 0 | Y55: 0 | Z55: 0 | AA55: 0 | AB55: 0 | AC55: 0 | AD55: 0 | AE55: 0 | AF55: 0 | AG55: 0 | AH55: 0 | AI55: 0 | AJ55: 0 | AK55: 0 | AL55: 0 | AM55: 0 | AN55: 0 | AO55: 0 | AP55: 0 | AQ55: 0 | AR55: 0 | AS55: 0 | AT55: 0 | AU55: 0 | AV55: 0 | AW55: 0 | AX55: 0 | AY55: 0 | AZ55: 0 | BA55: 0 | BB55: 0 | BC55: 0 | BD55: 0 | BE55: 0 | BF55: 0 | BG55: 0 | BH55: 0 | BI55: 0 | BJ55: 0 | BK55: 0 | BL55: 0 | BM55: 0 | BN55: 0 | BO55: 0 | BP55: 0
H56: 7039 | I56: 505885.49 | J56: 0 | K56: 0 | L56: 0 | M56: 28928.45 | N56: 0 | O56: 0 | P56: 3000.93 | Q56: 204.19 | R56: 0 | S56: 0 | T56: 0 | U56: 0 | V56: 0 | W56: 0 | X56: 0 | Y56: 0 | Z56: 18850 | AA56: 41.17 | AB56: 0 | AC56: 0 | AD56: 0 | AE56: 0 | AF56: 0 | AG56: 0 | AH56: 0 | AI56: 0 | AJ56: 221.37 | AK56: 0 | AL56: 0 | AM56: 246.77 | AN56: 0 | AO56: 0 | AP56: 0 | AQ56: 0 | AR56: 0 | AS56: 0 | AT56: 0 | AU56: 0 | AV56: 0 | AW56: 0 | AX56: -24436.9 | AY56: 0 | AZ56: 0 | BA56: -315496.16 | BB56: -180000 | BC56: 0 | BD56: 0 | BE56: 0 | BF56: 0 | BG56: 0 | BH56: 0 | BI56: 0 | BJ56: 0 | BK56: 0 | BL56: 0 | BM56: 0 | BN56: 0 | BO56: 0 | BP56: 0
H57: 7040 | I57: 0 | J57: 0 | K57: 0 | L57: 0 | M57: 0 | N57: 0 | O57: 0 | P57: 0 | Q57: 0 | R57: 0 | S57: 0 | T57: 0 | U57: 0 | V57: 0 | W57: 0 | X57: 0 | Y57: 0 | Z57: 0 | AA57: 0 | AB57: 0 | AC57: 0 | AD57: 0 | AE57: 0 | AF57: 0 | AG57: 0 | AH57: 0 | AI57: 0 | AJ57: 0 | AK57: 0 | AL57: 0 | AM57: 0 | AN57: 0 | AO57: 0 | AP57: 0 | AQ57: 0 | AR57: 0 | AS57: 0 | AT57: 0 | AU57: 0 | AV57: 0 | AW57: 0 | AX57: 0 | AY57: 0 | AZ57: 0 | BA57: 0 | BB57: 0 | BC57: 0 | BD57: 0 | BE57: 0 | BF57: 0 | BG57: 0 | BH57: 0 | BI57: 0 | BJ57: 0 | BK57: 0 | BL57: 0 | BM57: 0 | BN57: 0 | BO57: 0 | BP57: 0
H58: 7041 | I58: 0 | J58: 0 | K58: 0 | L58: 0 | M58: 0 | N58: 0 | O58: 0 | P58: 0 | Q58: 0 | R58: 0 | S58: 0 | T58: 0 | U58: 0 | V58: 0 | W58: 0 | X58: 0 | Y58: 0 | Z58: 0 | AA58: 0 | AB58: 0 | AC58: 0 | AD58: 0 | AE58: 0 | AF58: 0 | AG58: 0 | AH58: 0 | AI58: 0 | AJ58: 2025.61 | AK58: 0 | AL58: 60410.14 | AM58: 0 | AN58: 0 | AO58: 0 | AP58: 0 | AQ58: 0 | AR58: 0 | AS58: 0 | AT58: 0 | AU58: 0 | AV58: 0 | AW58: 0 | AX58: 0 | AY58: 0 | AZ58: 0 | BA58: 0 | BB58: 0 | BC58: 0 | BD58: 0 | BE58: 0 | BF58: 0 | BG58: 0 | BH58: 0 | BI58: 0 | BJ58: 0 | BK58: 0 | BL58: 0 | BM58: 0 | BN58: 0 | BO58: 0 | BP58: 0
H59: 7043 | I59: 540147.02 | J59: 0 | K59: 54039.6 | L59: 0 | M59: 33587.64 | N59: 0 | O59: 0 | P59: 6816.06 | Q59: 433.55 | R59: 0 | S59: 0 | T59: 0 | U59: 0 | V59: 0 | W59: 0 | X59: 0 | Y59: 0 | Z59: 0 | AA59: 243.57 | AB59: 0 | AC59: 0 | AD59: 0 | AE59: 0 | AF59: 0 | AG59: 0 | AH59: 0 | AI59: 0 | AJ59: 6704.38 | AK59: 0 | AL59: 0 | AM59: 0 | AN59: 0 | AO59: 2374.52 | AP59: 110 | AQ59: 0 | AR59: 0 | AS59: 0 | AT59: 0 | AU59: 0 | AV59: 0 | AW59: 0 | AX59: -21719.4 | AY59: 0 | AZ59: 0 | BA59: -313354.16 | BB59: -200000.04 | BC59: 0 | BD59: -65743.21 | BE59: 0 | BF59: 0 | BG59: 0 | BH59: 0 | BI59: 0 | BJ59: 0 | BK59: 0 | BL59: 0 | BM59: 0 | BN59: 0 | BO59: 0 | BP59: 0
H60: 7044 | I60: 416344.32 | J60: 0 | K60: 0 | L60: 0 | M60: 27791.18 | N60: 0 | O60: 0 | P60: 519.51 | Q60: 277.8 | R60: 0 | S60: 0 | T60: 0 | U60: 0 | V60: 0 | W60: 0 | X60: 0 | Y60: 0 | Z60: 0 | AA60: 18.99 | AB60: 0 | AC60: 0 | AD60: 0 | AE60: 772.2 | AF60: 0 | AG60: 0 | AH60: 0 | AI60: 0 | AJ60: 1815.06 | AK60: 0 | AL60: 896.97 | AM60: 0 | AN60: 0 | AO60: 0 | AP60: 59159.88 | AQ60: 0 | AR60: 0 | AS60: 0 | AT60: 0 | AU60: 0 | AV60: 0 | AW60: 0 | AX60: -20890.35 | AY60: 0 | AZ60: 0 | BA60: -294606.64 | BB60: -170000.04 | BC60: 0 | BD60: -10979 | BE60: 0 | BF60: 0 | BG60: 0 | BH60: 0 | BI60: 0 | BJ60: 0 | BK60: 0 | BL60: 0 | BM60: 0 | BN60: 0 | BO60: 0 | BP60: 0
H61: 7045 | I61: 350103.81 | J61: 0 | K61: 31392.65 | L61: 0 | M61: 24397.58 | N61: 0 | O61: 92095.67 | P61: 1613.88 | Q61: 6336.45 | R61: 0 | S61: 0 | T61: 0 | U61: 0 | V61: 0 | W61: 0 | X61: 0 | Y61: 0 | Z61: 0 | AA61: 315.95 | AB61: 0 | AC61: 0 | AD61: 0 | AE61: 82.99 | AF61: 0 | AG61: 25.81 | AH61: 0 | AI61: 0 | AJ61: 0 | AK61: 0 | AL61: 33345.85 | AM61: 0 | AN61: 0 | AO61: 0 | AP61: 768.75 | AQ61: 0 | AR61: 0 | AS61: 0 | AT61: 0 | AU61: 0 | AV61: 0 | AW61: 0 | AX61: -17289.91 | AY61: 0 | AZ61: 0 | BA61: -288894.6 | BB61: -180000 | BC61: 0 | BD61: -2495 | BE61: 0 | BF61: 0 | BG61: 0 | BH61: 0 | BI61: 0 | BJ61: 0 | BK61: 0 | BL61: 0 | BM61: 0 | BN61: 0 | BO61: 0 | BP61: -37671.56
H62: 7051 | I62: 419676.95 | J62: 0 | K62: 0 | L62: 0 | M62: 33346.22 | N62: 0 | O62: 0 | P62: 2838.4 | Q62: 4205.08 | R62: 34.3 | S62: 1563.6 | T62: 0 | U62: 24112.9 | V62: 0 | W62: 0 | X62: 0 | Y62: 0 | Z62: 5985.25 | AA62: 4209.02 | AB62: 21811.78 | AC62: 0 | AD62: 0 | AE62: 10243.96 | AF62: 0 | AG62: 0 | AH62: 0 | AI62: 7563.2 | AJ62: 5053.88 | AK62: 615.84 | AL62: 0 | AM62: 160286.46 | AN62: 0 | AO62: 5219.04 | AP62: 4752 | AQ62: 0 | AR62: 0 | AS62: 32994.6 | AT62: 0 | AU62: 0 | AV62: 0 | AW62: -394878.39 | AX62: -15272.39 | AY62: 0 | AZ62: -139770 | BA62: -270146.96 | BB62: -189999.96 | BC62: 0 | BD62: -5608 | BE62: -12396.67 | BF62: 0 | BG62: -15660.11 | BH62: -1818.34 | BI62: -30 | BJ62: 0 | BK62: 0 | BL62: 0 | BM62: -36495 | BN62: 0 | BO62: 0 | BP62: -28135.63
H63: 7052 | I63: 0 | J63: 0 | K63: 0 | L63: 0 | M63: 0 | N63: 0 | O63: 0 | P63: 0 | Q63: 0 | R63: 0 | S63: 0 | T63: 0 | U63: 0 | V63: 0 | W63: 0 | X63: 0 | Y63: 0 | Z63: 0 | AA63: 0 | AB63: 0 | AC63: 0 | AD63: 0 | AE63: 0 | AF63: 0 | AG63: 0 | AH63: 0 | AI63: 0 | AJ63: 0 | AK63: 0 | AL63: 0 | AM63: 0 | AN63: 0 | AO63: 0 | AP63: 0 | AQ63: 0 | AR63: 0 | AS63: 0 | AT63: 0 | AU63: 0 | AV63: 0 | AW63: 0 | AX63: 0 | AY63: 0 | AZ63: 0 | BA63: 0 | BB63: 0 | BC63: 0 | BD63: 0 | BE63: 0 | BF63: 0 | BG63: 0 | BH63: 0 | BI63: 0 | BJ63: 0 | BK63: 0 | BL63: 0 | BM63: 0 | BN63: 0 | BO63: 0 | BP63: 0
H64: 7056 | I64: 575508.45 | J64: 0 | K64: 24007.44 | L64: 0 | M64: 34674.5 | N64: 0 | O64: 0 | P64: 4715.32 | Q64: 5082.05 | R64: 0 | S64: 0 | T64: 0 | U64: 0 | V64: 0 | W64: 0 | X64: 0 | Y64: 0 | Z64: 2932.1 | AA64: 278.32 | AB64: 0 | AC64: 0 | AD64: 0 | AE64: 0 | AF64: 0 | AG64: 0 | AH64: 0 | AI64: 0 | AJ64: 1970.77 | AK64: 0 | AL64: 0 | AM64: 217.24 | AN64: 0 | AO64: 0 | AP64: 0 | AQ64: 0 | AR64: 0 | AS64: 0 | AT64: 0 | AU64: 0 | AV64: 0 | AW64: 0 | AX64: -26516.76 | AY64: 0 | AZ64: 0 | BA64: -271166.96 | BB64: -240000 | BC64: 0 | BD64: -46912.26 | BE64: 0 | BF64: 0 | BG64: 0 | BH64: 0 | BI64: 0 | BJ64: 0 | BK64: 0 | BL64: 0 | BM64: 0 | BN64: 0 | BO64: 0 | BP64: 0
H65: 7058 | I65: 0 | J65: 0 | K65: 0 | L65: 0 | M65: 0 | N65: 0 | O65: 0 | P65: 0 | Q65: 0 | R65: 0 | S65: 0 | T65: 0 | U65: 0 | V65: 0 | W65: 0 | X65: 0 | Y65: 0 | Z65: 0 | AA65: 0 | AB65: 0 | AC65: 0 | AD65: 0 | AE65: 0 | AF65: 0 | AG65: 0 | AH65: 0 | AI65: 0 | AJ65: 0 | AK65: 0 | AL65: 0 | AM65: 0 | AN65: 0 | AO65: 0 | AP65: 0 | AQ65: 0 | AR65: 0 | AS65: 0 | AT65: 0 | AU65: 0 | AV65: 0 | AW65: 0 | AX65: 0 | AY65: 0 | AZ65: 0 | BA65: 0 | BB65: 0 | BC65: 0 | BD65: 0 | BE65: 0 | BF65: 0 | BG65: 0 | BH65: 0 | BI65: 0 | BJ65: 0 | BK65: 0 | BL65: 0 | BM65: 0 | BN65: 0 | BO65: 0 | BP65: 0
H66: 7062 | I66: 0 | J66: 0 | K66: 0 | L66: 0 | M66: 0 | N66: 0 | O66: 0 | P66: 0 | Q66: 0 | R66: 0 | S66: 0 | T66: 0 | U66: 0 | V66: 0 | W66: 0 | X66: 0 | Y66: 0 | Z66: 0 | AA66: 0 | AB66: 0 | AC66: 0 | AD66: 0 | AE66: 0 | AF66: 0 | AG66: 0 | AH66: 0 | AI66: 0 | AJ66: 0 | AK66: 0 | AL66: 0 | AM66: 0 | AN66: 0 | AO66: 0 | AP66: 0 | AQ66: 0 | AR66: 0 | AS66: 0 | AT66: 0 | AU66: 0 | AV66: 0 | AW66: 0 | AX66: 0 | AY66: 0 | AZ66: 0 | BA66: 0 | BB66: 0 | BC66: 0 | BD66: 0 | BE66: 0 | BF66: 0 | BG66: 0 | BH66: 0 | BI66: 0 | BJ66: 0 | BK66: 0 | BL66: 0 | BM66: 0 | BN66: 0 | BO66: 0 | BP66: 0
H67: 7063 | I67: 358985.02 | J67: 0 | K67: 0 | L67: 0 | M67: 38529.26 | N67: 0 | O67: 0 | P67: 2467.71 | Q67: 1103.5 | R67: 0 | S67: 0 | T67: 0 | U67: 0 | V67: 0 | W67: 0 | X67: 0 | Y67: 0 | Z67: 176 | AA67: 150 | AB67: 0 | AC67: 0 | AD67: 0 | AE67: 0 | AF67: 0 | AG67: 0 | AH67: 0 | AI67: 0 | AJ67: 310 | AK67: 0 | AL67: 3484.4 | AM67: 0 | AN67: 0 | AO67: 0 | AP67: 0 | AQ67: 0 | AR67: 0 | AS67: 0 | AT67: 0 | AU67: 0 | AV67: 0 | AW67: 0 | AX67: -15586.85 | AY67: 0 | AZ67: 0 | BA67: -483958.54 | BB67: 0 | BC67: 0 | BD67: 0 | BE67: 0 | BF67: 0 | BG67: 0 | BH67: 0 | BI67: 0 | BJ67: 0 | BK67: 0 | BL67: 0 | BM67: 0 | BN67: 0 | BO67: 0 | BP67: 0
H68: 7067 | I68: 0 | J68: 0 | K68: 0 | L68: 0 | M68: 0 | N68: 0 | O68: 0 | P68: 0 | Q68: 0 | R68: 0 | S68: 0 | T68: 0 | U68: 0 | V68: 0 | W68: 0 | X68: 0 | Y68: 0 | Z68: 0 | AA68: 0 | AB68: 0 | AC68: 0 | AD68: 0 | AE68: 0 | AF68: 0 | AG68: 0 | AH68: 0 | AI68: 0 | AJ68: 0 | AK68: 0 | AL68: 0 | AM68: 0 | AN68: 0 | AO68: 0 | AP68: 0 | AQ68: 0 | AR68: 0 | AS68: 0 | AT68: 0 | AU68: 0 | AV68: 0 | AW68: 0 | AX68: 0 | AY68: 0 | AZ68: 0 | BA68: 0 | BB68: 0 | BC68: 0 | BD68: 0 | BE68: 0 | BF68: 0 | BG68: 0 | BH68: 0 | BI68: 0 | BJ68: 0 | BK68: 0 | BL68: 0 | BM68: 0 | BN68: 0 | BO68: 0 | BP68: 0
H69: 7069 | I69: 0 | J69: 0 | K69: 0 | L69: 0 | M69: 0 | N69: 0 | O69: 0 | P69: 0 | Q69: 0 | R69: 0 | S69: 0 | T69: 0 | U69: 0 | V69: 0 | W69: 0 | X69: 0 | Y69: 0 | Z69: 0 | AA69: 0 | AB69: 0 | AC69: 0 | AD69: 0 | AE69: 0 | AF69: 0 | AG69: 0 | AH69: 0 | AI69: 0 | AJ69: 0 | AK69: 0 | AL69: 0 | AM69: 0 | AN69: 0 | AO69: 0 | AP69: 0 | AQ69: 0 | AR69: 0 | AS69: 0 | AT69: 0 | AU69: 0 | AV69: 0 | AW69: 0 | AX69: 0 | AY69: 0 | AZ69: 0 | BA69: 0 | BB69: 0 | BC69: 0 | BD69: 0 | BE69: 0 | BF69: 0 | BG69: 0 | BH69: 0 | BI69: 0 | BJ69: 0 | BK69: 0 | BL69: 0 | BM69: 0 | BN69: 0 | BO69: 0 | BP69: 0
H70: 7070 | I70: 0 | J70: 0 | K70: 0 | L70: 0 | M70: 0 | N70: 0 | O70: 0 | P70: 0 | Q70: 0 | R70: 0 | S70: 0 | T70: 0 | U70: 0 | V70: 0 | W70: 0 | X70: 0 | Y70: 0 | Z70: 0 | AA70: 0 | AB70: 0 | AC70: 0 | AD70: 0 | AE70: 0 | AF70: 0 | AG70: 0 | AH70: 0 | AI70: 0 | AJ70: 0 | AK70: 0 | AL70: 0 | AM70: 0 | AN70: 0 | AO70: 0 | AP70: 0 | AQ70: 0 | AR70: 0 | AS70: 0 | AT70: 0 | AU70: 0 | AV70: 0 | AW70: 0 | AX70: 0 | AY70: 0 | AZ70: 0 | BA70: 0 | BB70: 0 | BC70: 0 | BD70: 0 | BE70: 0 | BF70: 0 | BG70: 0 | BH70: 0 | BI70: 0 | BJ70: 0 | BK70: 0 | BL70: 0 | BM70: 0 | BN70: 0 | BO70: 0 | BP70: 0
H71: 7072 | I71: 372960.59 | J71: 0 | K71: 0 | L71: 5002.61 | M71: 70542.57 | N71: 0 | O71: 186491.17 | P71: 6035.39 | Q71: 2919.68 | R71: 0 | S71: 2428 | T71: 8289.24 | U71: 497.88 | V71: 9852.96 | W71: 2564 | X71: 16931 | Y71: 0 | Z71: 5900 | AA71: 7358.9 | AB71: 3127 | AC71: 0 | AD71: 0 | AE71: 838.32 | AF71: 324.17 | AG71: 3653.55 | AH71: 0 | AI71: 0 | AJ71: 3825.85 | AK71: 1671 | AL71: 0 | AM71: 0 | AN71: 0 | AO71: 922 | AP71: 5045 | AQ71: 0 | AR71: 0 | AS71: 0 | AT71: 0 | AU71: 0 | AV71: 0 | AW71: 0 | AX71: -26085.65 | AY71: 0 | AZ71: 0 | BA71: -624433.56 | BB71: 0 | BC71: -2856.5 | BD71: -6810 | BE71: 0 | BF71: 0 | BG71: 0 | BH71: 0 | BI71: 0 | BJ71: 0 | BK71: 0 | BL71: 0 | BM71: 0 | BN71: 0 | BO71: 0 | BP71: 0
H72: 7073 | I72: 494456.66 | J72: 0 | K72: 30592.92 | L72: 0 | M72: 12618.86 | N72: 0 | O72: 0 | P72: 2995.1 | Q72: 57952.33 | R72: 0 | S72: 0 | T72: 0 | U72: 0 | V72: 0 | W72: 0 | X72: 0 | Y72: 0 | Z72: 8602.99 | AA72: 1043.84 | AB72: 0 | AC72: 0 | AD72: 0 | AE72: 0 | AF72: 0 | AG72: 0 | AH72: 0 | AI72: 0 | AJ72: 1424.25 | AK72: 0 | AL72: 0 | AM72: 0 | AN72: 0 | AO72: 23250 | AP72: 23740 | AQ72: 0 | AR72: 0 | AS72: 0 | AT72: 0 | AU72: 0 | AV72: -0.4 | AW72: 0 | AX72: -22750.63 | AY72: 0 | AZ72: 0 | BA72: -383060.96 | BB72: -79580 | BC72: 0 | BD72: 0 | BE72: 0 | BF72: 0 | BG72: 0 | BH72: 0 | BI72: 0 | BJ72: 0 | BK72: 0 | BL72: 0 | BM72: 0 | BN72: 0 | BO72: 0 | BP72: 0
I73: 2 | J73: 3 | K73: 4 | L73: 5 | M73: 6 | O73: 7 | P73: 8 | Q73: 9 | T73: 10 | Z73: 11 | AA73: 12 | AB73: 13 | AC73: 13 | AD73: 13 | AE73: 13 | AF73: 13 | AG73: 13 | AH73: 13 | AJ73: 14 | AL73: 15 | AM73: 16 | AO73: 17 | AP73: 18 | AZ73: 18 | BA73: 19 | BB73: 20
